Period,Cost Centre,Responsible Unit,Service Division Categorisation,ServiceAreaCategorisation,Nominal,Narrative,Expense Sub Type,Expense Type,Value,Transaction Date,Cap/Rev,Supplier Name
12,100020,AD Resources,SupS DOF,Non Distributed Costs (NDC),0070,Agency Staff - Corp Contract,Direct EmployeeExpenses-Agency,Employees,"2,260.00",01-Mar-17,R,HAYS SPECIALIST RECRUITM'T LTD
12,100020,AD Resources,SupS DOF,Non Distributed Costs (NDC),0070,Agency Staff - Corp Contract,Direct EmployeeExpenses-Agency,Employees,"2,260.00",08-Mar-17,R,HAYS SPECIALIST RECRUITM'T LTD
12,100020,AD Resources,SupS DOF,Non Distributed Costs (NDC),0070,Agency Staff - Corp Contract,Direct EmployeeExpenses-Agency,Employees,"2,260.00",01-Mar-17,R,HAYS SPECIALIST RECRUITM'T LTD
12,100020,AD Resources,SupS DOF,Non Distributed Costs (NDC),0075,Agency Staff - Off Contract,Direct EmployeeExpenses-Agency,Employees,"2,260.00",17-Mar-17,R,HAYS SPECIALIST RECRUITM'T LTD
12,100020,AD Resources,SupS DOF,Non Distributed Costs (NDC),0075,Agency Staff - Off Contract,Direct EmployeeExpenses-Agency,Employees,"6,440.00",01-Mar-17,R,PUBLIC SECTOR CONSULTANTS
12,100020,AD Resources,SupS DOF,Non Distributed Costs (NDC),3414,Consultants,Services,Supplies and Services,"5,520.00",01-Mar-17,R,PUBLIC SECTOR CONSULTANTS
12,100020,AD Resources,SupS DOF,Non Distributed Costs (NDC),3521,IT licences - Applications,Comms and Computing,Supplies and Services,"7,560.00",01-Mar-17,R,REAL ASSET MANAGEMENT PLC
12,100020,AD Resources,SupS DOF,Non Distributed Costs (NDC),3804,Subscriptions,Grants and Subscriptions,Supplies and Services,825,07-Mar-17,R,CIPFA BUSINESS LTD
12,100071,Financial Information System,SupS Strategic Finance,Non Distributed Costs (NDC),3522,IT Support Costs,Comms and Computing,Supplies and Services,531,01-Mar-17,R,ADVANCED BUSINESS SOLUTIONS
12,100101,Local Strategic Partnership,SupS Comm and Member Servic,Non Distributed Costs (NDC),3414,Consultants,Services,Supplies and Services,"1,750.00",23-Mar-17,R,REDACTED
12,100101,Local Strategic Partnership,SupS Comm and Member Servic,Non Distributed Costs (NDC),3700,Conferences,Expenses,Supplies and Services,"1,175.50",01-Mar-17,R,The Royal Foundation of St Katharine
12,100330,Business Systems,SupS IT,Non Distributed Costs (NDC),3521,IT licences - Applications,Comms and Computing,Supplies and Services,879.5,01-Mar-17,R,CIVICA UK LIMITED
12,100330,Business Systems,SupS IT,Non Distributed Costs (NDC),3521,IT licences - Applications,Comms and Computing,Supplies and Services,"4,398.13",01-Mar-17,R,CIVICA UK LIMITED
12,100330,Business Systems,SupS IT,Non Distributed Costs (NDC),3521,IT licences - Applications,Comms and Computing,Supplies and Services,"11,642.10",01-Mar-17,R,CIVICA UK LIMITED
12,100330,Business Systems,SupS IT,Non Distributed Costs (NDC),3521,IT licences - Applications,Comms and Computing,Supplies and Services,"47,250.00",01-Mar-17,R,CIVICA UK LIMITED
12,100330,Business Systems,SupS IT,Non Distributed Costs (NDC),3522,IT Support Costs,Comms and Computing,Supplies and Services,"11,183.09",01-Mar-17,R,ALIGNED ASSETS
12,100330,Business Systems,SupS IT,Non Distributed Costs (NDC),3522,IT Support Costs,Comms and Computing,Supplies and Services,"11,183.09",01-Mar-17,R,ALIGNED ASSETS
12,100350,Customer Contact,SupS IT,Non Distributed Costs (NDC),0075,Agency Staff - Off Contract,Direct EmployeeExpenses-Agency,Employees,"3,390.00",01-Mar-17,R,HAYS SPECIALIST RECRUITM'T LTD
12,100350,Customer Contact,SupS IT,Non Distributed Costs (NDC),0075,Agency Staff - Off Contract,Direct EmployeeExpenses-Agency,Employees,"3,390.00",01-Mar-17,R,HAYS SPECIALIST RECRUITM'T LTD
12,100350,Customer Contact,SupS IT,Non Distributed Costs (NDC),0075,Agency Staff - Off Contract,Direct EmployeeExpenses-Agency,Employees,"6,637.50",01-Mar-17,R,MILESTONES COMMUNICATIONS LTD
12,100350,Customer Contact,SupS IT,Non Distributed Costs (NDC),0075,Agency Staff - Off Contract,Direct EmployeeExpenses-Agency,Employees,"24,600.00",01-Mar-17,R,MILESTONES COMMUNICATIONS LTD
12,100350,Customer Contact,SupS IT,Non Distributed Costs (NDC),3521,IT licences - Applications,Comms and Computing,Supplies and Services,"3,391.32",01-Mar-17,R,CIVICA SERVICES LTD
12,100351,SCIS,SupS IT,Non Distributed Costs (NDC),0070,Agency Staff - Corp Contract,Direct EmployeeExpenses-Agency,Employees,"1,575.00",26-Mar-17,R,HAMPTON'S RESOURCING
12,100351,SCIS,SupS IT,Non Distributed Costs (NDC),0070,Agency Staff - Corp Contract,Direct EmployeeExpenses-Agency,Employees,"1,575.00",01-Mar-17,R,HAMPTON'S RESOURCING
12,100351,SCIS,SupS IT,Non Distributed Costs (NDC),0070,Agency Staff - Corp Contract,Direct EmployeeExpenses-Agency,Employees,"1,575.00",01-Mar-17,R,HAMPTON'S RESOURCING
12,100351,SCIS,SupS IT,Non Distributed Costs (NDC),0070,Agency Staff - Corp Contract,Direct EmployeeExpenses-Agency,Employees,"1,575.00",01-Mar-17,R,HAMPTON'S RESOURCING
12,100351,SCIS,SupS IT,Non Distributed Costs (NDC),0070,Agency Staff - Corp Contract,Direct EmployeeExpenses-Agency,Employees,"1,575.00",19-Mar-17,R,HAMPTON'S RESOURCING
12,100351,SCIS,SupS IT,Non Distributed Costs (NDC),0070,Agency Staff - Corp Contract,Direct EmployeeExpenses-Agency,Employees,"1,575.00",05-Mar-17,R,HAMPTON'S RESOURCING
12,100351,SCIS,SupS IT,Non Distributed Costs (NDC),0070,Agency Staff - Corp Contract,Direct EmployeeExpenses-Agency,Employees,"3,150.00",01-Mar-17,R,HAMPTON'S RESOURCING
12,100351,SCIS,SupS IT,Non Distributed Costs (NDC),0070,Agency Staff - Corp Contract,Direct EmployeeExpenses-Agency,Employees,"3,650.00",08-Mar-17,R,NUMBER 10 INTERIM LTD
12,100351,SCIS,SupS IT,Non Distributed Costs (NDC),0070,Agency Staff - Corp Contract,Direct EmployeeExpenses-Agency,Employees,"12,100.00",01-Mar-17,R,NUMBER 10 INTERIM LTD
12,100351,SCIS,SupS IT,Non Distributed Costs (NDC),0075,Agency Staff - Off Contract,Direct EmployeeExpenses-Agency,Employees,"5,000.00",01-Mar-17,R,NUMBER 10 INTERIM LTD
12,100351,SCIS,SupS IT,Non Distributed Costs (NDC),0075,Agency Staff - Off Contract,Direct EmployeeExpenses-Agency,Employees,"1,800.00",01-Mar-17,R,NUMBER 10 INTERIM LTD
12,100351,SCIS,SupS IT,Non Distributed Costs (NDC),0075,Agency Staff - Off Contract,Direct EmployeeExpenses-Agency,Employees,"2,250.00",01-Mar-17,R,NUMBER 10 INTERIM LTD
12,100351,SCIS,SupS IT,Non Distributed Costs (NDC),0075,Agency Staff - Off Contract,Direct EmployeeExpenses-Agency,Employees,"2,250.00",01-Mar-17,R,NUMBER 10 INTERIM LTD
12,100351,SCIS,SupS IT,Non Distributed Costs (NDC),0075,Agency Staff - Off Contract,Direct EmployeeExpenses-Agency,Employees,"2,250.00",13-Mar-17,R,NUMBER 10 INTERIM LTD
12,100351,SCIS,SupS IT,Non Distributed Costs (NDC),0075,Agency Staff - Off Contract,Direct EmployeeExpenses-Agency,Employees,"2,250.00",17-Mar-17,R,NUMBER 10 INTERIM LTD
12,100351,SCIS,SupS IT,Non Distributed Costs (NDC),0075,Agency Staff - Off Contract,Direct EmployeeExpenses-Agency,Employees,"3,150.00",01-Mar-17,R,NUMBER 10 INTERIM LTD
12,100351,SCIS,SupS IT,Non Distributed Costs (NDC),0075,Agency Staff - Off Contract,Direct EmployeeExpenses-Agency,Employees,"3,150.00",01-Mar-17,R,NUMBER 10 INTERIM LTD
12,100351,SCIS,SupS IT,Non Distributed Costs (NDC),3414,Consultants,Services,Supplies and Services,"4,400.11",08-Mar-17,R,INTERQUEST GROUP UK LIMITED
12,100351,SCIS,SupS IT,Non Distributed Costs (NDC),3414,Consultants,Services,Supplies and Services,"4,729.74",08-Mar-17,R,INTERQUEST GROUP UK LIMITED
12,100351,SCIS,SupS IT,Non Distributed Costs (NDC),3414,Consultants,Services,Supplies and Services,"6,099.20",08-Mar-17,R,INTERQUEST GROUP UK LIMITED
12,100351,SCIS,SupS IT,Non Distributed Costs (NDC),3414,Consultants,Services,Supplies and Services,"8,977.86",08-Mar-17,R,INTERQUEST GROUP UK LIMITED
12,100351,SCIS,SupS IT,Non Distributed Costs (NDC),3414,Consultants,Services,Supplies and Services,"9,376.86",08-Mar-17,R,INTERQUEST GROUP UK LIMITED
12,100351,SCIS,SupS IT,Non Distributed Costs (NDC),3414,Consultants,Services,Supplies and Services,"9,632.04",08-Mar-17,R,INTERQUEST GROUP UK LIMITED
12,100351,SCIS,SupS IT,Non Distributed Costs (NDC),3414,Consultants,Services,Supplies and Services,"15,463.86",08-Mar-17,R,INTERQUEST GROUP UK LIMITED
12,100352,BST IT Projects,SupS IT,Non Distributed Costs (NDC),0075,Agency Staff - Off Contract,Direct EmployeeExpenses-Agency,Employees,"2,800.00",01-Mar-17,R,MERIDIAN BUSINESS SUPPORT LTD
12,100352,BST IT Projects,SupS IT,Non Distributed Costs (NDC),0075,Agency Staff - Off Contract,Direct EmployeeExpenses-Agency,Employees,"5,320.00",14-Mar-17,R,MERIDIAN BUSINESS SUPPORT LTD
12,100352,BST IT Projects,SupS IT,Non Distributed Costs (NDC),0075,Agency Staff - Off Contract,Direct EmployeeExpenses-Agency,Employees,"9,520.00",08-Mar-17,R,MERIDIAN BUSINESS SUPPORT LTD
12,100410,Blue Badge,On-street parking,Highways Roads Transport Serv.,3401,Medical Fees,Services,Supplies and Services,900,01-Mar-17,R,ACCESS INDEPENDENT
12,100410,Blue Badge,On-street parking,Highways Roads Transport Serv.,3525,Network Charges,Comms and Computing,Supplies and Services,572.48,01-Mar-17,R,NORTHGATE PUBLIC SERVICES (UK)
12,100410,Blue Badge,On-street parking,Highways Roads Transport Serv.,3525,Network Charges,Comms and Computing,Supplies and Services,687.8,01-Mar-17,R,NORTHGATE PUBLIC SERVICES (UK)
12,100430,Merton Link,SupS Best Value,Non Distributed Costs (NDC),3004,Materials,Equip Furniture/Materials,Supplies and Services,"5,010.00",01-Mar-17,R,AUDITEL RENTAL & SERVICE LTD
12,100430,Merton Link,SupS Best Value,Non Distributed Costs (NDC),3435,Banking Costs,Services,Supplies and Services,516.15,01-Mar-17,R,JADE SECURITY SERVICE LTD
12,100430,Merton Link,SupS Best Value,Non Distributed Costs (NDC),3435,Banking Costs,Services,Supplies and Services,641.7,01-Mar-17,R,JADE SECURITY SERVICE LTD
12,100430,Merton Link,SupS Best Value,Non Distributed Costs (NDC),3435,Banking Costs,Services,Supplies and Services,"11,186.90",01-Mar-17,R,JADE SECURITY SERVICE LTD
12,100430,Merton Link,SupS Best Value,Non Distributed Costs (NDC),3435,Banking Costs,Services,Supplies and Services,"11,654.51",01-Mar-17,R,JADE SECURITY SERVICE LTD
12,100440,Reg of B. Deaths & Ms,Registn Birth/Death/Marriage,Central Services to the Public,1001,Building Improvements,RepairsAlterations&MtceOfBldgs,Premises Related Expenses,"12,852.50",01-Mar-17,R,kingwell Projects
12,100440,Reg of B. Deaths & Ms,Registn Birth/Death/Marriage,Central Services to the Public,3004,Materials,Equip Furniture/Materials,Supplies and Services,"2,325.00",01-Mar-17,R,AUDITEL RENTAL & SERVICE LTD
12,100500,Local Taxation Bailiffs,Council tax collection,Central Services to the Public,3403,Bailiffs Fees,Services,Supplies and Services,877.5,03-Mar-17,R,QUARTIX  LTD
12,100500,Local Taxation Bailiffs,Council tax collection,Central Services to the Public,3403,Bailiffs Fees,Services,Supplies and Services,602,01-Mar-17,R,DINGWALL 2020 AUCTIONS
12,100501,Sutton Shared Bailiff Service,Council tax collection,Central Services to the Public,4020,Other Local Authority Payments,Other Local Authorities,Third Party Payments,"112,080.71",21-Mar-17,R,LONDON BOROUGH OF SUTTON
12,100541,Local Welfare Support,HB Administration,General Fund Housing,5879,(Conv) Recharges,Conversion,Transfer Payments,"10,000.00",03-Mar-17,R,EFGA Wimbledon Foodbank
12,100542,Local Taxation Services,Council tax collection,Central Services to the Public,0160,Recruitment Costs,Indirect Employee Expenses,Employees,874.16,01-Mar-17,R,LOVE WIMBLEDON LTD BUS.IMP.DIS
12,100542,Local Taxation Services,Council tax collection,Central Services to the Public,3305,Office Expenses,Prntng Stnry Gen Off Exp,Supplies and Services,826.4,01-Mar-17,R,MAG:NET SOLUTIONS
12,100542,Local Taxation Services,Council tax collection,Central Services to the Public,3510,Computer Hardware - Purchased,Comms and Computing,Supplies and Services,"2,475.00",01-Mar-17,R,CIVICA UK LIMITED
12,100542,Local Taxation Services,Council tax collection,Central Services to the Public,3521,IT licences - Applications,Comms and Computing,Supplies and Services,"7,050.00",01-Mar-17,R,INFORM CPI LTD
12,100542,Local Taxation Services,Council tax collection,Central Services to the Public,3521,IT licences - Applications,Comms and Computing,Supplies and Services,"7,500.00",01-Mar-17,R,INFORM CPI LTD
12,100542,Local Taxation Services,Council tax collection,Central Services to the Public,3521,IT licences - Applications,Comms and Computing,Supplies and Services,990,21-Mar-17,R,CIVICA UK LIMITED
12,100542,Local Taxation Services,Council tax collection,Central Services to the Public,3522,IT Support Costs,Comms and Computing,Supplies and Services,"2,212.27",01-Mar-17,R,CIVICA UK LIMITED
12,100542,Local Taxation Services,Council tax collection,Central Services to the Public,3522,IT Support Costs,Comms and Computing,Supplies and Services,"7,355.35",01-Mar-17,R,CIVICA UK LIMITED
12,100542,Local Taxation Services,Council tax collection,Central Services to the Public,3522,IT Support Costs,Comms and Computing,Supplies and Services,"7,515.00",07-Mar-17,R,CIVICA UK LIMITED
12,100600,Marketing & Communication,SupS Chief Execs,Non Distributed Costs (NDC),3431,Marketing/Advertising Non-Stat,Services,Supplies and Services,537.5,01-Mar-17,R,JCDECAUX UNITED KINGDOM
12,100600,Marketing & Communication,SupS Chief Execs,Non Distributed Costs (NDC),3431,Marketing/Advertising Non-Stat,Services,Supplies and Services,537.5,01-Mar-17,R,JCDECAUX UNITED KINGDOM
12,100600,Marketing & Communication,SupS Chief Execs,Non Distributed Costs (NDC),3432,Graphic Design,Services,Supplies and Services,500,01-Mar-17,R,LITTLE YARD
12,100600,Marketing & Communication,SupS Chief Execs,Non Distributed Costs (NDC),3432,Graphic Design,Services,Supplies and Services,500,01-Mar-17,R,LITTLE YARD
12,100600,Marketing & Communication,SupS Chief Execs,Non Distributed Costs (NDC),3432,Graphic Design,Services,Supplies and Services,"1,100.00",01-Mar-17,R,LITTLE YARD
12,100600,Marketing & Communication,SupS Chief Execs,Non Distributed Costs (NDC),3997,(DO NOT USE) Special Projects,Conversion,Supplies and Services,"1,632.00",01-Mar-17,R,VOICEABILITY
12,100601,Press and Public Relations,SupS Chief Execs,Non Distributed Costs (NDC),3431,Marketing/Advertising Non-Stat,Services,Supplies and Services,600,01-Mar-17,R,REDACTED
12,100701,Corporately Funded Items,Officer support time,Corporate and Democratic Core,3409,Counsel Fees,Services,Supplies and Services,"2,225.00",01-Mar-17,R,REDACTED
12,100701,Corporately Funded Items,Officer support time,Corporate and Democratic Core,3409,Counsel Fees,Services,Supplies and Services,"6,700.00",01-Mar-17,R,REDACTED
12,100720,Coroners Courts,Registn Birth/Death/Marriage,Central Services to the Public,3410,Court Fees,Services,Supplies and Services,"68,950.00",10-Mar-17,R,CITY OF WESTMINSTER
12,100810,Democracy Services,Officer support time,Corporate and Democratic Core,3996,(DO NOT USE) Contract Payments,Conversion,Supplies and Services,"2,450.00",01-Mar-17,R,TGL BUILDING & CIVIL ENGIN'ING
12,100810,Democracy Services,Officer support time,Corporate and Democratic Core,3996,(DO NOT USE) Contract Payments,Conversion,Supplies and Services,"2,795.00",01-Mar-17,R,TGL BUILDING & CIVIL ENGIN'ING
12,100890,Benefits Investigations,Fraud Investigation,General Fund Housing,4020,Other Local Authority Payments,Other Local Authorities,Third Party Payments,"4,150.00",01-Mar-17,R,CABINET OFFICE
12,100951,Legal Shared Service,SupS Legal,Non Distributed Costs (NDC),0151,External Training Costs,Indirect Employee Expenses,Employees,975,01-Mar-17,R,EMAP PUBLISHING
12,100951,Legal Shared Service,SupS Legal,Non Distributed Costs (NDC),1001,Building Improvements,RepairsAlterations&MtceOfBldgs,Premises Related Expenses,"1,044.00",14-Mar-17,R,SSD LIMITED
12,100951,Legal Shared Service,SupS Legal,Non Distributed Costs (NDC),3305,Office Expenses,Prntng Stnry Gen Off Exp,Supplies and Services,"1,098.12",01-Mar-17,R,RESTORE PLC
12,100951,Legal Shared Service,SupS Legal,Non Distributed Costs (NDC),3305,Office Expenses,Prntng Stnry Gen Off Exp,Supplies and Services,660.22,01-Mar-17,R,RESTORE PLC
12,100951,Legal Shared Service,SupS Legal,Non Distributed Costs (NDC),3306,Postage,Prntng Stnry Gen Off Exp,Supplies and Services,500,01-Mar-17,R,NEOPOST FINANCE LIMITED [RM1 2AR]
12,100951,Legal Shared Service,SupS Legal,Non Distributed Costs (NDC),3400,Fees,Services,Supplies and Services,"1,664.00",01-Mar-17,R,LEWIS SILKIN LLP
12,100951,Legal Shared Service,SupS Legal,Non Distributed Costs (NDC),3400,Fees,Services,Supplies and Services,"32,576.90",01-Mar-17,R,LEWIS SILKIN LLP
12,100951,Legal Shared Service,SupS Legal,Non Distributed Costs (NDC),3999,(DO NOT USE) Service From Prov,Conversion,Supplies and Services,890,13-Mar-17,R,SGS
12,100953,SLLP - Wandsworth,SupS Legal,Non Distributed Costs (NDC),3504,Mobile Phones - Call Plans,Comms and Computing,Supplies and Services,774.69,02-Mar-17,R,EVERYTHING EVERYWHERE
12,100953,SLLP - Wandsworth,SupS Legal,Non Distributed Costs (NDC),3504,Mobile Phones - Call Plans,Comms and Computing,Supplies and Services,"8,339.00",02-Mar-17,R,EVERYTHING EVERYWHERE
12,100953,SLLP - Wandsworth,SupS Legal,Non Distributed Costs (NDC),3510,Computer Hardware - Purchased,Comms and Computing,Supplies and Services,"1,799.00",01-Mar-17,R,SCALABLE COMMUNICATIONS PLC
12,100953,SLLP - Wandsworth,SupS Legal,Non Distributed Costs (NDC),3522,IT Support Costs,Comms and Computing,Supplies and Services,"14,250.00",01-Mar-17,R,LEXIS NEXIS
12,100953,SLLP - Wandsworth,SupS Legal,Non Distributed Costs (NDC),3526,Online Resources,Comms and Computing,Supplies and Services,810.2,01-Mar-17,R,THINTECH LIMITED
12,100970,SLLP - Disbursements,SupS Legal,Non Distributed Costs (NDC),3400,Fees,Services,Supplies and Services,892.26,01-Mar-17,R,Lovell Chohan Solicitors Limited
12,100970,SLLP - Disbursements,SupS Legal,Non Distributed Costs (NDC),3400,Fees,Services,Supplies and Services,"1,066.07",01-Mar-17,R,Creighton & Partners
12,100970,SLLP - Disbursements,SupS Legal,Non Distributed Costs (NDC),3400,Fees,Services,Supplies and Services,"1,727.50",01-Mar-17,R,REDACTED
12,100970,SLLP - Disbursements,SupS Legal,Non Distributed Costs (NDC),3400,Fees,Services,Supplies and Services,"11,071.00",01-Mar-17,R,Ward Hadaway Solicitors
12,100970,SLLP - Disbursements,SupS Legal,Non Distributed Costs (NDC),3400,Fees,Services,Supplies and Services,"15,898.00",01-Mar-17,R,Ward Hadaway Solicitors
12,100970,SLLP - Disbursements,SupS Legal,Non Distributed Costs (NDC),3401,Medical Fees,Services,Supplies and Services,675,01-Mar-17,R,REDACTED
12,100970,SLLP - Disbursements,SupS Legal,Non Distributed Costs (NDC),3401,Medical Fees,Services,Supplies and Services,693.01,01-Mar-17,R,REDACTED
12,100970,SLLP - Disbursements,SupS Legal,Non Distributed Costs (NDC),3401,Medical Fees,Services,Supplies and Services,703,01-Mar-17,R,EXPERT IN MIND
12,100970,SLLP - Disbursements,SupS Legal,Non Distributed Costs (NDC),3401,Medical Fees,Services,Supplies and Services,900,01-Mar-17,R,REDACTED
12,100970,SLLP - Disbursements,SupS Legal,Non Distributed Costs (NDC),3401,Medical Fees,Services,Supplies and Services,"1,048.33",01-Mar-17,R,BIBBY FACTORS SLOUGH LIMITED
12,100970,SLLP - Disbursements,SupS Legal,Non Distributed Costs (NDC),3401,Medical Fees,Services,Supplies and Services,"1,411.00",01-Mar-17,R,Oxford Expert Psychiatry Ltd
12,100970,SLLP - Disbursements,SupS Legal,Non Distributed Costs (NDC),3401,Medical Fees,Services,Supplies and Services,"3,231.06",01-Mar-17,R,REDACTED
12,100970,SLLP - Disbursements,SupS Legal,Non Distributed Costs (NDC),3409,Counsel Fees,Services,Supplies and Services,500,01-Mar-17,R,REDACTED
12,100970,SLLP - Disbursements,SupS Legal,Non Distributed Costs (NDC),3409,Counsel Fees,Services,Supplies and Services,500,01-Mar-17,R,REDACTED
12,100970,SLLP - Disbursements,SupS Legal,Non Distributed Costs (NDC),3409,Counsel Fees,Services,Supplies and Services,500,01-Mar-17,R,REDACTED
12,100970,SLLP - Disbursements,SupS Legal,Non Distributed Costs (NDC),3409,Counsel Fees,Services,Supplies and Services,510,01-Mar-17,R,REDACTED
12,100970,SLLP - Disbursements,SupS Legal,Non Distributed Costs (NDC),3409,Counsel Fees,Services,Supplies and Services,510,01-Mar-17,R,REDACTED
12,100970,SLLP - Disbursements,SupS Legal,Non Distributed Costs (NDC),3409,Counsel Fees,Services,Supplies and Services,510,01-Mar-17,R,REDACTED
12,100970,SLLP - Disbursements,SupS Legal,Non Distributed Costs (NDC),3409,Counsel Fees,Services,Supplies and Services,510,01-Mar-17,R,REDACTED
12,100970,SLLP - Disbursements,SupS Legal,Non Distributed Costs (NDC),3409,Counsel Fees,Services,Supplies and Services,520,01-Mar-17,R,REDACTED
12,100970,SLLP - Disbursements,SupS Legal,Non Distributed Costs (NDC),3409,Counsel Fees,Services,Supplies and Services,520,09-Mar-17,R,REDACTED
12,100970,SLLP - Disbursements,SupS Legal,Non Distributed Costs (NDC),3409,Counsel Fees,Services,Supplies and Services,549,01-Mar-17,R,REDACTED
12,100970,SLLP - Disbursements,SupS Legal,Non Distributed Costs (NDC),3409,Counsel Fees,Services,Supplies and Services,550,01-Mar-17,R,REDACTED
12,100970,SLLP - Disbursements,SupS Legal,Non Distributed Costs (NDC),3409,Counsel Fees,Services,Supplies and Services,550,01-Mar-17,R,REDACTED
12,100970,SLLP - Disbursements,SupS Legal,Non Distributed Costs (NDC),3409,Counsel Fees,Services,Supplies and Services,600,01-Mar-17,R,REDACTED
12,100970,SLLP - Disbursements,SupS Legal,Non Distributed Costs (NDC),3409,Counsel Fees,Services,Supplies and Services,600,01-Mar-17,R,REDACTED
12,100970,SLLP - Disbursements,SupS Legal,Non Distributed Costs (NDC),3409,Counsel Fees,Services,Supplies and Services,675,01-Mar-17,R,REDACTED
12,100970,SLLP - Disbursements,SupS Legal,Non Distributed Costs (NDC),3409,Counsel Fees,Services,Supplies and Services,700,01-Mar-17,R,REDACTED
12,100970,SLLP - Disbursements,SupS Legal,Non Distributed Costs (NDC),3409,Counsel Fees,Services,Supplies and Services,720,01-Mar-17,R,REDACTED
12,100970,SLLP - Disbursements,SupS Legal,Non Distributed Costs (NDC),3409,Counsel Fees,Services,Supplies and Services,755.5,01-Mar-17,R,REDACTED
12,100970,SLLP - Disbursements,SupS Legal,Non Distributed Costs (NDC),3409,Counsel Fees,Services,Supplies and Services,850,01-Mar-17,R,REDACTED
12,100970,SLLP - Disbursements,SupS Legal,Non Distributed Costs (NDC),3409,Counsel Fees,Services,Supplies and Services,960,01-Mar-17,R,REDACTED
12,100970,SLLP - Disbursements,SupS Legal,Non Distributed Costs (NDC),3409,Counsel Fees,Services,Supplies and Services,"1,010.00",01-Mar-17,R,REDACTED
12,100970,SLLP - Disbursements,SupS Legal,Non Distributed Costs (NDC),3409,Counsel Fees,Services,Supplies and Services,"1,500.00",02-Mar-17,R,REDACTED
12,100970,SLLP - Disbursements,SupS Legal,Non Distributed Costs (NDC),3409,Counsel Fees,Services,Supplies and Services,"2,150.00",01-Mar-17,R,REDACTED
12,100970,SLLP - Disbursements,SupS Legal,Non Distributed Costs (NDC),3409,Counsel Fees,Services,Supplies and Services,"2,300.00",01-Mar-17,R,REDACTED
12,100970,SLLP - Disbursements,SupS Legal,Non Distributed Costs (NDC),3409,Counsel Fees,Services,Supplies and Services,"2,500.00",01-Mar-17,R,REDACTED
12,100970,SLLP - Disbursements,SupS Legal,Non Distributed Costs (NDC),3409,Counsel Fees,Services,Supplies and Services,"2,875.00",01-Mar-17,R,REDACTED
12,100970,SLLP - Disbursements,SupS Legal,Non Distributed Costs (NDC),3409,Counsel Fees,Services,Supplies and Services,"12,640.00",01-Mar-17,R,REDACTED
12,100970,SLLP - Disbursements,SupS Legal,Non Distributed Costs (NDC),3999,(DO NOT USE) Service From Prov,Conversion,Supplies and Services,583.98,01-Mar-17,R,REDACTED
12,100970,SLLP - Disbursements,SupS Legal,Non Distributed Costs (NDC),3999,(DO NOT USE) Service From Prov,Conversion,Supplies and Services,"1,124.11",01-Mar-17,R,REDACTED
12,100970,SLLP - Disbursements,SupS Legal,Non Distributed Costs (NDC),3999,(DO NOT USE) Service From Prov,Conversion,Supplies and Services,"5,350.00",01-Mar-17,R,Morton Fraser LLP
12,101000,AD-Human Resources,SupS Health & Safety,Non Distributed Costs (NDC),0160,Recruitment Costs,Indirect Employee Expenses,Employees,999,01-Mar-17,R,HAYMARKET MEDIA GROUP LIMITED
12,101070,Learning and Development,SupS Health & Safety,Non Distributed Costs (NDC),0150,Internal Training Costs,Indirect Employee Expenses,Employees,"9,000.00",01-Mar-17,R,DATRIX LEARNING SERVICES LTD
12,101070,Learning and Development,SupS Health & Safety,Non Distributed Costs (NDC),0151,External Training Costs,Indirect Employee Expenses,Employees,550,01-Mar-17,R,MSH TRAINING & CONSULTANCY LTD
12,101070,Learning and Development,SupS Health & Safety,Non Distributed Costs (NDC),0151,External Training Costs,Indirect Employee Expenses,Employees,675,01-Mar-17,R,PEARLCATCHERS LIMITED
12,101070,Learning and Development,SupS Health & Safety,Non Distributed Costs (NDC),0151,External Training Costs,Indirect Employee Expenses,Employees,675,01-Mar-17,R,PEARLCATCHERS LIMITED
12,101070,Learning and Development,SupS Health & Safety,Non Distributed Costs (NDC),0151,External Training Costs,Indirect Employee Expenses,Employees,980,01-Mar-17,R,HAPPY COMPUTERS LTD
12,101070,Learning and Development,SupS Health & Safety,Non Distributed Costs (NDC),0151,External Training Costs,Indirect Employee Expenses,Employees,550,02-Mar-17,R,MSH TRAINING & CONSULTANCY LTD
12,101070,Learning and Development,SupS Health & Safety,Non Distributed Costs (NDC),0151,External Training Costs,Indirect Employee Expenses,Employees,550,16-Mar-17,R,MSH TRAINING & CONSULTANCY LTD
12,101070,Learning and Development,SupS Health & Safety,Non Distributed Costs (NDC),0151,External Training Costs,Indirect Employee Expenses,Employees,830,01-Mar-17,R,MAYBO LTD
12,101070,Learning and Development,SupS Health & Safety,Non Distributed Costs (NDC),0151,External Training Costs,Indirect Employee Expenses,Employees,975,01-Mar-17,R,MEDI AID(UK) LTD
12,101070,Learning and Development,SupS Health & Safety,Non Distributed Costs (NDC),3700,Conferences,Expenses,Supplies and Services,"1,195.00",01-Mar-17,R,MIND
12,101070,Learning and Development,SupS Health & Safety,Non Distributed Costs (NDC),3700,Conferences,Expenses,Supplies and Services,"4,800.00",22-Mar-17,R,Eleve HR Ltd
12,101070,Learning and Development,SupS Health & Safety,Non Distributed Costs (NDC),3700,Conferences,Expenses,Supplies and Services,"8,418.00",28-Mar-17,R,BOSTOCK MARKETING GROUP LTD
12,101070,Learning and Development,SupS Health & Safety,Non Distributed Costs (NDC),3700,Conferences,Expenses,Supplies and Services,"12,472.50",01-Mar-17,R,BOSTOCK MARKETING GROUP LTD
12,101070,Learning and Development,SupS Health & Safety,Non Distributed Costs (NDC),8271,Tuition and Training Fees,Customer & Client Receipts,Income,525,17-Mar-17,R,Premier People Solutions Ltd
12,101070,Learning and Development,SupS Health & Safety,Non Distributed Costs (NDC),8271,Tuition and Training Fees,Customer & Client Receipts,Income,"1,200.00",21-Mar-17,R,THE LEARNING ARCHITECT
12,101211,Civic Centre,SupS Facilities,Non Distributed Costs (NDC),1002,Building Maintenance,RepairsAlterations&MtceOfBldgs,Premises Related Expenses,"1,850.00",01-Mar-17,R,TASK FORCE (UK) LTD
12,101212,Corporate Services Buildings,SupS Facilities,Non Distributed Costs (NDC),1001,Building Improvements,RepairsAlterations&MtceOfBldgs,Premises Related Expenses,"3,758.00",01-Mar-17,R,SALTASH ENTERPRISES LTD
12,101212,Corporate Services Buildings,SupS Facilities,Non Distributed Costs (NDC),1002,Building Maintenance,RepairsAlterations&MtceOfBldgs,Premises Related Expenses,"3,544.00",01-Mar-17,R,SSD LIMITED
12,101212,Corporate Services Buildings,SupS Facilities,Non Distributed Costs (NDC),1003,Building Maint - Mechanical,RepairsAlterations&MtceOfBldgs,Premises Related Expenses,862,01-Mar-17,R,APLEONA HSG LIMITED
12,101212,Corporate Services Buildings,SupS Facilities,Non Distributed Costs (NDC),1003,Building Maint - Mechanical,RepairsAlterations&MtceOfBldgs,Premises Related Expenses,"1,121.45",07-Mar-17,R,APLEONA HSG LIMITED
12,101212,Corporate Services Buildings,SupS Facilities,Non Distributed Costs (NDC),1003,Building Maint - Mechanical,RepairsAlterations&MtceOfBldgs,Premises Related Expenses,"1,342.22",15-Mar-17,R,APLEONA HSG LIMITED
12,101212,Corporate Services Buildings,SupS Facilities,Non Distributed Costs (NDC),1003,Building Maint - Mechanical,RepairsAlterations&MtceOfBldgs,Premises Related Expenses,"4,034.73",01-Mar-17,R,APLEONA HSG LIMITED
12,101212,Corporate Services Buildings,SupS Facilities,Non Distributed Costs (NDC),1003,Building Maint - Mechanical,RepairsAlterations&MtceOfBldgs,Premises Related Expenses,554.49,01-Mar-17,R,APLEONA HSG LIMITED
12,101212,Corporate Services Buildings,SupS Facilities,Non Distributed Costs (NDC),1003,Building Maint - Mechanical,RepairsAlterations&MtceOfBldgs,Premises Related Expenses,"3,788.00",01-Mar-17,R,APLEONA HSG LIMITED
12,101212,Corporate Services Buildings,SupS Facilities,Non Distributed Costs (NDC),1004,Building Maint - Electrical,RepairsAlterations&MtceOfBldgs,Premises Related Expenses,686.46,01-Mar-17,R,APLEONA HSG LIMITED
12,101212,Corporate Services Buildings,SupS Facilities,Non Distributed Costs (NDC),1039,FM - Responsive Services,RepairsAlterations&MtceOfBldgs,Premises Related Expenses,"1,081.50",02-Mar-17,R,Mikrofill Systems Ltd
12,101212,Corporate Services Buildings,SupS Facilities,Non Distributed Costs (NDC),1101,Gas,Energy Costs,Premises Related Expenses,"1,194.38",01-Mar-17,R,GAZPROM MARKETING&TRADING LTD
12,101212,Corporate Services Buildings,SupS Facilities,Non Distributed Costs (NDC),1101,Gas,Energy Costs,Premises Related Expenses,"4,236.90",01-Mar-17,R,GAZPROM MARKETING&TRADING LTD
12,101212,Corporate Services Buildings,SupS Facilities,Non Distributed Costs (NDC),1101,Gas,Energy Costs,Premises Related Expenses,"7,134.28",01-Mar-17,R,GAZPROM MARKETING&TRADING LTD
12,101212,Corporate Services Buildings,SupS Facilities,Non Distributed Costs (NDC),1101,Gas,Energy Costs,Premises Related Expenses,"9,381.95",01-Mar-17,R,GAZPROM MARKETING&TRADING LTD
12,101212,Corporate Services Buildings,SupS Facilities,Non Distributed Costs (NDC),1402,Use of Water,Water Services,Premises Related Expenses,728.94,08-Mar-17,R,SUTTON AND EAST SURREY WATER
12,101215,Morden Park House,SupS Facilities,Non Distributed Costs (NDC),1009,Security,RepairsAlterations&MtceOfBldgs,Premises Related Expenses,510,02-Mar-17,R,SSD LIMITED
12,101250,C & H Buildings,OP 65 & Over Day Care,Physical/ Sensory Support,1004,Building Maint - Electrical,RepairsAlterations&MtceOfBldgs,Premises Related Expenses,589.06,01-Mar-17,R,APLEONA HSG LIMITED
12,101250,C & H Buildings,OP 65 & Over Day Care,Physical/ Sensory Support,1004,Building Maint - Electrical,RepairsAlterations&MtceOfBldgs,Premises Related Expenses,603.75,01-Mar-17,R,APLEONA HSG LIMITED
12,101250,C & H Buildings,OP 65 & Over Day Care,Physical/ Sensory Support,1004,Building Maint - Electrical,RepairsAlterations&MtceOfBldgs,Premises Related Expenses,"1,036.29",01-Mar-17,R,APLEONA HSG LIMITED
12,101250,C & H Buildings,OP 65 & Over Day Care,Physical/ Sensory Support,1004,Building Maint - Electrical,RepairsAlterations&MtceOfBldgs,Premises Related Expenses,"2,549.44",03-Mar-17,R,APLEONA HSG LIMITED
12,101311,Leisure Buildings,Parks & Open Spaces,Cultural and Related Services,1003,Building Maint - Mechanical,RepairsAlterations&MtceOfBldgs,Premises Related Expenses,557.76,01-Mar-17,R,APLEONA HSG LIMITED
12,101350,Facilities,SupS Facilities,Non Distributed Costs (NDC),1002,Building Maintenance,RepairsAlterations&MtceOfBldgs,Premises Related Expenses,"2,200.00",16-Mar-17,R,APLEONA HSG LIMITED
12,101350,Facilities,SupS Facilities,Non Distributed Costs (NDC),1041,Energy Conservation Works,RepairsAlterations&MtceOfBldgs,Premises Related Expenses,517.5,01-Mar-17,R,ALLEN CONSTRUCTION CONSULTANCY
12,101350,Facilities,SupS Facilities,Non Distributed Costs (NDC),1041,Energy Conservation Works,RepairsAlterations&MtceOfBldgs,Premises Related Expenses,"1,034.99",01-Mar-17,R,ENERGY SAVING LIGHTING (UK) LT
12,101350,Facilities,SupS Facilities,Non Distributed Costs (NDC),1041,Energy Conservation Works,RepairsAlterations&MtceOfBldgs,Premises Related Expenses,"2,164.80",03-Mar-17,R,JOJU SOLA
12,101350,Facilities,SupS Facilities,Non Distributed Costs (NDC),1041,Energy Conservation Works,RepairsAlterations&MtceOfBldgs,Premises Related Expenses,"5,302.83",09-Mar-17,R,THAMES WATER COMM'CL SERV LTD
12,101352,Corporate Contracts - FM,SupS Facilities,Non Distributed Costs (NDC),1002,Building Maintenance,RepairsAlterations&MtceOfBldgs,Premises Related Expenses,690,01-Mar-17,R,INDEPTH HYGIENE SERVICES LTD
12,101352,Corporate Contracts - FM,SupS Facilities,Non Distributed Costs (NDC),1002,Building Maintenance,RepairsAlterations&MtceOfBldgs,Premises Related Expenses,940,19-Mar-17,R,INDEPTH HYGIENE SERVICES LTD
12,101352,Corporate Contracts - FM,SupS Facilities,Non Distributed Costs (NDC),3005,Cleaning Materials,Equip Furniture/Materials,Supplies and Services,735.68,01-Mar-17,R,NERCON LTD
12,101352,Corporate Contracts - FM,SupS Facilities,Non Distributed Costs (NDC),3005,Cleaning Materials,Equip Furniture/Materials,Supplies and Services,504,06-Mar-17,R,GREENHAM TRADING LTD
12,101353,Utilities Recharge,SupS Facilities,Non Distributed Costs (NDC),1102,Electricity,Energy Costs,Premises Related Expenses,"1,912.01",01-Mar-17,R,SCOTTISH POWER
12,101353,Utilities Recharge,SupS Facilities,Non Distributed Costs (NDC),1102,Electricity,Energy Costs,Premises Related Expenses,"37,318.20",01-Mar-17,R,SCOTTISH POWER
12,101370,Buildings Maintenance,SupS IT,Non Distributed Costs (NDC),1001,Building Improvements,RepairsAlterations&MtceOfBldgs,Premises Related Expenses,665.25,01-Mar-17,R,STONEWEST
12,101370,Buildings Maintenance,SupS IT,Non Distributed Costs (NDC),1001,Building Improvements,RepairsAlterations&MtceOfBldgs,Premises Related Expenses,853.8,01-Mar-17,R,DMA SIGNS LTD
12,101370,Buildings Maintenance,SupS IT,Non Distributed Costs (NDC),1001,Building Improvements,RepairsAlterations&MtceOfBldgs,Premises Related Expenses,"1,981.65",01-Mar-17,R,STONEWEST
12,101370,Buildings Maintenance,SupS IT,Non Distributed Costs (NDC),1001,Building Improvements,RepairsAlterations&MtceOfBldgs,Premises Related Expenses,"3,302.90",01-Mar-17,R,CHARTWELL DOORS LIMITED
12,101370,Buildings Maintenance,SupS IT,Non Distributed Costs (NDC),1001,Building Improvements,RepairsAlterations&MtceOfBldgs,Premises Related Expenses,"5,350.00",16-Mar-17,R,KH FLOORING LTD
12,101370,Buildings Maintenance,SupS IT,Non Distributed Costs (NDC),1003,Building Maint - Mechanical,RepairsAlterations&MtceOfBldgs,Premises Related Expenses,"1,688.69",01-Mar-17,R,APLEONA HSG LIMITED
12,101370,Buildings Maintenance,SupS IT,Non Distributed Costs (NDC),1004,Building Maint - Electrical,RepairsAlterations&MtceOfBldgs,Premises Related Expenses,"5,107.28",03-Mar-17,R,APLEONA HSG LIMITED
12,101370,Buildings Maintenance,SupS IT,Non Distributed Costs (NDC),1035,FM Planned Preventative Mtce,RepairsAlterations&MtceOfBldgs,Premises Related Expenses,"2,227.50",21-Mar-17,R,FUTURE TECH
12,101370,Buildings Maintenance,SupS IT,Non Distributed Costs (NDC),1036,FM - Responsive Internal Build,RepairsAlterations&MtceOfBldgs,Premises Related Expenses,"1,810.00",14-Mar-17,R,VTECH SOLUTIONS UK LTD
12,101390,Security Services,SupS Facilities,Non Distributed Costs (NDC),1009,Security,RepairsAlterations&MtceOfBldgs,Premises Related Expenses,"9,069.40",01-Mar-17,R,SIGHT & SOUND
12,101390,Security Services,SupS Facilities,Non Distributed Costs (NDC),1009,Security,RepairsAlterations&MtceOfBldgs,Premises Related Expenses,"8,528.40",01-Mar-17,R,SIGHT & SOUND
12,101410,PDC,Strategic Management,Children's Social Care,1101,Gas,Energy Costs,Premises Related Expenses,957.15,01-Mar-17,R,GAZPROM MARKETING&TRADING LTD
12,101410,PDC,Strategic Management,Children's Social Care,1600,Corporate Cleaning Contract,Cleaning and Domestic Supplies,Premises Related Expenses,"1,549.50",01-Mar-17,R,JULIUS RUTHERFOORD & CO LTD
12,101410,PDC,Strategic Management,Children's Social Care,1600,Corporate Cleaning Contract,Cleaning and Domestic Supplies,Premises Related Expenses,"1,549.50",01-Mar-17,R,JULIUS RUTHERFOORD & CO LTD
12,101500,Emergency Planning,Emergency Planning (Cent Serv),Central Services to the Public,3400,Fees,Services,Supplies and Services,"2,000.00",23-Mar-17,R,BRITISH RED CROSS SOCIETY
12,101590,IT Service Delivery,SupS IT,Non Distributed Costs (NDC),3510,Computer Hardware - Purchased,Comms and Computing,Supplies and Services,"2,300.00",08-Mar-17,R,VERISEC LIMITED
12,101590,IT Service Delivery,SupS IT,Non Distributed Costs (NDC),3520,IT Licences - Infrastructure,Comms and Computing,Supplies and Services,"1,200.00",01-Mar-17,R,VERISEC LIMITED
12,101590,IT Service Delivery,SupS IT,Non Distributed Costs (NDC),3521,IT licences - Applications,Comms and Computing,Supplies and Services,"5,640.00",01-Mar-17,R,SOFTCAT LTD
12,101590,IT Service Delivery,SupS IT,Non Distributed Costs (NDC),3521,IT licences - Applications,Comms and Computing,Supplies and Services,"29,178.00",01-Mar-17,R,SOFTCAT LTD
12,101590,IT Service Delivery,SupS IT,Non Distributed Costs (NDC),3521,IT licences - Applications,Comms and Computing,Supplies and Services,"1,261.48",01-Mar-17,R,V-SUB SOLUTIONS
12,101590,IT Service Delivery,SupS IT,Non Distributed Costs (NDC),3521,IT licences - Applications,Comms and Computing,Supplies and Services,"6,737.36",01-Mar-17,R,NITRO SOFTWARE
12,101590,IT Service Delivery,SupS IT,Non Distributed Costs (NDC),3521,IT licences - Applications,Comms and Computing,Supplies and Services,"7,950.00",01-Mar-17,R,RANDOMSTORM LTD
12,101590,IT Service Delivery,SupS IT,Non Distributed Costs (NDC),3521,IT licences - Applications,Comms and Computing,Supplies and Services,"9,152.64",01-Mar-17,R,NITRO SOFTWARE
12,101590,IT Service Delivery,SupS IT,Non Distributed Costs (NDC),3526,Online Resources,Comms and Computing,Supplies and Services,"1,873.00",01-Mar-17,R,NU NETWORK PRODUCTS LTD
12,101590,IT Service Delivery,SupS IT,Non Distributed Costs (NDC),3526,Online Resources,Comms and Computing,Supplies and Services,"2,081.00",01-Mar-17,R,NU NETWORK PRODUCTS LTD
12,101591,CHAS IT projects,SupS IT,Non Distributed Costs (NDC),0070,Agency Staff - Corp Contract,Direct EmployeeExpenses-Agency,Employees,"9,120.00",01-Mar-17,R,MARCUS DONALD PEOPLE LTD
12,101591,CHAS IT projects,SupS IT,Non Distributed Costs (NDC),3522,IT Support Costs,Comms and Computing,Supplies and Services,"14,800.00",01-Mar-17,R,GENERAL DYNAMICS IT LIMITED
12,101591,CHAS IT projects,SupS IT,Non Distributed Costs (NDC),3522,IT Support Costs,Comms and Computing,Supplies and Services,"21,700.00",01-Mar-17,R,GENERAL DYNAMICS IT LIMITED
12,101591,CHAS IT projects,SupS IT,Non Distributed Costs (NDC),3522,IT Support Costs,Comms and Computing,Supplies and Services,"35,741.00",01-Mar-17,R,GENERAL DYNAMICS IT LIMITED
12,101591,CHAS IT projects,SupS IT,Non Distributed Costs (NDC),3522,IT Support Costs,Comms and Computing,Supplies and Services,"44,430.00",01-Mar-17,R,GENERAL DYNAMICS IT LIMITED
12,101591,CHAS IT projects,SupS IT,Non Distributed Costs (NDC),3522,IT Support Costs,Comms and Computing,Supplies and Services,"54,537.50",01-Mar-17,R,GENERAL DYNAMICS IT LIMITED
12,101591,CHAS IT projects,SupS IT,Non Distributed Costs (NDC),3522,IT Support Costs,Comms and Computing,Supplies and Services,"163,388.33",01-Mar-17,R,GENERAL DYNAMICS IT LIMITED
12,101610,IT-Telecomms,SupS IT,Non Distributed Costs (NDC),3502,Telephone - Call Charges,Comms and Computing,Supplies and Services,755.95,01-Mar-17,R,VIRGIN MEDIA PAYMENTS LIMITED
12,101610,IT-Telecomms,SupS IT,Non Distributed Costs (NDC),3502,Telephone - Call Charges,Comms and Computing,Supplies and Services,757.98,01-Mar-17,R,VIRGIN MEDIA PAYMENTS LIMITED
12,101610,IT-Telecomms,SupS IT,Non Distributed Costs (NDC),3502,Telephone - Call Charges,Comms and Computing,Supplies and Services,"12,001.43",17-Mar-17,R,ORANGE P'MENT PRO'SING AIRTIME
12,101610,IT-Telecomms,SupS IT,Non Distributed Costs (NDC),3502,Telephone - Call Charges,Comms and Computing,Supplies and Services,"12,126.28",01-Mar-17,R,ORANGE P'MENT PRO'SING AIRTIME
12,101610,IT-Telecomms,SupS IT,Non Distributed Costs (NDC),3502,Telephone - Call Charges,Comms and Computing,Supplies and Services,"38,931.17",01-Mar-17,R,BRITISH TELECOMMUNICATIONS PLC
12,101610,IT-Telecomms,SupS IT,Non Distributed Costs (NDC),3521,IT licences - Applications,Comms and Computing,Supplies and Services,"1,017.00",01-Mar-17,R,TROJAN CONSULTANTS LIMITED
12,101610,IT-Telecomms,SupS IT,Non Distributed Costs (NDC),3525,Network Charges,Comms and Computing,Supplies and Services,"6,440.00",01-Mar-17,R,NEW NET TECHNOLOGIES
12,101630,Post services,SupS Facilities,Non Distributed Costs (NDC),3306,Postage,Prntng Stnry Gen Off Exp,Supplies and Services,572.27,01-Mar-17,R,STREETWISE COURIERS
12,101630,Post services,SupS Facilities,Non Distributed Costs (NDC),3306,Postage,Prntng Stnry Gen Off Exp,Supplies and Services,510.2,13-Mar-17,R,NEOPOST FINANCE LIMITED [RM1 2AR]
12,101630,Post services,SupS Facilities,Non Distributed Costs (NDC),3306,Postage,Prntng Stnry Gen Off Exp,Supplies and Services,584.35,01-Mar-17,R,STREETWISE COURIERS
12,101630,Post services,SupS Facilities,Non Distributed Costs (NDC),3306,Postage,Prntng Stnry Gen Off Exp,Supplies and Services,612.96,13-Mar-17,R,STREETWISE COURIERS
12,101630,Post services,SupS Facilities,Non Distributed Costs (NDC),3306,Postage,Prntng Stnry Gen Off Exp,Supplies and Services,686.97,06-Mar-17,R,STREETWISE COURIERS
12,101630,Post services,SupS Facilities,Non Distributed Costs (NDC),3306,Postage,Prntng Stnry Gen Off Exp,Supplies and Services,833.47,01-Mar-17,R,STREETWISE COURIERS
12,101630,Post services,SupS Facilities,Non Distributed Costs (NDC),3306,Postage,Prntng Stnry Gen Off Exp,Supplies and Services,"1,442.63",03-Mar-17,R,NEOPOST FINANCE LIMITED [RM1 2AR]
12,101630,Post services,SupS Facilities,Non Distributed Costs (NDC),3306,Postage,Prntng Stnry Gen Off Exp,Supplies and Services,"5,000.00",01-Mar-17,R,NEOPOST FINANCE LIMITED [RM1 2AR]
12,101630,Post services,SupS Facilities,Non Distributed Costs (NDC),3306,Postage,Prntng Stnry Gen Off Exp,Supplies and Services,"5,000.00",01-Mar-17,R,NEOPOST FINANCE LIMITED [RM1 2AR]
12,101650,Printing,T/A Corporate Services,Other Operating Inc & Expend,1500,Fixtures and Fittings,Fixtures and Fittings,Premises Related Expenses,570,01-Mar-17,R,PORTFOLIO DISPLAY LTD
12,101650,Printing,T/A Corporate Services,Other Operating Inc & Expend,3012,Viewable Media,Equip Furniture/Materials,Supplies and Services,"1,176.25",01-Mar-17,R,MISL LTD
12,101650,Printing,T/A Corporate Services,Other Operating Inc & Expend,3012,Viewable Media,Equip Furniture/Materials,Supplies and Services,"1,176.25",01-Mar-17,R,MISL LTD
12,101650,Printing,T/A Corporate Services,Other Operating Inc & Expend,3012,Viewable Media,Equip Furniture/Materials,Supplies and Services,"4,868.95",07-Mar-17,R,MISL LTD
12,101650,Printing,T/A Corporate Services,Other Operating Inc & Expend,3012,Viewable Media,Equip Furniture/Materials,Supplies and Services,"4,868.95",07-Mar-17,R,MISL LTD
12,101650,Printing,T/A Corporate Services,Other Operating Inc & Expend,3012,Viewable Media,Equip Furniture/Materials,Supplies and Services,"11,493.10",01-Mar-17,R,MISL LTD
12,101650,Printing,T/A Corporate Services,Other Operating Inc & Expend,3012,Viewable Media,Equip Furniture/Materials,Supplies and Services,"4,868.95",07-Mar-17,R,MISL LTD
12,101650,Printing,T/A Corporate Services,Other Operating Inc & Expend,3300,Printing,Prntng Stnry Gen Off Exp,Supplies and Services,601,01-Mar-17,R,LIMETREE OFFSET LTD
12,101650,Printing,T/A Corporate Services,Other Operating Inc & Expend,3300,Printing,Prntng Stnry Gen Off Exp,Supplies and Services,706,01-Mar-17,R,CLIFFE ENTERPRISE LTD
12,101650,Printing,T/A Corporate Services,Other Operating Inc & Expend,3300,Printing,Prntng Stnry Gen Off Exp,Supplies and Services,765,01-Mar-17,R,FINANCIAL DATA MANAGEMENT PLC
12,101650,Printing,T/A Corporate Services,Other Operating Inc & Expend,3300,Printing,Prntng Stnry Gen Off Exp,Supplies and Services,"5,180.00",01-Mar-17,R,CUSTOMISED GRAPHICS PRINT LTD
12,101650,Printing,T/A Corporate Services,Other Operating Inc & Expend,3300,Printing,Prntng Stnry Gen Off Exp,Supplies and Services,"7,621.10",17-Mar-17,R,CLIFFE ENTERPRISE LTD
12,101650,Printing,T/A Corporate Services,Other Operating Inc & Expend,3306,Postage,Prntng Stnry Gen Off Exp,Supplies and Services,540,10-Mar-17,R,CHESSINGTON CARS AND COURIERS
12,101651,PrintUnit-HighVolPhtcopying,T/A Corporate Services,Other Operating Inc & Expend,3304,Stationery,Prntng Stnry Gen Off Exp,Supplies and Services,"5,178.13",01-Mar-17,R,ENCORE PACKAGING SOLUTION
12,101651,PrintUnit-HighVolPhtcopying,T/A Corporate Services,Other Operating Inc & Expend,3305,Office Expenses,Prntng Stnry Gen Off Exp,Supplies and Services,"1,335.00",03-Mar-17,R,ENCORE ENVELOPES LIMITED
12,101700,Procurement,SupS Comm and Member Services,Non Distributed Costs (NDC),0070,Agency Staff - Corp Contract,Direct EmployeeExpenses-Agency,Employees,790,01-Mar-17,R,HAYS SPECIALIST RECRUITM'T LTD
12,101700,Procurement,SupS Comm and Member Services,Non Distributed Costs (NDC),0070,Agency Staff - Corp Contract,Direct EmployeeExpenses-Agency,Employees,"2,227.50",14-Mar-17,R,HAYS SPECIALIST RECRUITM'T LTD
12,101700,Procurement,SupS Comm and Member Services,Non Distributed Costs (NDC),0070,Agency Staff - Corp Contract,Direct EmployeeExpenses-Agency,Employees,"2,475.00",01-Mar-17,R,HAYS SPECIALIST RECRUITM'T LTD
12,101700,Procurement,SupS Comm and Member Services,Non Distributed Costs (NDC),0070,Agency Staff - Corp Contract,Direct EmployeeExpenses-Agency,Employees,"2,475.00",22-Mar-17,R,HAYS SPECIALIST RECRUITM'T LTD
12,101700,Procurement,SupS Comm and Member Services,Non Distributed Costs (NDC),0070,Agency Staff - Corp Contract,Direct EmployeeExpenses-Agency,Employees,"2,636.25",15-Mar-17,R,HAYS SPECIALIST RECRUITM'T LTD
12,101700,Procurement,SupS Comm and Member Services,Non Distributed Costs (NDC),0070,Agency Staff - Corp Contract,Direct EmployeeExpenses-Agency,Employees,"2,636.25",08-Mar-17,R,HAYS SPECIALIST RECRUITM'T LTD
12,101700,Procurement,SupS Comm and Member Services,Non Distributed Costs (NDC),0070,Agency Staff - Corp Contract,Direct EmployeeExpenses-Agency,Employees,"2,636.25",01-Mar-17,R,HAYS SPECIALIST RECRUITM'T LTD
12,101700,Procurement,SupS Comm and Member Services,Non Distributed Costs (NDC),0070,Agency Staff - Corp Contract,Direct EmployeeExpenses-Agency,Employees,"2,636.25",01-Mar-17,R,HAYS SPECIALIST RECRUITM'T LTD
12,101700,Procurement,SupS Comm and Member Services,Non Distributed Costs (NDC),0070,Agency Staff - Corp Contract,Direct EmployeeExpenses-Agency,Employees,"2,636.25",22-Mar-17,R,HAYS SPECIALIST RECRUITM'T LTD
12,101750,Client Finance Affairs,SupS IT,Non Distributed Costs (NDC),5202,Burials and Cremations,Housing Benefits,Transfer Payments,"1,287.00",01-Mar-17,R,REDACTED
12,200010,Director of Community& Housing,Hsg Dept Supp Staff & Costs,General Fund Housing,3414,Consultants,Services,Supplies and Services,"26,284.88",02-Mar-17,R,Savills
12,200090,Bed & Breakfast - accomm,Bed / breakfast accommodation,General Fund Housing,3996,(DO NOT USE) Contract Payments,Conversion,Supplies and Services,850,01-Mar-17,R,REDACTED
12,200090,Bed & Breakfast - accomm,Bed / breakfast accommodation,General Fund Housing,3996,(DO NOT USE) Contract Payments,Conversion,Supplies and Services,"1,236.90",01-Mar-17,R,REDACTED
12,200090,Bed & Breakfast - accomm,Bed / breakfast accommodation,General Fund Housing,3996,(DO NOT USE) Contract Payments,Conversion,Supplies and Services,"1,236.90",01-Mar-17,R,REDACTED
12,200090,Bed & Breakfast - accomm,Bed / breakfast accommodation,General Fund Housing,3996,(DO NOT USE) Contract Payments,Conversion,Supplies and Services,"1,236.90",01-Mar-17,R,REDACTED
12,200090,Bed & Breakfast - accomm,Bed / breakfast accommodation,General Fund Housing,3996,(DO NOT USE) Contract Payments,Conversion,Supplies and Services,"7,170.00",01-Mar-17,R,STENFORD PROPERTY LTD
12,200090,Bed & Breakfast - accomm,Bed / breakfast accommodation,General Fund Housing,3996,(DO NOT USE) Contract Payments,Conversion,Supplies and Services,504,01-Mar-17,R,SW LONDON LETTINGS LTD
12,200090,Bed & Breakfast - accomm,Bed / breakfast accommodation,General Fund Housing,3996,(DO NOT USE) Contract Payments,Conversion,Supplies and Services,540,01-Mar-17,R,EURO HOTELS (HOUNSLOW)
12,200090,Bed & Breakfast - accomm,Bed / breakfast accommodation,General Fund Housing,3996,(DO NOT USE) Contract Payments,Conversion,Supplies and Services,552,01-Mar-17,R,EURO HOTEL - LONDON WEMBLEY
12,200090,Bed & Breakfast - accomm,Bed / breakfast accommodation,General Fund Housing,3996,(DO NOT USE) Contract Payments,Conversion,Supplies and Services,570,01-Mar-17,R,EURO HOTELS (HOUNSLOW)
12,200090,Bed & Breakfast - accomm,Bed / breakfast accommodation,General Fund Housing,3996,(DO NOT USE) Contract Payments,Conversion,Supplies and Services,622.7,01-Mar-17,R,EURO HOTELS (THORNTON HEATH)
12,200090,Bed & Breakfast - accomm,Bed / breakfast accommodation,General Fund Housing,3996,(DO NOT USE) Contract Payments,Conversion,Supplies and Services,660,01-Mar-17,R,EURO HOTEL - LONDON WEMBLEY
12,200090,Bed & Breakfast - accomm,Bed / breakfast accommodation,General Fund Housing,3996,(DO NOT USE) Contract Payments,Conversion,Supplies and Services,720,01-Mar-17,R,EURO HOTELS (HOUNSLOW)
12,200090,Bed & Breakfast - accomm,Bed / breakfast accommodation,General Fund Housing,3996,(DO NOT USE) Contract Payments,Conversion,Supplies and Services,720,01-Mar-17,R,SW LONDON LETTINGS LTD
12,200090,Bed & Breakfast - accomm,Bed / breakfast accommodation,General Fund Housing,3996,(DO NOT USE) Contract Payments,Conversion,Supplies and Services,785,01-Mar-17,R,HYTYME B&B
12,200090,Bed & Breakfast - accomm,Bed / breakfast accommodation,General Fund Housing,3996,(DO NOT USE) Contract Payments,Conversion,Supplies and Services,828,01-Mar-17,R,SW LONDON LETTINGS LTD
12,200090,Bed & Breakfast - accomm,Bed / breakfast accommodation,General Fund Housing,3996,(DO NOT USE) Contract Payments,Conversion,Supplies and Services,924,01-Mar-17,R,EURO HOTEL - LONDON WEMBLEY
12,200090,Bed & Breakfast - accomm,Bed / breakfast accommodation,General Fund Housing,3996,(DO NOT USE) Contract Payments,Conversion,Supplies and Services,"1,023.00",01-Mar-17,R,EURO HOTEL - LONDON WEMBLEY
12,200090,Bed & Breakfast - accomm,Bed / breakfast accommodation,General Fund Housing,3996,(DO NOT USE) Contract Payments,Conversion,Supplies and Services,"1,085.00",01-Mar-17,R,EURO HOTELS (HOUNSLOW)
12,200090,Bed & Breakfast - accomm,Bed / breakfast accommodation,General Fund Housing,3996,(DO NOT USE) Contract Payments,Conversion,Supplies and Services,"1,102.50",01-Mar-17,R,EURO HOTEL (LEYTON) LTD
12,200090,Bed & Breakfast - accomm,Bed / breakfast accommodation,General Fund Housing,3996,(DO NOT USE) Contract Payments,Conversion,Supplies and Services,"1,116.00",01-Mar-17,R,SW LONDON LETTINGS LTD
12,200090,Bed & Breakfast - accomm,Bed / breakfast accommodation,General Fund Housing,3996,(DO NOT USE) Contract Payments,Conversion,Supplies and Services,"1,116.00",01-Mar-17,R,SW LONDON LETTINGS LTD
12,200090,Bed & Breakfast - accomm,Bed / breakfast accommodation,General Fund Housing,3996,(DO NOT USE) Contract Payments,Conversion,Supplies and Services,"1,116.00",01-Mar-17,R,SW LONDON LETTINGS LTD
12,200090,Bed & Breakfast - accomm,Bed / breakfast accommodation,General Fund Housing,3996,(DO NOT USE) Contract Payments,Conversion,Supplies and Services,"1,209.00",01-Mar-17,R,EURO HOTEL - LONDON WEMBLEY
12,200090,Bed & Breakfast - accomm,Bed / breakfast accommodation,General Fund Housing,3996,(DO NOT USE) Contract Payments,Conversion,Supplies and Services,"1,271.00",01-Mar-17,R,SW LONDON LETTINGS LTD
12,200090,Bed & Breakfast - accomm,Bed / breakfast accommodation,General Fund Housing,3996,(DO NOT USE) Contract Payments,Conversion,Supplies and Services,"1,271.00",01-Mar-17,R,SW LONDON LETTINGS LTD
12,200090,Bed & Breakfast - accomm,Bed / breakfast accommodation,General Fund Housing,3996,(DO NOT USE) Contract Payments,Conversion,Supplies and Services,"1,271.00",01-Mar-17,R,SW LONDON LETTINGS LTD
12,200090,Bed & Breakfast - accomm,Bed / breakfast accommodation,General Fund Housing,3996,(DO NOT USE) Contract Payments,Conversion,Supplies and Services,"1,344.00",03-Mar-17,R,RENT CONNECT LLP
12,200090,Bed & Breakfast - accomm,Bed / breakfast accommodation,General Fund Housing,3996,(DO NOT USE) Contract Payments,Conversion,Supplies and Services,"1,400.00",01-Mar-17,R,EURO HOTELS (HOUNSLOW)
12,200090,Bed & Breakfast - accomm,Bed / breakfast accommodation,General Fund Housing,3996,(DO NOT USE) Contract Payments,Conversion,Supplies and Services,"1,400.00",01-Mar-17,R,CROMWOOD HOUSING
12,200090,Bed & Breakfast - accomm,Bed / breakfast accommodation,General Fund Housing,3996,(DO NOT USE) Contract Payments,Conversion,Supplies and Services,"1,470.00",01-Mar-17,R,EURO HOTEL (LEYTON) LTD
12,200090,Bed & Breakfast - accomm,Bed / breakfast accommodation,General Fund Housing,3996,(DO NOT USE) Contract Payments,Conversion,Supplies and Services,"1,488.00",01-Mar-17,R,CAPITAL HOMES ESTATES
12,200090,Bed & Breakfast - accomm,Bed / breakfast accommodation,General Fund Housing,3996,(DO NOT USE) Contract Payments,Conversion,Supplies and Services,"1,540.00",01-Mar-17,R,CROMWOOD HOUSING
12,200090,Bed & Breakfast - accomm,Bed / breakfast accommodation,General Fund Housing,3996,(DO NOT USE) Contract Payments,Conversion,Supplies and Services,"1,550.00",01-Mar-17,R,EURO HOTELS (HOUNSLOW)
12,200090,Bed & Breakfast - accomm,Bed / breakfast accommodation,General Fund Housing,3996,(DO NOT USE) Contract Payments,Conversion,Supplies and Services,"1,605.00",01-Mar-17,R,SW LONDON LETTINGS LTD
12,200090,Bed & Breakfast - accomm,Bed / breakfast accommodation,General Fund Housing,3996,(DO NOT USE) Contract Payments,Conversion,Supplies and Services,"1,652.00",01-Mar-17,R,CROMWOOD HOUSING
12,200090,Bed & Breakfast - accomm,Bed / breakfast accommodation,General Fund Housing,3996,(DO NOT USE) Contract Payments,Conversion,Supplies and Services,"1,658.50",01-Mar-17,R,SW LONDON LETTINGS LTD
12,200090,Bed & Breakfast - accomm,Bed / breakfast accommodation,General Fund Housing,3996,(DO NOT USE) Contract Payments,Conversion,Supplies and Services,"1,658.50",01-Mar-17,R,SW LONDON LETTINGS LTD
12,200090,Bed & Breakfast - accomm,Bed / breakfast accommodation,General Fund Housing,3996,(DO NOT USE) Contract Payments,Conversion,Supplies and Services,"1,658.50",01-Mar-17,R,SW LONDON LETTINGS LTD
12,200090,Bed & Breakfast - accomm,Bed / breakfast accommodation,General Fund Housing,3996,(DO NOT USE) Contract Payments,Conversion,Supplies and Services,"1,658.50",01-Mar-17,R,SW LONDON LETTINGS LTD
12,200090,Bed & Breakfast - accomm,Bed / breakfast accommodation,General Fund Housing,3996,(DO NOT USE) Contract Payments,Conversion,Supplies and Services,"1,658.50",01-Mar-17,R,SW LONDON LETTINGS LTD
12,200090,Bed & Breakfast - accomm,Bed / breakfast accommodation,General Fund Housing,3996,(DO NOT USE) Contract Payments,Conversion,Supplies and Services,"1,658.50",01-Mar-17,R,SW LONDON LETTINGS LTD
12,200090,Bed & Breakfast - accomm,Bed / breakfast accommodation,General Fund Housing,3996,(DO NOT USE) Contract Payments,Conversion,Supplies and Services,"1,658.50",01-Mar-17,R,SW LONDON LETTINGS LTD
12,200090,Bed & Breakfast - accomm,Bed / breakfast accommodation,General Fund Housing,3996,(DO NOT USE) Contract Payments,Conversion,Supplies and Services,"1,658.50",01-Mar-17,R,SW LONDON LETTINGS LTD
12,200090,Bed & Breakfast - accomm,Bed / breakfast accommodation,General Fund Housing,3996,(DO NOT USE) Contract Payments,Conversion,Supplies and Services,"1,658.50",01-Mar-17,R,SW LONDON LETTINGS LTD
12,200090,Bed & Breakfast - accomm,Bed / breakfast accommodation,General Fund Housing,3996,(DO NOT USE) Contract Payments,Conversion,Supplies and Services,"1,658.50",01-Mar-17,R,SW LONDON LETTINGS LTD
12,200090,Bed & Breakfast - accomm,Bed / breakfast accommodation,General Fund Housing,3996,(DO NOT USE) Contract Payments,Conversion,Supplies and Services,"1,705.00",01-Mar-17,R,CROMWOOD HOUSING
12,200090,Bed & Breakfast - accomm,Bed / breakfast accommodation,General Fund Housing,3996,(DO NOT USE) Contract Payments,Conversion,Supplies and Services,"1,829.00",01-Mar-17,R,CROMWOOD HOUSING
12,200090,Bed & Breakfast - accomm,Bed / breakfast accommodation,General Fund Housing,3996,(DO NOT USE) Contract Payments,Conversion,Supplies and Services,"2,025.00",01-Mar-17,R,CROMWOOD HOUSING
12,200090,Bed & Breakfast - accomm,Bed / breakfast accommodation,General Fund Housing,3996,(DO NOT USE) Contract Payments,Conversion,Supplies and Services,"2,077.00",01-Mar-17,R,SW LONDON LETTINGS LTD
12,200090,Bed & Breakfast - accomm,Bed / breakfast accommodation,General Fund Housing,3996,(DO NOT USE) Contract Payments,Conversion,Supplies and Services,"2,077.00",01-Mar-17,R,SW LONDON LETTINGS LTD
12,200090,Bed & Breakfast - accomm,Bed / breakfast accommodation,General Fund Housing,3996,(DO NOT USE) Contract Payments,Conversion,Supplies and Services,"2,139.00",01-Mar-17,R,EURO HOTEL - LONDON WEMBLEY
12,200090,Bed & Breakfast - accomm,Bed / breakfast accommodation,General Fund Housing,3996,(DO NOT USE) Contract Payments,Conversion,Supplies and Services,"2,325.00",01-Mar-17,R,CROMWOOD HOUSING
12,200090,Bed & Breakfast - accomm,Bed / breakfast accommodation,General Fund Housing,3996,(DO NOT USE) Contract Payments,Conversion,Supplies and Services,"2,325.00",01-Mar-17,R,SW LONDON LETTINGS LTD
12,200090,Bed & Breakfast - accomm,Bed / breakfast accommodation,General Fund Housing,3996,(DO NOT USE) Contract Payments,Conversion,Supplies and Services,"2,660.00",01-Mar-17,R,SK HOUSING LTD
12,200090,Bed & Breakfast - accomm,Bed / breakfast accommodation,General Fund Housing,3996,(DO NOT USE) Contract Payments,Conversion,Supplies and Services,"6,199.20",01-Mar-17,R,APEX HOUSING SOLUTIONS
12,200090,Bed & Breakfast - accomm,Bed / breakfast accommodation,General Fund Housing,3996,(DO NOT USE) Contract Payments,Conversion,Supplies and Services,"6,692.00",01-Mar-17,R,STENFORD PROPERTY LTD
12,200090,Bed & Breakfast - accomm,Bed / breakfast accommodation,General Fund Housing,3996,(DO NOT USE) Contract Payments,Conversion,Supplies and Services,"8,285.80",01-Mar-17,R,FASTMOVE PROPERTIES
12,200090,Bed & Breakfast - accomm,Bed / breakfast accommodation,General Fund Housing,3996,(DO NOT USE) Contract Payments,Conversion,Supplies and Services,"10,510.50",01-Mar-17,R,FASTMOVE PROPERTIES
12,200090,Bed & Breakfast - accomm,Bed / breakfast accommodation,General Fund Housing,3996,(DO NOT USE) Contract Payments,Conversion,Supplies and Services,"11,400.00",01-Mar-17,R,VENTURE HOUSING(LONDON)LTD
12,200090,Bed & Breakfast - accomm,Bed / breakfast accommodation,General Fund Housing,3996,(DO NOT USE) Contract Payments,Conversion,Supplies and Services,"11,665.34",01-Mar-17,R,QUARTZ PROPERTIES
12,200090,Bed & Breakfast - accomm,Bed / breakfast accommodation,General Fund Housing,3996,(DO NOT USE) Contract Payments,Conversion,Supplies and Services,"18,717.95",01-Mar-17,R,CREST MANOR LTD
12,200090,Bed & Breakfast - accomm,Bed / breakfast accommodation,General Fund Housing,3996,(DO NOT USE) Contract Payments,Conversion,Supplies and Services,"44,567.98",01-Mar-17,R,VENTURE HOUSING(LONDON)LTD
12,200090,Bed & Breakfast - accomm,Bed / breakfast accommodation,General Fund Housing,3996,(DO NOT USE) Contract Payments,Conversion,Supplies and Services,"48,856.06",01-Mar-17,R,VENTURE HOUSING(LONDON)LTD
12,200090,Bed & Breakfast - accomm,Bed / breakfast accommodation,General Fund Housing,3996,(DO NOT USE) Contract Payments,Conversion,Supplies and Services,"106,600.00",01-Mar-17,R,ROOMS & STUDIOS MANAGEMENT
12,200090,Bed & Breakfast - accomm,Bed / breakfast accommodation,General Fund Housing,8274,Temporary accom rent contrib,Customer & Client Receipts,Income,"1,246.62",01-Mar-17,R,REDACTED
12,200093,Homelessness Prevention,Bed / breakfast accommodation,General Fund Housing,5200,Rent Deposits,Housing Benefits,Transfer Payments,"1,212.92",27-Mar-17,R,EARLSFIELD PROPERTIES
12,200093,Homelessness Prevention,Bed / breakfast accommodation,General Fund Housing,5200,Rent Deposits,Housing Benefits,Transfer Payments,"1,215.93",07-Mar-17,R,BRINKLEY'S ESTATE AGENTS
12,200093,Homelessness Prevention,Bed / breakfast accommodation,General Fund Housing,5200,Rent Deposits,Housing Benefits,Transfer Payments,"1,824.00",21-Mar-17,R,TIME2MOVE - T2M SW LONDON LTD
12,200093,Homelessness Prevention,Bed / breakfast accommodation,General Fund Housing,5200,Rent Deposits,Housing Benefits,Transfer Payments,"1,875.00",23-Mar-17,R,REDACTED
12,200093,Homelessness Prevention,Bed / breakfast accommodation,General Fund Housing,5200,Rent Deposits,Housing Benefits,Transfer Payments,"1,950.00",01-Mar-17,R,SPICERHAART ESTATE AGENTS LTD
12,200093,Homelessness Prevention,Bed / breakfast accommodation,General Fund Housing,5200,Rent Deposits,Housing Benefits,Transfer Payments,"2,000.00",27-Mar-17,R,REDACTED
12,200093,Homelessness Prevention,Bed / breakfast accommodation,General Fund Housing,5201,Rent Sanctuary Scheme,Housing Benefits,Transfer Payments,698.38,17-Mar-17,R,PJ HARVEY & CO LTD
12,200093,Homelessness Prevention,Bed / breakfast accommodation,General Fund Housing,5201,Rent Sanctuary Scheme,Housing Benefits,Transfer Payments,"2,631.92",29-Mar-17,R,CIRCLE HOUSING MERTON PRIORY
12,200123,Housing Needs & Enablg-central,Hsg Dept Supp Staff & Costs,General Fund Housing,3804,Subscriptions,Grants and Subscriptions,Supplies and Services,875,01-Mar-17,R,GREATER LONDON AUTHORITY
12,200200,Senior Management - ASC,Commissioning and Service Deli,Commissioning and Service Deli,0070,Agency Staff - Corp Contract,Direct EmployeeExpenses-Agency,Employees,"1,652.00",01-Mar-17,R,GATENBY SANDERSON
12,200200,Senior Management - ASC,Commissioning and Service Deli,Commissioning and Service Deli,0070,Agency Staff - Corp Contract,Direct EmployeeExpenses-Agency,Employees,"4,130.00",01-Mar-17,R,GATENBY SANDERSON
12,200200,Senior Management - ASC,Commissioning and Service Deli,Commissioning and Service Deli,0070,Agency Staff - Corp Contract,Direct EmployeeExpenses-Agency,Employees,"4,130.00",01-Mar-17,R,GATENBY SANDERSON
12,200200,Senior Management - ASC,Commissioning and Service Deli,Commissioning and Service Deli,0070,Agency Staff - Corp Contract,Direct EmployeeExpenses-Agency,Employees,"14,868.00",01-Mar-17,R,GATENBY SANDERSON
12,200200,Senior Management - ASC,Commissioning and Service Deli,Commissioning and Service Deli,0075,Agency Staff - Off Contract,Direct EmployeeExpenses-Agency,Employees,"3,304.00",01-Mar-17,R,GATENBY SANDERSON
12,200200,Senior Management - ASC,Commissioning and Service Deli,Commissioning and Service Deli,0075,Agency Staff - Off Contract,Direct EmployeeExpenses-Agency,Employees,"4,130.00",01-Mar-17,R,GATENBY SANDERSON
12,200200,Senior Management - ASC,Commissioning and Service Deli,Commissioning and Service Deli,3400,Fees,Services,Supplies and Services,"7,833.00",01-Mar-17,R,THE ROYAL BOROUGH OF KINGSTON
12,200200,Senior Management - ASC,Commissioning and Service Deli,Commissioning and Service Deli,3804,Subscriptions,Grants and Subscriptions,Supplies and Services,"5,000.00",01-Mar-17,R,CITY OF LONDON CORPORATION
12,200302,PH - Social Prescribing,Other public health service,Public Health,3997,(DO NOT USE) Special Projects,Conversion,Supplies and Services,"10,000.00",01-Mar-17,R,MERTON VOLUNTARY SERV COUNCIL
12,200304,PH - NHS Health check,NHS Health Check Programme,Public Health,3401,Medical Fees,Services,Supplies and Services,525,01-Mar-17,R,THE NELSON MEDICAL PRACTICE
12,200304,PH - NHS Health check,NHS Health Check Programme,Public Health,3401,Medical Fees,Services,Supplies and Services,550,01-Mar-17,R,RAVENSBURY MEDICAL CENTRE
12,200304,PH - NHS Health check,NHS Health Check Programme,Public Health,3401,Medical Fees,Services,Supplies and Services,575,01-Mar-17,R,FIGGES MARSH SURGERY
12,200304,PH - NHS Health check,NHS Health Check Programme,Public Health,3401,Medical Fees,Services,Supplies and Services,700,01-Mar-17,R,ALEXANDRA ROAD SURGERY
12,200304,PH - NHS Health check,NHS Health Check Programme,Public Health,3401,Medical Fees,Services,Supplies and Services,800,01-Mar-17,R,PRINCES ROAD SURGERY
12,200304,PH - NHS Health check,NHS Health Check Programme,Public Health,3401,Medical Fees,Services,Supplies and Services,"1,000.00",01-Mar-17,R,COLLIERS WOOD SURGERY
12,200304,PH - NHS Health check,NHS Health Check Programme,Public Health,3401,Medical Fees,Services,Supplies and Services,"1,000.00",01-Mar-17,R,JAMES O RIODAN MEDICAL PRAC.
12,200304,PH - NHS Health check,NHS Health Check Programme,Public Health,3401,Medical Fees,Services,Supplies and Services,"1,050.00",01-Mar-17,R,MORDEN HALL MEDICAL CENTRE
12,200304,PH - NHS Health check,NHS Health Check Programme,Public Health,3401,Medical Fees,Services,Supplies and Services,"1,150.00",01-Mar-17,R,STONECOT SURGERY
12,200304,PH - NHS Health check,NHS Health Check Programme,Public Health,3401,Medical Fees,Services,Supplies and Services,"1,300.00",01-Mar-17,R,GRAND DRIVE SURGERY
12,200304,PH - NHS Health check,NHS Health Check Programme,Public Health,3401,Medical Fees,Services,Supplies and Services,"1,425.00",01-Mar-17,R,MERTON MEDICAL PRACTICE
12,200304,PH - NHS Health check,NHS Health Check Programme,Public Health,3401,Medical Fees,Services,Supplies and Services,"3,250.00",01-Mar-17,R,THE NELSON MEDICAL PRACTICE
12,200304,PH - NHS Health check,NHS Health Check Programme,Public Health,3521,IT licences - Applications,Comms and Computing,Supplies and Services,"6,500.00",10-Mar-17,R,QUALITY MEDICAL SOLUTION
12,200315,PH - Sexual Health,"Advice, prevention and promoti",Public Health,3429,Contraception Costs,Services,Supplies and Services,"1,020.00",01-Mar-17,R,PRINCES ROAD SURGERY
12,200315,PH - Sexual Health,"Advice, prevention and promoti",Public Health,3429,Contraception Costs,Services,Supplies and Services,"2,180.00",01-Mar-17,R,THE NELSON MEDICAL PRACTICE
12,200315,PH - Sexual Health,"Advice, prevention and promoti",Public Health,3430,Health Tests,Services,Supplies and Services,540.38,01-Mar-17,R,HOMERTON UNI HOSP NHS FND'N TR
12,200315,PH - Sexual Health,"Advice, prevention and promoti",Public Health,3430,Health Tests,Services,Supplies and Services,"3,529.50",01-Mar-17,R,BARTS HEALTH NHS TRUST
12,200315,PH - Sexual Health,"Advice, prevention and promoti",Public Health,3430,Health Tests,Services,Supplies and Services,"4,194.00",01-Mar-17,R,IMPERIAL COLLEGE H'THCARE NHS
12,200315,PH - Sexual Health,"Advice, prevention and promoti",Public Health,3430,Health Tests,Services,Supplies and Services,"4,194.00",01-Mar-17,R,IMPERIAL COLLEGE H'THCARE NHS
12,200315,PH - Sexual Health,"Advice, prevention and promoti",Public Health,3430,Health Tests,Services,Supplies and Services,"18,403.99",01-Mar-17,R,CROYDON HEALTH SERV. NHS TRUST
12,200315,PH - Sexual Health,"Advice, prevention and promoti",Public Health,3430,Health Tests,Services,Supplies and Services,"19,603.91",01-Mar-17,R,CHELSEA & WESTMINSTER HOSPITAL
12,200315,PH - Sexual Health,"Advice, prevention and promoti",Public Health,3430,Health Tests,Services,Supplies and Services,"49,789.99",15-Mar-17,R,KINGSTON HOSP NHS FOUNDATION
12,200315,PH - Sexual Health,"Advice, prevention and promoti",Public Health,3430,Health Tests,Services,Supplies and Services,"81,110.18",01-Mar-17,R,ST GEORGES UNI HOSP NHS F'DN T
12,200321,Children's Programmes,Child obesity,Public Health,3997,(DO NOT USE) Special Projects,Conversion,Supplies and Services,"2,000.00",16-Mar-17,R,MITCHAM TOWN COMMUNITY TRUST
12,200321,Children's Programmes,Child obesity,Public Health,3997,(DO NOT USE) Special Projects,Conversion,Supplies and Services,"2,942.50",16-Mar-17,R,TA2
12,200321,Children's Programmes,Child obesity,Public Health,3997,(DO NOT USE) Special Projects,Conversion,Supplies and Services,"29,050.00",10-Mar-17,R,EcoLocal Service Ltd
12,200340,PH - Substance Misuse,Accident prevention,Public Health,3996,(DO NOT USE) Contract Payments,Conversion,Supplies and Services,"1,750.00",01-Mar-17,R,CRANSTOUN
12,200340,PH - Substance Misuse,Accident prevention,Public Health,3996,(DO NOT USE) Contract Payments,Conversion,Supplies and Services,"2,250.00",08-Mar-17,R,EQUINOX
12,200340,PH - Substance Misuse,Accident prevention,Public Health,4510,Public Health Payments,Adult Social Care,Third Party Payments,"11,169.23",01-Mar-17,R,HAYDONS PHARMACY
12,200340,PH - Substance Misuse,Accident prevention,Public Health,4510,Public Health Payments,Adult Social Care,Third Party Payments,"106,250.00",13-Mar-17,R,SW LONDON ST GEORGES NHS TRUST
12,200340,PH - Substance Misuse,Accident prevention,Public Health,4510,Public Health Payments,Adult Social Care,Third Party Payments,"106,250.00",17-Mar-17,R,SW LONDON ST GEORGES NHS TRUST
12,200341,PH - Prevention,Health Protection,Public Health,3996,(DO NOT USE) Contract Payments,Conversion,Supplies and Services,"34,583.08",01-Mar-17,R,HOUNSLOW & RICHM'D COMM H'CARE
12,200341,PH - Prevention,Health Protection,Public Health,3997,(DO NOT USE) Special Projects,Conversion,Supplies and Services,"1,076.84",01-Mar-17,R,TRIANGLE CONSULT SOC'L ENT'PRI
12,200361,PH - Public Health Main,Other public health service,Public Health,3997,(DO NOT USE) Special Projects,Conversion,Supplies and Services,"4,774.26",01-Mar-17,R,LONDON BOROUGH OF HARINGEY
12,200361,PH - Public Health Main,Other public health service,Public Health,3997,(DO NOT USE) Special Projects,Conversion,Supplies and Services,"1,014.00",03-Mar-17,R,MERTON VOLUNTARY SERV COUNCIL
12,200361,PH - Public Health Main,Other public health service,Public Health,3997,(DO NOT USE) Special Projects,Conversion,Supplies and Services,"1,182.46",01-Mar-17,R,MERTON VOLUNTARY SERV COUNCIL
12,200608,AE-Adult Education Main,Vocational - Adult Education,Non School Funding,1402,Use of Water,Water Services,Premises Related Expenses,"12,196.42",01-Mar-17,R,THAMES WATER UTILITIES LTD
12,200650,AE Commissioning Team,Vocational - Adult Education,Non School Funding,3414,Consultants,Services,Supplies and Services,"2,680.40",01-Mar-17,R,TCMD LTD
12,200821,Libraries Service-Civic Centre,Library DoS not split,Cultural and Related Services,1204,Rental Expenditure External,Rents,Premises Related Expenses,696,01-Mar-17,R,FIRST PORT RETIREMENT PROPERTY
12,200821,Libraries Service-Civic Centre,Library DoS not split,Cultural and Related Services,3013,Teaching Materials,Equip Furniture/Materials,Supplies and Services,"2,080.46",01-Mar-17,R,THE READING AGENCY
12,200821,Libraries Service-Civic Centre,Library DoS not split,Cultural and Related Services,3419,Security Services,Services,Supplies and Services,"7,008.76",01-Mar-17,R,SIGHT & SOUND
12,200821,Libraries Service-Civic Centre,Library DoS not split,Cultural and Related Services,3419,Security Services,Services,Supplies and Services,"7,218.54",01-Mar-17,R,SIGHT & SOUND
12,200826,Media Fund,Library DoS not split,Cultural and Related Services,3014,Books,Equip Furniture/Materials,Supplies and Services,626.88,09-Mar-17,R,ASKEWS & HOLTS LIBRARY SRV LTD
12,200826,Media Fund,Library DoS not split,Cultural and Related Services,3014,Books,Equip Furniture/Materials,Supplies and Services,635.25,09-Mar-17,R,ASKEWS & HOLTS LIBRARY SRV LTD
12,200826,Media Fund,Library DoS not split,Cultural and Related Services,3310,Publications,Prntng Stnry Gen Off Exp,Supplies and Services,515.64,01-Mar-17,R,DLT MEDIA (UK) LTD
12,221001,Older People Placements - East,OP 65&Over NursingCarePlacemts,Physical/ Sensory Support,4350,Residential Homes External,Adult Social Care,Third Party Payments,500,01-Mar-17,R,SOUTHPARK RESIDENTIAL HOME
12,221001,Older People Placements - East,OP 65&Over NursingCarePlacemts,Physical/ Sensory Support,4350,Residential Homes External,Adult Social Care,Third Party Payments,500,01-Mar-17,R,SOUTHPARK RESIDENTIAL HOME
12,221001,Older People Placements - East,OP 65&Over NursingCarePlacemts,Physical/ Sensory Support,4350,Residential Homes External,Adult Social Care,Third Party Payments,500,01-Mar-17,R,SOUTHPARK RESIDENTIAL HOME
12,221001,Older People Placements - East,OP 65&Over NursingCarePlacemts,Physical/ Sensory Support,4350,Residential Homes External,Adult Social Care,Third Party Payments,500,01-Mar-17,R,SOUTHPARK RESIDENTIAL HOME
12,221001,Older People Placements - East,OP 65&Over NursingCarePlacemts,Physical/ Sensory Support,4350,Residential Homes External,Adult Social Care,Third Party Payments,500,01-Mar-17,R,SOUTHPARK RESIDENTIAL HOME
12,221001,Older People Placements - East,OP 65&Over NursingCarePlacemts,Physical/ Sensory Support,4350,Residential Homes External,Adult Social Care,Third Party Payments,500,01-Mar-17,R,SOUTHPARK RESIDENTIAL HOME
12,221001,Older People Placements - East,OP 65&Over NursingCarePlacemts,Physical/ Sensory Support,4350,Residential Homes External,Adult Social Care,Third Party Payments,500,01-Mar-17,R,SOUTHPARK RESIDENTIAL HOME
12,221001,Older People Placements - East,OP 65&Over NursingCarePlacemts,Physical/ Sensory Support,4350,Residential Homes External,Adult Social Care,Third Party Payments,500,01-Mar-17,R,SOUTHPARK RESIDENTIAL HOME
12,221001,Older People Placements - East,OP 65&Over NursingCarePlacemts,Physical/ Sensory Support,4350,Residential Homes External,Adult Social Care,Third Party Payments,500,01-Mar-17,R,SOUTHPARK RESIDENTIAL HOME
12,221001,Older People Placements - East,OP 65&Over NursingCarePlacemts,Physical/ Sensory Support,4350,Residential Homes External,Adult Social Care,Third Party Payments,500,01-Mar-17,R,SOUTHPARK RESIDENTIAL HOME
12,221001,Older People Placements - East,OP 65&Over NursingCarePlacemts,Physical/ Sensory Support,4350,Residential Homes External,Adult Social Care,Third Party Payments,500,01-Mar-17,R,SOUTHPARK RESIDENTIAL HOME
12,221001,Older People Placements - East,OP 65&Over NursingCarePlacemts,Physical/ Sensory Support,4350,Residential Homes External,Adult Social Care,Third Party Payments,500,01-Mar-17,R,SOUTHPARK RESIDENTIAL HOME
12,221001,Older People Placements - East,OP 65&Over NursingCarePlacemts,Physical/ Sensory Support,4350,Residential Homes External,Adult Social Care,Third Party Payments,524.22,01-Mar-17,R,BHAKTI SHYAMA CARE CENTRE
12,221001,Older People Placements - East,OP 65&Over NursingCarePlacemts,Physical/ Sensory Support,4350,Residential Homes External,Adult Social Care,Third Party Payments,524.22,01-Mar-17,R,BHAKTI SHYAMA CARE CENTRE
12,221001,Older People Placements - East,OP 65&Over NursingCarePlacemts,Physical/ Sensory Support,4350,Residential Homes External,Adult Social Care,Third Party Payments,524.22,01-Mar-17,R,BHAKTI SHYAMA CARE CENTRE
12,221001,Older People Placements - East,OP 65&Over NursingCarePlacemts,Physical/ Sensory Support,4350,Residential Homes External,Adult Social Care,Third Party Payments,524.22,01-Mar-17,R,BHAKTI SHYAMA CARE CENTRE
12,221001,Older People Placements - East,OP 65&Over NursingCarePlacemts,Physical/ Sensory Support,4350,Residential Homes External,Adult Social Care,Third Party Payments,525,01-Mar-17,R,ROYAL CAMBRIDGE HOME
12,221001,Older People Placements - East,OP 65&Over NursingCarePlacemts,Physical/ Sensory Support,4350,Residential Homes External,Adult Social Care,Third Party Payments,525,01-Mar-17,R,ROYAL CAMBRIDGE HOME
12,221001,Older People Placements - East,OP 65&Over NursingCarePlacemts,Physical/ Sensory Support,4350,Residential Homes External,Adult Social Care,Third Party Payments,525,01-Mar-17,R,ROYAL CAMBRIDGE HOME
12,221001,Older People Placements - East,OP 65&Over NursingCarePlacemts,Physical/ Sensory Support,4350,Residential Homes External,Adult Social Care,Third Party Payments,525,01-Mar-17,R,ROYAL CAMBRIDGE HOME
12,221001,Older People Placements - East,OP 65&Over NursingCarePlacemts,Physical/ Sensory Support,4350,Residential Homes External,Adult Social Care,Third Party Payments,525,01-Mar-17,R,ROYAL CAMBRIDGE HOME
12,221001,Older People Placements - East,OP 65&Over NursingCarePlacemts,Physical/ Sensory Support,4350,Residential Homes External,Adult Social Care,Third Party Payments,525,01-Mar-17,R,ROYAL CAMBRIDGE HOME
12,221001,Older People Placements - East,OP 65&Over NursingCarePlacemts,Physical/ Sensory Support,4350,Residential Homes External,Adult Social Care,Third Party Payments,525,01-Mar-17,R,ROYAL CAMBRIDGE HOME
12,221001,Older People Placements - East,OP 65&Over NursingCarePlacemts,Physical/ Sensory Support,4350,Residential Homes External,Adult Social Care,Third Party Payments,525,01-Mar-17,R,ROYAL CAMBRIDGE HOME
12,221001,Older People Placements - East,OP 65&Over NursingCarePlacemts,Physical/ Sensory Support,4350,Residential Homes External,Adult Social Care,Third Party Payments,525,01-Mar-17,R,ROYAL CAMBRIDGE HOME
12,221001,Older People Placements - East,OP 65&Over NursingCarePlacemts,Physical/ Sensory Support,4350,Residential Homes External,Adult Social Care,Third Party Payments,525,01-Mar-17,R,ROYAL CAMBRIDGE HOME
12,221001,Older People Placements - East,OP 65&Over NursingCarePlacemts,Physical/ Sensory Support,4350,Residential Homes External,Adult Social Care,Third Party Payments,525,01-Mar-17,R,ROYAL CAMBRIDGE HOME
12,221001,Older People Placements - East,OP 65&Over NursingCarePlacemts,Physical/ Sensory Support,4350,Residential Homes External,Adult Social Care,Third Party Payments,525,01-Mar-17,R,ROYAL CAMBRIDGE HOME
12,221001,Older People Placements - East,OP 65&Over NursingCarePlacemts,Physical/ Sensory Support,4350,Residential Homes External,Adult Social Care,Third Party Payments,540,01-Mar-17,R,RUTLAND HOUSE CARE HOME
12,221001,Older People Placements - East,OP 65&Over NursingCarePlacemts,Physical/ Sensory Support,4350,Residential Homes External,Adult Social Care,Third Party Payments,540,01-Mar-17,R,RUTLAND HOUSE CARE HOME
12,221001,Older People Placements - East,OP 65&Over NursingCarePlacemts,Physical/ Sensory Support,4350,Residential Homes External,Adult Social Care,Third Party Payments,540,01-Mar-17,R,RUTLAND HOUSE CARE HOME
12,221001,Older People Placements - East,OP 65&Over NursingCarePlacemts,Physical/ Sensory Support,4350,Residential Homes External,Adult Social Care,Third Party Payments,540,01-Mar-17,R,RUTLAND HOUSE CARE HOME
12,221001,Older People Placements - East,OP 65&Over NursingCarePlacemts,Physical/ Sensory Support,4350,Residential Homes External,Adult Social Care,Third Party Payments,540,16-Mar-17,R,RUTLAND HOUSE CARE HOME
12,221001,Older People Placements - East,OP 65&Over NursingCarePlacemts,Physical/ Sensory Support,4350,Residential Homes External,Adult Social Care,Third Party Payments,540,16-Mar-17,R,RUTLAND HOUSE CARE HOME
12,221001,Older People Placements - East,OP 65&Over NursingCarePlacemts,Physical/ Sensory Support,4350,Residential Homes External,Adult Social Care,Third Party Payments,540,16-Mar-17,R,RUTLAND HOUSE CARE HOME
12,221001,Older People Placements - East,OP 65&Over NursingCarePlacemts,Physical/ Sensory Support,4350,Residential Homes External,Adult Social Care,Third Party Payments,540,16-Mar-17,R,RUTLAND HOUSE CARE HOME
12,221001,Older People Placements - East,OP 65&Over NursingCarePlacemts,Physical/ Sensory Support,4350,Residential Homes External,Adult Social Care,Third Party Payments,540,16-Mar-17,R,RUTLAND HOUSE CARE HOME
12,221001,Older People Placements - East,OP 65&Over NursingCarePlacemts,Physical/ Sensory Support,4350,Residential Homes External,Adult Social Care,Third Party Payments,540,16-Mar-17,R,RUTLAND HOUSE CARE HOME
12,221001,Older People Placements - East,OP 65&Over NursingCarePlacemts,Physical/ Sensory Support,4350,Residential Homes External,Adult Social Care,Third Party Payments,540,16-Mar-17,R,RUTLAND HOUSE CARE HOME
12,221001,Older People Placements - East,OP 65&Over NursingCarePlacemts,Physical/ Sensory Support,4350,Residential Homes External,Adult Social Care,Third Party Payments,540,16-Mar-17,R,RUTLAND HOUSE CARE HOME
12,221001,Older People Placements - East,OP 65&Over NursingCarePlacemts,Physical/ Sensory Support,4350,Residential Homes External,Adult Social Care,Third Party Payments,540,16-Mar-17,R,RUTLAND HOUSE CARE HOME
12,221001,Older People Placements - East,OP 65&Over NursingCarePlacemts,Physical/ Sensory Support,4350,Residential Homes External,Adult Social Care,Third Party Payments,540,16-Mar-17,R,RUTLAND HOUSE CARE HOME
12,221001,Older People Placements - East,OP 65&Over NursingCarePlacemts,Physical/ Sensory Support,4350,Residential Homes External,Adult Social Care,Third Party Payments,540,16-Mar-17,R,RUTLAND HOUSE CARE HOME
12,221001,Older People Placements - East,OP 65&Over NursingCarePlacemts,Physical/ Sensory Support,4350,Residential Homes External,Adult Social Care,Third Party Payments,540,16-Mar-17,R,RUTLAND HOUSE CARE HOME
12,221001,Older People Placements - East,OP 65&Over NursingCarePlacemts,Physical/ Sensory Support,4350,Residential Homes External,Adult Social Care,Third Party Payments,540,02-Mar-17,R,BEECHWOOD HOUSE
12,221001,Older People Placements - East,OP 65&Over NursingCarePlacemts,Physical/ Sensory Support,4350,Residential Homes External,Adult Social Care,Third Party Payments,540,02-Mar-17,R,BEECHWOOD HOUSE
12,221001,Older People Placements - East,OP 65&Over NursingCarePlacemts,Physical/ Sensory Support,4350,Residential Homes External,Adult Social Care,Third Party Payments,540,02-Mar-17,R,BEECHWOOD HOUSE
12,221001,Older People Placements - East,OP 65&Over NursingCarePlacemts,Physical/ Sensory Support,4350,Residential Homes External,Adult Social Care,Third Party Payments,540,02-Mar-17,R,BEECHWOOD HOUSE
12,221001,Older People Placements - East,OP 65&Over NursingCarePlacemts,Physical/ Sensory Support,4350,Residential Homes External,Adult Social Care,Third Party Payments,540,01-Mar-17,R,THE WILLOWS CARE HOME
12,221001,Older People Placements - East,OP 65&Over NursingCarePlacemts,Physical/ Sensory Support,4350,Residential Homes External,Adult Social Care,Third Party Payments,540,01-Mar-17,R,THE WILLOWS CARE HOME
12,221001,Older People Placements - East,OP 65&Over NursingCarePlacemts,Physical/ Sensory Support,4350,Residential Homes External,Adult Social Care,Third Party Payments,540,01-Mar-17,R,THE WILLOWS CARE HOME
12,221001,Older People Placements - East,OP 65&Over NursingCarePlacemts,Physical/ Sensory Support,4350,Residential Homes External,Adult Social Care,Third Party Payments,540,01-Mar-17,R,THE WILLOWS CARE HOME
12,221001,Older People Placements - East,OP 65&Over NursingCarePlacemts,Physical/ Sensory Support,4350,Residential Homes External,Adult Social Care,Third Party Payments,540,01-Mar-17,R,THE WILLOWS CARE HOME
12,221001,Older People Placements - East,OP 65&Over NursingCarePlacemts,Physical/ Sensory Support,4350,Residential Homes External,Adult Social Care,Third Party Payments,540,01-Mar-17,R,THE WILLOWS CARE HOME
12,221001,Older People Placements - East,OP 65&Over NursingCarePlacemts,Physical/ Sensory Support,4350,Residential Homes External,Adult Social Care,Third Party Payments,540,01-Mar-17,R,THE WILLOWS CARE HOME
12,221001,Older People Placements - East,OP 65&Over NursingCarePlacemts,Physical/ Sensory Support,4350,Residential Homes External,Adult Social Care,Third Party Payments,540,01-Mar-17,R,THE WILLOWS CARE HOME
12,221001,Older People Placements - East,OP 65&Over NursingCarePlacemts,Physical/ Sensory Support,4350,Residential Homes External,Adult Social Care,Third Party Payments,543.71,01-Mar-17,R,HILLVIEW
12,221001,Older People Placements - East,OP 65&Over NursingCarePlacemts,Physical/ Sensory Support,4350,Residential Homes External,Adult Social Care,Third Party Payments,543.71,01-Mar-17,R,HILLVIEW
12,221001,Older People Placements - East,OP 65&Over NursingCarePlacemts,Physical/ Sensory Support,4350,Residential Homes External,Adult Social Care,Third Party Payments,543.71,01-Mar-17,R,HILLVIEW
12,221001,Older People Placements - East,OP 65&Over NursingCarePlacemts,Physical/ Sensory Support,4350,Residential Homes External,Adult Social Care,Third Party Payments,543.71,01-Mar-17,R,HILLVIEW
12,221001,Older People Placements - East,OP 65&Over NursingCarePlacemts,Physical/ Sensory Support,4350,Residential Homes External,Adult Social Care,Third Party Payments,550,01-Mar-17,R,KEW HOUSE
12,221001,Older People Placements - East,OP 65&Over NursingCarePlacemts,Physical/ Sensory Support,4350,Residential Homes External,Adult Social Care,Third Party Payments,550,01-Mar-17,R,KEW HOUSE
12,221001,Older People Placements - East,OP 65&Over NursingCarePlacemts,Physical/ Sensory Support,4350,Residential Homes External,Adult Social Care,Third Party Payments,550,01-Mar-17,R,KEW HOUSE
12,221001,Older People Placements - East,OP 65&Over NursingCarePlacemts,Physical/ Sensory Support,4350,Residential Homes External,Adult Social Care,Third Party Payments,550,01-Mar-17,R,KEW HOUSE
12,221001,Older People Placements - East,OP 65&Over NursingCarePlacemts,Physical/ Sensory Support,4350,Residential Homes External,Adult Social Care,Third Party Payments,578,01-Mar-17,R,LIFESTYLE CARE MANAGEMENT LTD
12,221001,Older People Placements - East,OP 65&Over NursingCarePlacemts,Physical/ Sensory Support,4350,Residential Homes External,Adult Social Care,Third Party Payments,578,01-Mar-17,R,LIFESTYLE CARE MANAGEMENT LTD
12,221001,Older People Placements - East,OP 65&Over NursingCarePlacemts,Physical/ Sensory Support,4350,Residential Homes External,Adult Social Care,Third Party Payments,578,01-Mar-17,R,LIFESTYLE CARE MANAGEMENT LTD
12,221001,Older People Placements - East,OP 65&Over NursingCarePlacemts,Physical/ Sensory Support,4350,Residential Homes External,Adult Social Care,Third Party Payments,578,01-Mar-17,R,LIFESTYLE CARE MANAGEMENT LTD
12,221001,Older People Placements - East,OP 65&Over NursingCarePlacemts,Physical/ Sensory Support,4350,Residential Homes External,Adult Social Care,Third Party Payments,578,01-Mar-17,R,LIFESTYLE CARE MANAGEMENT LTD
12,221001,Older People Placements - East,OP 65&Over NursingCarePlacemts,Physical/ Sensory Support,4350,Residential Homes External,Adult Social Care,Third Party Payments,578,01-Mar-17,R,LIFESTYLE CARE MANAGEMENT LTD
12,221001,Older People Placements - East,OP 65&Over NursingCarePlacemts,Physical/ Sensory Support,4350,Residential Homes External,Adult Social Care,Third Party Payments,578,01-Mar-17,R,LIFESTYLE CARE MANAGEMENT LTD
12,221001,Older People Placements - East,OP 65&Over NursingCarePlacemts,Physical/ Sensory Support,4350,Residential Homes External,Adult Social Care,Third Party Payments,578,01-Mar-17,R,LIFESTYLE CARE MANAGEMENT LTD
12,221001,Older People Placements - East,OP 65&Over NursingCarePlacemts,Physical/ Sensory Support,4350,Residential Homes External,Adult Social Care,Third Party Payments,578,01-Mar-17,R,LIFESTYLE CARE MANAGEMENT LTD
12,221001,Older People Placements - East,OP 65&Over NursingCarePlacemts,Physical/ Sensory Support,4350,Residential Homes External,Adult Social Care,Third Party Payments,578,01-Mar-17,R,LIFESTYLE CARE MANAGEMENT LTD
12,221001,Older People Placements - East,OP 65&Over NursingCarePlacemts,Physical/ Sensory Support,4350,Residential Homes External,Adult Social Care,Third Party Payments,578,01-Mar-17,R,LIFESTYLE CARE MANAGEMENT LTD
12,221001,Older People Placements - East,OP 65&Over NursingCarePlacemts,Physical/ Sensory Support,4350,Residential Homes External,Adult Social Care,Third Party Payments,578,01-Mar-17,R,LIFESTYLE CARE MANAGEMENT LTD
12,221001,Older People Placements - East,OP 65&Over NursingCarePlacemts,Physical/ Sensory Support,4350,Residential Homes External,Adult Social Care,Third Party Payments,578,01-Mar-17,R,LIFESTYLE CARE MANAGEMENT LTD
12,221001,Older People Placements - East,OP 65&Over NursingCarePlacemts,Physical/ Sensory Support,4350,Residential Homes External,Adult Social Care,Third Party Payments,578,01-Mar-17,R,LIFESTYLE CARE MANAGEMENT LTD
12,221001,Older People Placements - East,OP 65&Over NursingCarePlacemts,Physical/ Sensory Support,4350,Residential Homes External,Adult Social Care,Third Party Payments,578,01-Mar-17,R,LIFESTYLE CARE MANAGEMENT LTD
12,221001,Older People Placements - East,OP 65&Over NursingCarePlacemts,Physical/ Sensory Support,4350,Residential Homes External,Adult Social Care,Third Party Payments,578,01-Mar-17,R,LIFESTYLE CARE MANAGEMENT LTD
12,221001,Older People Placements - East,OP 65&Over NursingCarePlacemts,Physical/ Sensory Support,4350,Residential Homes External,Adult Social Care,Third Party Payments,578,01-Mar-17,R,LIFESTYLE CARE MANAGEMENT LTD
12,221001,Older People Placements - East,OP 65&Over NursingCarePlacemts,Physical/ Sensory Support,4350,Residential Homes External,Adult Social Care,Third Party Payments,578,01-Mar-17,R,LIFESTYLE CARE MANAGEMENT LTD
12,221001,Older People Placements - East,OP 65&Over NursingCarePlacemts,Physical/ Sensory Support,4350,Residential Homes External,Adult Social Care,Third Party Payments,578,01-Mar-17,R,LIFESTYLE CARE MANAGEMENT LTD
12,221001,Older People Placements - East,OP 65&Over NursingCarePlacemts,Physical/ Sensory Support,4350,Residential Homes External,Adult Social Care,Third Party Payments,578,01-Mar-17,R,LIFESTYLE CARE MANAGEMENT LTD
12,221001,Older People Placements - East,OP 65&Over NursingCarePlacemts,Physical/ Sensory Support,4350,Residential Homes External,Adult Social Care,Third Party Payments,578,01-Mar-17,R,LIFESTYLE CARE MANAGEMENT LTD
12,221001,Older People Placements - East,OP 65&Over NursingCarePlacemts,Physical/ Sensory Support,4350,Residential Homes External,Adult Social Care,Third Party Payments,578,01-Mar-17,R,LIFESTYLE CARE MANAGEMENT LTD
12,221001,Older People Placements - East,OP 65&Over NursingCarePlacemts,Physical/ Sensory Support,4350,Residential Homes External,Adult Social Care,Third Party Payments,578,01-Mar-17,R,LIFESTYLE CARE MANAGEMENT LTD
12,221001,Older People Placements - East,OP 65&Over NursingCarePlacemts,Physical/ Sensory Support,4350,Residential Homes External,Adult Social Care,Third Party Payments,578,01-Mar-17,R,LIFESTYLE CARE MANAGEMENT LTD
12,221001,Older People Placements - East,OP 65&Over NursingCarePlacemts,Physical/ Sensory Support,4350,Residential Homes External,Adult Social Care,Third Party Payments,578,01-Mar-17,R,LIFESTYLE CARE MANAGEMENT LTD
12,221001,Older People Placements - East,OP 65&Over NursingCarePlacemts,Physical/ Sensory Support,4350,Residential Homes External,Adult Social Care,Third Party Payments,578,01-Mar-17,R,LIFESTYLE CARE MANAGEMENT LTD
12,221001,Older People Placements - East,OP 65&Over NursingCarePlacemts,Physical/ Sensory Support,4350,Residential Homes External,Adult Social Care,Third Party Payments,578,01-Mar-17,R,LIFESTYLE CARE MANAGEMENT LTD
12,221001,Older People Placements - East,OP 65&Over NursingCarePlacemts,Physical/ Sensory Support,4350,Residential Homes External,Adult Social Care,Third Party Payments,578,01-Mar-17,R,LIFESTYLE CARE MANAGEMENT LTD
12,221001,Older People Placements - East,OP 65&Over NursingCarePlacemts,Physical/ Sensory Support,4350,Residential Homes External,Adult Social Care,Third Party Payments,578,01-Mar-17,R,LIFESTYLE CARE MANAGEMENT LTD
12,221001,Older People Placements - East,OP 65&Over NursingCarePlacemts,Physical/ Sensory Support,4350,Residential Homes External,Adult Social Care,Third Party Payments,578,01-Mar-17,R,LIFESTYLE CARE MANAGEMENT LTD
12,221001,Older People Placements - East,OP 65&Over NursingCarePlacemts,Physical/ Sensory Support,4350,Residential Homes External,Adult Social Care,Third Party Payments,578,01-Mar-17,R,LIFESTYLE CARE MANAGEMENT LTD
12,221001,Older People Placements - East,OP 65&Over NursingCarePlacemts,Physical/ Sensory Support,4350,Residential Homes External,Adult Social Care,Third Party Payments,578,01-Mar-17,R,LIFESTYLE CARE MANAGEMENT LTD
12,221001,Older People Placements - East,OP 65&Over NursingCarePlacemts,Physical/ Sensory Support,4350,Residential Homes External,Adult Social Care,Third Party Payments,578,01-Mar-17,R,LIFESTYLE CARE MANAGEMENT LTD
12,221001,Older People Placements - East,OP 65&Over NursingCarePlacemts,Physical/ Sensory Support,4350,Residential Homes External,Adult Social Care,Third Party Payments,578,01-Mar-17,R,LIFESTYLE CARE MANAGEMENT LTD
12,221001,Older People Placements - East,OP 65&Over NursingCarePlacemts,Physical/ Sensory Support,4350,Residential Homes External,Adult Social Care,Third Party Payments,578,01-Mar-17,R,LIFESTYLE CARE MANAGEMENT LTD
12,221001,Older People Placements - East,OP 65&Over NursingCarePlacemts,Physical/ Sensory Support,4350,Residential Homes External,Adult Social Care,Third Party Payments,578,01-Mar-17,R,LIFESTYLE CARE MANAGEMENT LTD
12,221001,Older People Placements - East,OP 65&Over NursingCarePlacemts,Physical/ Sensory Support,4350,Residential Homes External,Adult Social Care,Third Party Payments,578,01-Mar-17,R,LIFESTYLE CARE MANAGEMENT LTD
12,221001,Older People Placements - East,OP 65&Over NursingCarePlacemts,Physical/ Sensory Support,4350,Residential Homes External,Adult Social Care,Third Party Payments,578,01-Mar-17,R,LIFESTYLE CARE MANAGEMENT LTD
12,221001,Older People Placements - East,OP 65&Over NursingCarePlacemts,Physical/ Sensory Support,4350,Residential Homes External,Adult Social Care,Third Party Payments,578,01-Mar-17,R,LIFESTYLE CARE MANAGEMENT LTD
12,221001,Older People Placements - East,OP 65&Over NursingCarePlacemts,Physical/ Sensory Support,4350,Residential Homes External,Adult Social Care,Third Party Payments,578,01-Mar-17,R,LIFESTYLE CARE MANAGEMENT LTD
12,221001,Older People Placements - East,OP 65&Over NursingCarePlacemts,Physical/ Sensory Support,4350,Residential Homes External,Adult Social Care,Third Party Payments,578,01-Mar-17,R,LIFESTYLE CARE MANAGEMENT LTD
12,221001,Older People Placements - East,OP 65&Over NursingCarePlacemts,Physical/ Sensory Support,4350,Residential Homes External,Adult Social Care,Third Party Payments,578,01-Mar-17,R,LIFESTYLE CARE MANAGEMENT LTD
12,221001,Older People Placements - East,OP 65&Over NursingCarePlacemts,Physical/ Sensory Support,4350,Residential Homes External,Adult Social Care,Third Party Payments,578,01-Mar-17,R,LIFESTYLE CARE MANAGEMENT LTD
12,221001,Older People Placements - East,OP 65&Over NursingCarePlacemts,Physical/ Sensory Support,4350,Residential Homes External,Adult Social Care,Third Party Payments,578,01-Mar-17,R,LIFESTYLE CARE MANAGEMENT LTD
12,221001,Older People Placements - East,OP 65&Over NursingCarePlacemts,Physical/ Sensory Support,4350,Residential Homes External,Adult Social Care,Third Party Payments,578,01-Mar-17,R,LIFESTYLE CARE MANAGEMENT LTD
12,221001,Older People Placements - East,OP 65&Over NursingCarePlacemts,Physical/ Sensory Support,4350,Residential Homes External,Adult Social Care,Third Party Payments,578,01-Mar-17,R,LIFESTYLE CARE MANAGEMENT LTD
12,221001,Older People Placements - East,OP 65&Over NursingCarePlacemts,Physical/ Sensory Support,4350,Residential Homes External,Adult Social Care,Third Party Payments,578,01-Mar-17,R,LIFESTYLE CARE MANAGEMENT LTD
12,221001,Older People Placements - East,OP 65&Over NursingCarePlacemts,Physical/ Sensory Support,4350,Residential Homes External,Adult Social Care,Third Party Payments,578,01-Mar-17,R,LIFESTYLE CARE MANAGEMENT LTD
12,221001,Older People Placements - East,OP 65&Over NursingCarePlacemts,Physical/ Sensory Support,4350,Residential Homes External,Adult Social Care,Third Party Payments,578,01-Mar-17,R,LIFESTYLE CARE MANAGEMENT LTD
12,221001,Older People Placements - East,OP 65&Over NursingCarePlacemts,Physical/ Sensory Support,4350,Residential Homes External,Adult Social Care,Third Party Payments,578,01-Mar-17,R,LIFESTYLE CARE MANAGEMENT LTD
12,221001,Older People Placements - East,OP 65&Over NursingCarePlacemts,Physical/ Sensory Support,4350,Residential Homes External,Adult Social Care,Third Party Payments,578,01-Mar-17,R,LIFESTYLE CARE MANAGEMENT LTD
12,221001,Older People Placements - East,OP 65&Over NursingCarePlacemts,Physical/ Sensory Support,4350,Residential Homes External,Adult Social Care,Third Party Payments,578,01-Mar-17,R,LIFESTYLE CARE MANAGEMENT LTD
12,221001,Older People Placements - East,OP 65&Over NursingCarePlacemts,Physical/ Sensory Support,4350,Residential Homes External,Adult Social Care,Third Party Payments,578,01-Mar-17,R,LIFESTYLE CARE MANAGEMENT LTD
12,221001,Older People Placements - East,OP 65&Over NursingCarePlacemts,Physical/ Sensory Support,4350,Residential Homes External,Adult Social Care,Third Party Payments,578,01-Mar-17,R,LIFESTYLE CARE MANAGEMENT LTD
12,221001,Older People Placements - East,OP 65&Over NursingCarePlacemts,Physical/ Sensory Support,4350,Residential Homes External,Adult Social Care,Third Party Payments,578,01-Mar-17,R,LIFESTYLE CARE MANAGEMENT LTD
12,221001,Older People Placements - East,OP 65&Over NursingCarePlacemts,Physical/ Sensory Support,4350,Residential Homes External,Adult Social Care,Third Party Payments,578,01-Mar-17,R,LIFESTYLE CARE MANAGEMENT LTD
12,221001,Older People Placements - East,OP 65&Over NursingCarePlacemts,Physical/ Sensory Support,4350,Residential Homes External,Adult Social Care,Third Party Payments,578,01-Mar-17,R,LIFESTYLE CARE MANAGEMENT LTD
12,221001,Older People Placements - East,OP 65&Over NursingCarePlacemts,Physical/ Sensory Support,4350,Residential Homes External,Adult Social Care,Third Party Payments,578,01-Mar-17,R,LIFESTYLE CARE MANAGEMENT LTD
12,221001,Older People Placements - East,OP 65&Over NursingCarePlacemts,Physical/ Sensory Support,4350,Residential Homes External,Adult Social Care,Third Party Payments,578,01-Mar-17,R,LIFESTYLE CARE MANAGEMENT LTD
12,221001,Older People Placements - East,OP 65&Over NursingCarePlacemts,Physical/ Sensory Support,4350,Residential Homes External,Adult Social Care,Third Party Payments,578,01-Mar-17,R,LIFESTYLE CARE MANAGEMENT LTD
12,221001,Older People Placements - East,OP 65&Over NursingCarePlacemts,Physical/ Sensory Support,4350,Residential Homes External,Adult Social Care,Third Party Payments,578,01-Mar-17,R,LIFESTYLE CARE MANAGEMENT LTD
12,221001,Older People Placements - East,OP 65&Over NursingCarePlacemts,Physical/ Sensory Support,4350,Residential Homes External,Adult Social Care,Third Party Payments,578,01-Mar-17,R,LIFESTYLE CARE MANAGEMENT LTD
12,221001,Older People Placements - East,OP 65&Over NursingCarePlacemts,Physical/ Sensory Support,4350,Residential Homes External,Adult Social Care,Third Party Payments,578,01-Mar-17,R,LIFESTYLE CARE MANAGEMENT LTD
12,221001,Older People Placements - East,OP 65&Over NursingCarePlacemts,Physical/ Sensory Support,4350,Residential Homes External,Adult Social Care,Third Party Payments,578,01-Mar-17,R,LIFESTYLE CARE MANAGEMENT LTD
12,221001,Older People Placements - East,OP 65&Over NursingCarePlacemts,Physical/ Sensory Support,4350,Residential Homes External,Adult Social Care,Third Party Payments,578,01-Mar-17,R,LIFESTYLE CARE MANAGEMENT LTD
12,221001,Older People Placements - East,OP 65&Over NursingCarePlacemts,Physical/ Sensory Support,4350,Residential Homes External,Adult Social Care,Third Party Payments,578,01-Mar-17,R,LIFESTYLE CARE MANAGEMENT LTD
12,221001,Older People Placements - East,OP 65&Over NursingCarePlacemts,Physical/ Sensory Support,4350,Residential Homes External,Adult Social Care,Third Party Payments,578,01-Mar-17,R,LIFESTYLE CARE MANAGEMENT LTD
12,221001,Older People Placements - East,OP 65&Over NursingCarePlacemts,Physical/ Sensory Support,4350,Residential Homes External,Adult Social Care,Third Party Payments,578,01-Mar-17,R,LIFESTYLE CARE MANAGEMENT LTD
12,221001,Older People Placements - East,OP 65&Over NursingCarePlacemts,Physical/ Sensory Support,4350,Residential Homes External,Adult Social Care,Third Party Payments,578,01-Mar-17,R,LIFESTYLE CARE MANAGEMENT LTD
12,221001,Older People Placements - East,OP 65&Over NursingCarePlacemts,Physical/ Sensory Support,4350,Residential Homes External,Adult Social Care,Third Party Payments,578,01-Mar-17,R,LIFESTYLE CARE MANAGEMENT LTD
12,221001,Older People Placements - East,OP 65&Over NursingCarePlacemts,Physical/ Sensory Support,4350,Residential Homes External,Adult Social Care,Third Party Payments,578,01-Mar-17,R,LIFESTYLE CARE MANAGEMENT LTD
12,221001,Older People Placements - East,OP 65&Over NursingCarePlacemts,Physical/ Sensory Support,4350,Residential Homes External,Adult Social Care,Third Party Payments,578,01-Mar-17,R,LIFESTYLE CARE MANAGEMENT LTD
12,221001,Older People Placements - East,OP 65&Over NursingCarePlacemts,Physical/ Sensory Support,4350,Residential Homes External,Adult Social Care,Third Party Payments,578,01-Mar-17,R,LIFESTYLE CARE MANAGEMENT LTD
12,221001,Older People Placements - East,OP 65&Over NursingCarePlacemts,Physical/ Sensory Support,4350,Residential Homes External,Adult Social Care,Third Party Payments,578,01-Mar-17,R,LIFESTYLE CARE MANAGEMENT LTD
12,221001,Older People Placements - East,OP 65&Over NursingCarePlacemts,Physical/ Sensory Support,4350,Residential Homes External,Adult Social Care,Third Party Payments,578,01-Mar-17,R,LIFESTYLE CARE MANAGEMENT LTD
12,221001,Older People Placements - East,OP 65&Over NursingCarePlacemts,Physical/ Sensory Support,4350,Residential Homes External,Adult Social Care,Third Party Payments,578,01-Mar-17,R,LIFESTYLE CARE MANAGEMENT LTD
12,221001,Older People Placements - East,OP 65&Over NursingCarePlacemts,Physical/ Sensory Support,4350,Residential Homes External,Adult Social Care,Third Party Payments,578,01-Mar-17,R,LIFESTYLE CARE MANAGEMENT LTD
12,221001,Older People Placements - East,OP 65&Over NursingCarePlacemts,Physical/ Sensory Support,4350,Residential Homes External,Adult Social Care,Third Party Payments,578,01-Mar-17,R,LIFESTYLE CARE MANAGEMENT LTD
12,221001,Older People Placements - East,OP 65&Over NursingCarePlacemts,Physical/ Sensory Support,4350,Residential Homes External,Adult Social Care,Third Party Payments,578,01-Mar-17,R,LIFESTYLE CARE MANAGEMENT LTD
12,221001,Older People Placements - East,OP 65&Over NursingCarePlacemts,Physical/ Sensory Support,4350,Residential Homes External,Adult Social Care,Third Party Payments,578,01-Mar-17,R,LIFESTYLE CARE MANAGEMENT LTD
12,221001,Older People Placements - East,OP 65&Over NursingCarePlacemts,Physical/ Sensory Support,4350,Residential Homes External,Adult Social Care,Third Party Payments,578,01-Mar-17,R,LIFESTYLE CARE MANAGEMENT LTD
12,221001,Older People Placements - East,OP 65&Over NursingCarePlacemts,Physical/ Sensory Support,4350,Residential Homes External,Adult Social Care,Third Party Payments,578,01-Mar-17,R,LIFESTYLE CARE MANAGEMENT LTD
12,221001,Older People Placements - East,OP 65&Over NursingCarePlacemts,Physical/ Sensory Support,4350,Residential Homes External,Adult Social Care,Third Party Payments,578,01-Mar-17,R,LIFESTYLE CARE MANAGEMENT LTD
12,221001,Older People Placements - East,OP 65&Over NursingCarePlacemts,Physical/ Sensory Support,4350,Residential Homes External,Adult Social Care,Third Party Payments,578,01-Mar-17,R,LIFESTYLE CARE MANAGEMENT LTD
12,221001,Older People Placements - East,OP 65&Over NursingCarePlacemts,Physical/ Sensory Support,4350,Residential Homes External,Adult Social Care,Third Party Payments,578,01-Mar-17,R,LIFESTYLE CARE MANAGEMENT LTD
12,221001,Older People Placements - East,OP 65&Over NursingCarePlacemts,Physical/ Sensory Support,4350,Residential Homes External,Adult Social Care,Third Party Payments,578,01-Mar-17,R,LIFESTYLE CARE MANAGEMENT LTD
12,221001,Older People Placements - East,OP 65&Over NursingCarePlacemts,Physical/ Sensory Support,4350,Residential Homes External,Adult Social Care,Third Party Payments,578,01-Mar-17,R,LIFESTYLE CARE MANAGEMENT LTD
12,221001,Older People Placements - East,OP 65&Over NursingCarePlacemts,Physical/ Sensory Support,4350,Residential Homes External,Adult Social Care,Third Party Payments,578,01-Mar-17,R,LIFESTYLE CARE MANAGEMENT LTD
12,221001,Older People Placements - East,OP 65&Over NursingCarePlacemts,Physical/ Sensory Support,4350,Residential Homes External,Adult Social Care,Third Party Payments,578,01-Mar-17,R,LIFESTYLE CARE MANAGEMENT LTD
12,221001,Older People Placements - East,OP 65&Over NursingCarePlacemts,Physical/ Sensory Support,4350,Residential Homes External,Adult Social Care,Third Party Payments,578,01-Mar-17,R,LIFESTYLE CARE MANAGEMENT LTD
12,221001,Older People Placements - East,OP 65&Over NursingCarePlacemts,Physical/ Sensory Support,4350,Residential Homes External,Adult Social Care,Third Party Payments,578,01-Mar-17,R,LIFESTYLE CARE MANAGEMENT LTD
12,221001,Older People Placements - East,OP 65&Over NursingCarePlacemts,Physical/ Sensory Support,4350,Residential Homes External,Adult Social Care,Third Party Payments,578,01-Mar-17,R,LIFESTYLE CARE MANAGEMENT LTD
12,221001,Older People Placements - East,OP 65&Over NursingCarePlacemts,Physical/ Sensory Support,4350,Residential Homes External,Adult Social Care,Third Party Payments,578,01-Mar-17,R,LIFESTYLE CARE MANAGEMENT LTD
12,221001,Older People Placements - East,OP 65&Over NursingCarePlacemts,Physical/ Sensory Support,4350,Residential Homes External,Adult Social Care,Third Party Payments,578,01-Mar-17,R,LIFESTYLE CARE MANAGEMENT LTD
12,221001,Older People Placements - East,OP 65&Over NursingCarePlacemts,Physical/ Sensory Support,4350,Residential Homes External,Adult Social Care,Third Party Payments,578,01-Mar-17,R,LIFESTYLE CARE MANAGEMENT LTD
12,221001,Older People Placements - East,OP 65&Over NursingCarePlacemts,Physical/ Sensory Support,4350,Residential Homes External,Adult Social Care,Third Party Payments,578,01-Mar-17,R,LIFESTYLE CARE MANAGEMENT LTD
12,221001,Older People Placements - East,OP 65&Over NursingCarePlacemts,Physical/ Sensory Support,4350,Residential Homes External,Adult Social Care,Third Party Payments,578,01-Mar-17,R,LIFESTYLE CARE MANAGEMENT LTD
12,221001,Older People Placements - East,OP 65&Over NursingCarePlacemts,Physical/ Sensory Support,4350,Residential Homes External,Adult Social Care,Third Party Payments,578,01-Mar-17,R,LIFESTYLE CARE MANAGEMENT LTD
12,221001,Older People Placements - East,OP 65&Over NursingCarePlacemts,Physical/ Sensory Support,4350,Residential Homes External,Adult Social Care,Third Party Payments,578,01-Mar-17,R,LIFESTYLE CARE MANAGEMENT LTD
12,221001,Older People Placements - East,OP 65&Over NursingCarePlacemts,Physical/ Sensory Support,4350,Residential Homes External,Adult Social Care,Third Party Payments,578,01-Mar-17,R,LIFESTYLE CARE MANAGEMENT LTD
12,221001,Older People Placements - East,OP 65&Over NursingCarePlacemts,Physical/ Sensory Support,4350,Residential Homes External,Adult Social Care,Third Party Payments,578,01-Mar-17,R,LIFESTYLE CARE MANAGEMENT LTD
12,221001,Older People Placements - East,OP 65&Over NursingCarePlacemts,Physical/ Sensory Support,4350,Residential Homes External,Adult Social Care,Third Party Payments,578,01-Mar-17,R,LIFESTYLE CARE MANAGEMENT LTD
12,221001,Older People Placements - East,OP 65&Over NursingCarePlacemts,Physical/ Sensory Support,4350,Residential Homes External,Adult Social Care,Third Party Payments,578,01-Mar-17,R,LIFESTYLE CARE MANAGEMENT LTD
12,221001,Older People Placements - East,OP 65&Over NursingCarePlacemts,Physical/ Sensory Support,4350,Residential Homes External,Adult Social Care,Third Party Payments,578,01-Mar-17,R,LIFESTYLE CARE MANAGEMENT LTD
12,221001,Older People Placements - East,OP 65&Over NursingCarePlacemts,Physical/ Sensory Support,4350,Residential Homes External,Adult Social Care,Third Party Payments,578,01-Mar-17,R,LIFESTYLE CARE MANAGEMENT LTD
12,221001,Older People Placements - East,OP 65&Over NursingCarePlacemts,Physical/ Sensory Support,4350,Residential Homes External,Adult Social Care,Third Party Payments,578,01-Mar-17,R,LIFESTYLE CARE MANAGEMENT LTD
12,221001,Older People Placements - East,OP 65&Over NursingCarePlacemts,Physical/ Sensory Support,4350,Residential Homes External,Adult Social Care,Third Party Payments,578,01-Mar-17,R,LIFESTYLE CARE MANAGEMENT LTD
12,221001,Older People Placements - East,OP 65&Over NursingCarePlacemts,Physical/ Sensory Support,4350,Residential Homes External,Adult Social Care,Third Party Payments,578,01-Mar-17,R,LIFESTYLE CARE MANAGEMENT LTD
12,221001,Older People Placements - East,OP 65&Over NursingCarePlacemts,Physical/ Sensory Support,4350,Residential Homes External,Adult Social Care,Third Party Payments,578,01-Mar-17,R,LIFESTYLE CARE MANAGEMENT LTD
12,221001,Older People Placements - East,OP 65&Over NursingCarePlacemts,Physical/ Sensory Support,4350,Residential Homes External,Adult Social Care,Third Party Payments,578,01-Mar-17,R,LIFESTYLE CARE MANAGEMENT LTD
12,221001,Older People Placements - East,OP 65&Over NursingCarePlacemts,Physical/ Sensory Support,4350,Residential Homes External,Adult Social Care,Third Party Payments,578,01-Mar-17,R,LIFESTYLE CARE MANAGEMENT LTD
12,221001,Older People Placements - East,OP 65&Over NursingCarePlacemts,Physical/ Sensory Support,4350,Residential Homes External,Adult Social Care,Third Party Payments,578,01-Mar-17,R,LIFESTYLE CARE MANAGEMENT LTD
12,221001,Older People Placements - East,OP 65&Over NursingCarePlacemts,Physical/ Sensory Support,4350,Residential Homes External,Adult Social Care,Third Party Payments,578,01-Mar-17,R,LIFESTYLE CARE MANAGEMENT LTD
12,221001,Older People Placements - East,OP 65&Over NursingCarePlacemts,Physical/ Sensory Support,4350,Residential Homes External,Adult Social Care,Third Party Payments,578,01-Mar-17,R,LIFESTYLE CARE MANAGEMENT LTD
12,221001,Older People Placements - East,OP 65&Over NursingCarePlacemts,Physical/ Sensory Support,4350,Residential Homes External,Adult Social Care,Third Party Payments,578,01-Mar-17,R,LIFESTYLE CARE MANAGEMENT LTD
12,221001,Older People Placements - East,OP 65&Over NursingCarePlacemts,Physical/ Sensory Support,4350,Residential Homes External,Adult Social Care,Third Party Payments,578,01-Mar-17,R,LIFESTYLE CARE MANAGEMENT LTD
12,221001,Older People Placements - East,OP 65&Over NursingCarePlacemts,Physical/ Sensory Support,4350,Residential Homes External,Adult Social Care,Third Party Payments,578,01-Mar-17,R,LIFESTYLE CARE MANAGEMENT LTD
12,221001,Older People Placements - East,OP 65&Over NursingCarePlacemts,Physical/ Sensory Support,4350,Residential Homes External,Adult Social Care,Third Party Payments,578,01-Mar-17,R,LIFESTYLE CARE MANAGEMENT LTD
12,221001,Older People Placements - East,OP 65&Over NursingCarePlacemts,Physical/ Sensory Support,4350,Residential Homes External,Adult Social Care,Third Party Payments,578,01-Mar-17,R,LIFESTYLE CARE MANAGEMENT LTD
12,221001,Older People Placements - East,OP 65&Over NursingCarePlacemts,Physical/ Sensory Support,4350,Residential Homes External,Adult Social Care,Third Party Payments,578,01-Mar-17,R,LIFESTYLE CARE MANAGEMENT LTD
12,221001,Older People Placements - East,OP 65&Over NursingCarePlacemts,Physical/ Sensory Support,4350,Residential Homes External,Adult Social Care,Third Party Payments,578,01-Mar-17,R,LIFESTYLE CARE MANAGEMENT LTD
12,221001,Older People Placements - East,OP 65&Over NursingCarePlacemts,Physical/ Sensory Support,4350,Residential Homes External,Adult Social Care,Third Party Payments,578,01-Mar-17,R,LIFESTYLE CARE MANAGEMENT LTD
12,221001,Older People Placements - East,OP 65&Over NursingCarePlacemts,Physical/ Sensory Support,4350,Residential Homes External,Adult Social Care,Third Party Payments,578,01-Mar-17,R,LIFESTYLE CARE MANAGEMENT LTD
12,221001,Older People Placements - East,OP 65&Over NursingCarePlacemts,Physical/ Sensory Support,4350,Residential Homes External,Adult Social Care,Third Party Payments,578,01-Mar-17,R,LIFESTYLE CARE MANAGEMENT LTD
12,221001,Older People Placements - East,OP 65&Over NursingCarePlacemts,Physical/ Sensory Support,4350,Residential Homes External,Adult Social Care,Third Party Payments,578,01-Mar-17,R,LIFESTYLE CARE MANAGEMENT LTD
12,221001,Older People Placements - East,OP 65&Over NursingCarePlacemts,Physical/ Sensory Support,4350,Residential Homes External,Adult Social Care,Third Party Payments,578,01-Mar-17,R,LIFESTYLE CARE MANAGEMENT LTD
12,221001,Older People Placements - East,OP 65&Over NursingCarePlacemts,Physical/ Sensory Support,4350,Residential Homes External,Adult Social Care,Third Party Payments,578,01-Mar-17,R,LIFESTYLE CARE MANAGEMENT LTD
12,221001,Older People Placements - East,OP 65&Over NursingCarePlacemts,Physical/ Sensory Support,4350,Residential Homes External,Adult Social Care,Third Party Payments,578,01-Mar-17,R,LIFESTYLE CARE MANAGEMENT LTD
12,221001,Older People Placements - East,OP 65&Over NursingCarePlacemts,Physical/ Sensory Support,4350,Residential Homes External,Adult Social Care,Third Party Payments,578,01-Mar-17,R,LIFESTYLE CARE MANAGEMENT LTD
12,221001,Older People Placements - East,OP 65&Over NursingCarePlacemts,Physical/ Sensory Support,4350,Residential Homes External,Adult Social Care,Third Party Payments,578,01-Mar-17,R,LIFESTYLE CARE MANAGEMENT LTD
12,221001,Older People Placements - East,OP 65&Over NursingCarePlacemts,Physical/ Sensory Support,4350,Residential Homes External,Adult Social Care,Third Party Payments,578,01-Mar-17,R,LIFESTYLE CARE MANAGEMENT LTD
12,221001,Older People Placements - East,OP 65&Over NursingCarePlacemts,Physical/ Sensory Support,4350,Residential Homes External,Adult Social Care,Third Party Payments,578,01-Mar-17,R,LIFESTYLE CARE MANAGEMENT LTD
12,221001,Older People Placements - East,OP 65&Over NursingCarePlacemts,Physical/ Sensory Support,4350,Residential Homes External,Adult Social Care,Third Party Payments,578,01-Mar-17,R,LIFESTYLE CARE MANAGEMENT LTD
12,221001,Older People Placements - East,OP 65&Over NursingCarePlacemts,Physical/ Sensory Support,4350,Residential Homes External,Adult Social Care,Third Party Payments,578,01-Mar-17,R,LIFESTYLE CARE MANAGEMENT LTD
12,221001,Older People Placements - East,OP 65&Over NursingCarePlacemts,Physical/ Sensory Support,4350,Residential Homes External,Adult Social Care,Third Party Payments,578,01-Mar-17,R,LIFESTYLE CARE MANAGEMENT LTD
12,221001,Older People Placements - East,OP 65&Over NursingCarePlacemts,Physical/ Sensory Support,4350,Residential Homes External,Adult Social Care,Third Party Payments,578,01-Mar-17,R,LIFESTYLE CARE MANAGEMENT LTD
12,221001,Older People Placements - East,OP 65&Over NursingCarePlacemts,Physical/ Sensory Support,4350,Residential Homes External,Adult Social Care,Third Party Payments,578,01-Mar-17,R,LIFESTYLE CARE MANAGEMENT LTD
12,221001,Older People Placements - East,OP 65&Over NursingCarePlacemts,Physical/ Sensory Support,4350,Residential Homes External,Adult Social Care,Third Party Payments,578,01-Mar-17,R,LIFESTYLE CARE MANAGEMENT LTD
12,221001,Older People Placements - East,OP 65&Over NursingCarePlacemts,Physical/ Sensory Support,4350,Residential Homes External,Adult Social Care,Third Party Payments,578,01-Mar-17,R,LIFESTYLE CARE MANAGEMENT LTD
12,221001,Older People Placements - East,OP 65&Over NursingCarePlacemts,Physical/ Sensory Support,4350,Residential Homes External,Adult Social Care,Third Party Payments,578,01-Mar-17,R,LIFESTYLE CARE MANAGEMENT LTD
12,221001,Older People Placements - East,OP 65&Over NursingCarePlacemts,Physical/ Sensory Support,4350,Residential Homes External,Adult Social Care,Third Party Payments,625,26-Mar-17,R,SUNNINGDALE HOUSE CARE HOME
12,221001,Older People Placements - East,OP 65&Over NursingCarePlacemts,Physical/ Sensory Support,4350,Residential Homes External,Adult Social Care,Third Party Payments,625,26-Mar-17,R,SUNNINGDALE HOUSE CARE HOME
12,221001,Older People Placements - East,OP 65&Over NursingCarePlacemts,Physical/ Sensory Support,4350,Residential Homes External,Adult Social Care,Third Party Payments,625,26-Mar-17,R,SUNNINGDALE HOUSE CARE HOME
12,221001,Older People Placements - East,OP 65&Over NursingCarePlacemts,Physical/ Sensory Support,4350,Residential Homes External,Adult Social Care,Third Party Payments,625,26-Mar-17,R,SUNNINGDALE HOUSE CARE HOME
12,221001,Older People Placements - East,OP 65&Over NursingCarePlacemts,Physical/ Sensory Support,4350,Residential Homes External,Adult Social Care,Third Party Payments,625,01-Mar-17,R,SUNNINGDALE HOUSE CARE HOME
12,221001,Older People Placements - East,OP 65&Over NursingCarePlacemts,Physical/ Sensory Support,4350,Residential Homes External,Adult Social Care,Third Party Payments,625,01-Mar-17,R,SUNNINGDALE HOUSE CARE HOME
12,221001,Older People Placements - East,OP 65&Over NursingCarePlacemts,Physical/ Sensory Support,4350,Residential Homes External,Adult Social Care,Third Party Payments,625,01-Mar-17,R,SUNNINGDALE HOUSE CARE HOME
12,221001,Older People Placements - East,OP 65&Over NursingCarePlacemts,Physical/ Sensory Support,4350,Residential Homes External,Adult Social Care,Third Party Payments,625,01-Mar-17,R,SUNNINGDALE HOUSE CARE HOME
12,221001,Older People Placements - East,OP 65&Over NursingCarePlacemts,Physical/ Sensory Support,4350,Residential Homes External,Adult Social Care,Third Party Payments,625,01-Mar-17,R,SUNNINGDALE HOUSE CARE HOME
12,221001,Older People Placements - East,OP 65&Over NursingCarePlacemts,Physical/ Sensory Support,4350,Residential Homes External,Adult Social Care,Third Party Payments,635,06-Mar-17,R,BUPA CARE HOMES
12,221001,Older People Placements - East,OP 65&Over NursingCarePlacemts,Physical/ Sensory Support,4350,Residential Homes External,Adult Social Care,Third Party Payments,635,06-Mar-17,R,BUPA CARE HOMES
12,221001,Older People Placements - East,OP 65&Over NursingCarePlacemts,Physical/ Sensory Support,4350,Residential Homes External,Adult Social Care,Third Party Payments,635,06-Mar-17,R,BUPA CARE HOMES
12,221001,Older People Placements - East,OP 65&Over NursingCarePlacemts,Physical/ Sensory Support,4350,Residential Homes External,Adult Social Care,Third Party Payments,635,06-Mar-17,R,BUPA CARE HOMES
12,221001,Older People Placements - East,OP 65&Over NursingCarePlacemts,Physical/ Sensory Support,4350,Residential Homes External,Adult Social Care,Third Party Payments,635,06-Mar-17,R,BUPA CARE HOMES
12,221001,Older People Placements - East,OP 65&Over NursingCarePlacemts,Physical/ Sensory Support,4350,Residential Homes External,Adult Social Care,Third Party Payments,635,06-Mar-17,R,BUPA CARE HOMES
12,221001,Older People Placements - East,OP 65&Over NursingCarePlacemts,Physical/ Sensory Support,4350,Residential Homes External,Adult Social Care,Third Party Payments,635,06-Mar-17,R,BUPA CARE HOMES
12,221001,Older People Placements - East,OP 65&Over NursingCarePlacemts,Physical/ Sensory Support,4350,Residential Homes External,Adult Social Care,Third Party Payments,635,06-Mar-17,R,BUPA CARE HOMES
12,221001,Older People Placements - East,OP 65&Over NursingCarePlacemts,Physical/ Sensory Support,4350,Residential Homes External,Adult Social Care,Third Party Payments,635,06-Mar-17,R,BUPA CARE HOMES
12,221001,Older People Placements - East,OP 65&Over NursingCarePlacemts,Physical/ Sensory Support,4350,Residential Homes External,Adult Social Care,Third Party Payments,635,01-Mar-17,R,BUPA CARE HOMES
12,221001,Older People Placements - East,OP 65&Over NursingCarePlacemts,Physical/ Sensory Support,4350,Residential Homes External,Adult Social Care,Third Party Payments,635,01-Mar-17,R,BUPA CARE HOMES
12,221001,Older People Placements - East,OP 65&Over NursingCarePlacemts,Physical/ Sensory Support,4350,Residential Homes External,Adult Social Care,Third Party Payments,635,01-Mar-17,R,BUPA CARE HOMES
12,221001,Older People Placements - East,OP 65&Over NursingCarePlacemts,Physical/ Sensory Support,4350,Residential Homes External,Adult Social Care,Third Party Payments,635,01-Mar-17,R,BUPA CARE HOMES
12,221001,Older People Placements - East,OP 65&Over NursingCarePlacemts,Physical/ Sensory Support,4350,Residential Homes External,Adult Social Care,Third Party Payments,635,01-Mar-17,R,BUPA CARE HOMES
12,221001,Older People Placements - East,OP 65&Over NursingCarePlacemts,Physical/ Sensory Support,4350,Residential Homes External,Adult Social Care,Third Party Payments,635,01-Mar-17,R,BUPA CARE HOMES
12,221001,Older People Placements - East,OP 65&Over NursingCarePlacemts,Physical/ Sensory Support,4350,Residential Homes External,Adult Social Care,Third Party Payments,635,01-Mar-17,R,BUPA CARE HOMES
12,221001,Older People Placements - East,OP 65&Over NursingCarePlacemts,Physical/ Sensory Support,4350,Residential Homes External,Adult Social Care,Third Party Payments,650,01-Mar-17,R,CARE UNLIMITED
12,221001,Older People Placements - East,OP 65&Over NursingCarePlacemts,Physical/ Sensory Support,4350,Residential Homes External,Adult Social Care,Third Party Payments,650,01-Mar-17,R,CARE UNLIMITED
12,221001,Older People Placements - East,OP 65&Over NursingCarePlacemts,Physical/ Sensory Support,4350,Residential Homes External,Adult Social Care,Third Party Payments,650,01-Mar-17,R,CARE UNLIMITED
12,221001,Older People Placements - East,OP 65&Over NursingCarePlacemts,Physical/ Sensory Support,4350,Residential Homes External,Adult Social Care,Third Party Payments,650,01-Mar-17,R,CARE UNLIMITED
12,221001,Older People Placements - East,OP 65&Over NursingCarePlacemts,Physical/ Sensory Support,4350,Residential Homes External,Adult Social Care,Third Party Payments,650,19-Mar-17,R,LIFESTYLE CARE MANAGEMENT LTD
12,221001,Older People Placements - East,OP 65&Over NursingCarePlacemts,Physical/ Sensory Support,4350,Residential Homes External,Adult Social Care,Third Party Payments,650,19-Mar-17,R,LIFESTYLE CARE MANAGEMENT LTD
12,221001,Older People Placements - East,OP 65&Over NursingCarePlacemts,Physical/ Sensory Support,4350,Residential Homes External,Adult Social Care,Third Party Payments,650,19-Mar-17,R,LIFESTYLE CARE MANAGEMENT LTD
12,221001,Older People Placements - East,OP 65&Over NursingCarePlacemts,Physical/ Sensory Support,4350,Residential Homes External,Adult Social Care,Third Party Payments,650,19-Mar-17,R,LIFESTYLE CARE MANAGEMENT LTD
12,221001,Older People Placements - East,OP 65&Over NursingCarePlacemts,Physical/ Sensory Support,4350,Residential Homes External,Adult Social Care,Third Party Payments,650,01-Mar-17,R,CARE UNLIMITED
12,221001,Older People Placements - East,OP 65&Over NursingCarePlacemts,Physical/ Sensory Support,4350,Residential Homes External,Adult Social Care,Third Party Payments,650,01-Mar-17,R,CARE UNLIMITED
12,221001,Older People Placements - East,OP 65&Over NursingCarePlacemts,Physical/ Sensory Support,4350,Residential Homes External,Adult Social Care,Third Party Payments,650,01-Mar-17,R,CARE UNLIMITED
12,221001,Older People Placements - East,OP 65&Over NursingCarePlacemts,Physical/ Sensory Support,4350,Residential Homes External,Adult Social Care,Third Party Payments,650,01-Mar-17,R,CARE UNLIMITED
12,221001,Older People Placements - East,OP 65&Over NursingCarePlacemts,Physical/ Sensory Support,4350,Residential Homes External,Adult Social Care,Third Party Payments,650,01-Mar-17,R,CARE UNLIMITED
12,221001,Older People Placements - East,OP 65&Over NursingCarePlacemts,Physical/ Sensory Support,4350,Residential Homes External,Adult Social Care,Third Party Payments,650,01-Mar-17,R,CARE UNLIMITED
12,221001,Older People Placements - East,OP 65&Over NursingCarePlacemts,Physical/ Sensory Support,4350,Residential Homes External,Adult Social Care,Third Party Payments,650,01-Mar-17,R,CARE UNLIMITED
12,221001,Older People Placements - East,OP 65&Over NursingCarePlacemts,Physical/ Sensory Support,4350,Residential Homes External,Adult Social Care,Third Party Payments,650,01-Mar-17,R,CARE UNLIMITED
12,221001,Older People Placements - East,OP 65&Over NursingCarePlacemts,Physical/ Sensory Support,4350,Residential Homes External,Adult Social Care,Third Party Payments,650,01-Mar-17,R,MANOR HOUSE RESIDENTIAL HOME
12,221001,Older People Placements - East,OP 65&Over NursingCarePlacemts,Physical/ Sensory Support,4350,Residential Homes External,Adult Social Care,Third Party Payments,650,01-Mar-17,R,MANOR HOUSE RESIDENTIAL HOME
12,221001,Older People Placements - East,OP 65&Over NursingCarePlacemts,Physical/ Sensory Support,4350,Residential Homes External,Adult Social Care,Third Party Payments,650,01-Mar-17,R,MANOR HOUSE RESIDENTIAL HOME
12,221001,Older People Placements - East,OP 65&Over NursingCarePlacemts,Physical/ Sensory Support,4350,Residential Homes External,Adult Social Care,Third Party Payments,650,01-Mar-17,R,MANOR HOUSE RESIDENTIAL HOME
12,221001,Older People Placements - East,OP 65&Over NursingCarePlacemts,Physical/ Sensory Support,4350,Residential Homes External,Adult Social Care,Third Party Payments,650,01-Mar-17,R,MANOR HOUSE RESIDENTIAL HOME
12,221001,Older People Placements - East,OP 65&Over NursingCarePlacemts,Physical/ Sensory Support,4350,Residential Homes External,Adult Social Care,Third Party Payments,650,01-Mar-17,R,MANOR HOUSE RESIDENTIAL HOME
12,221001,Older People Placements - East,OP 65&Over NursingCarePlacemts,Physical/ Sensory Support,4350,Residential Homes External,Adult Social Care,Third Party Payments,650,01-Mar-17,R,MANOR HOUSE RESIDENTIAL HOME
12,221001,Older People Placements - East,OP 65&Over NursingCarePlacemts,Physical/ Sensory Support,4350,Residential Homes External,Adult Social Care,Third Party Payments,650,01-Mar-17,R,MANOR HOUSE RESIDENTIAL HOME
12,221001,Older People Placements - East,OP 65&Over NursingCarePlacemts,Physical/ Sensory Support,4350,Residential Homes External,Adult Social Care,Third Party Payments,650,01-Mar-17,R,CARE UNLIMITED
12,221001,Older People Placements - East,OP 65&Over NursingCarePlacemts,Physical/ Sensory Support,4350,Residential Homes External,Adult Social Care,Third Party Payments,650,01-Mar-17,R,LIFESTYLE CARE MANAGEMENT LTD
12,221001,Older People Placements - East,OP 65&Over NursingCarePlacemts,Physical/ Sensory Support,4350,Residential Homes External,Adult Social Care,Third Party Payments,650,01-Mar-17,R,LIFESTYLE CARE MANAGEMENT LTD
12,221001,Older People Placements - East,OP 65&Over NursingCarePlacemts,Physical/ Sensory Support,4350,Residential Homes External,Adult Social Care,Third Party Payments,650,01-Mar-17,R,LIFESTYLE CARE MANAGEMENT LTD
12,221001,Older People Placements - East,OP 65&Over NursingCarePlacemts,Physical/ Sensory Support,4350,Residential Homes External,Adult Social Care,Third Party Payments,650,01-Mar-17,R,LIFESTYLE CARE MANAGEMENT LTD
12,221001,Older People Placements - East,OP 65&Over NursingCarePlacemts,Physical/ Sensory Support,4350,Residential Homes External,Adult Social Care,Third Party Payments,700,01-Mar-17,R,MANOR HOUSE RESIDENTIAL HOME
12,221001,Older People Placements - East,OP 65&Over NursingCarePlacemts,Physical/ Sensory Support,4350,Residential Homes External,Adult Social Care,Third Party Payments,815,01-Mar-17,R,LINK HOUSE
12,221001,Older People Placements - East,OP 65&Over NursingCarePlacemts,Physical/ Sensory Support,4350,Residential Homes External,Adult Social Care,Third Party Payments,815,01-Mar-17,R,WOODLANDS
12,221001,Older People Placements - East,OP 65&Over NursingCarePlacemts,Physical/ Sensory Support,4350,Residential Homes External,Adult Social Care,Third Party Payments,815,01-Mar-17,R,WOODLANDS
12,221001,Older People Placements - East,OP 65&Over NursingCarePlacemts,Physical/ Sensory Support,4350,Residential Homes External,Adult Social Care,Third Party Payments,815,01-Mar-17,R,WOODLANDS
12,221001,Older People Placements - East,OP 65&Over NursingCarePlacemts,Physical/ Sensory Support,4350,Residential Homes External,Adult Social Care,Third Party Payments,815,01-Mar-17,R,WOODLANDS
12,221001,Older People Placements - East,OP 65&Over NursingCarePlacemts,Physical/ Sensory Support,4350,Residential Homes External,Adult Social Care,Third Party Payments,815,01-Mar-17,R,CARTER HOUSE
12,221001,Older People Placements - East,OP 65&Over NursingCarePlacemts,Physical/ Sensory Support,4350,Residential Homes External,Adult Social Care,Third Party Payments,815,01-Mar-17,R,CARTER HOUSE
12,221001,Older People Placements - East,OP 65&Over NursingCarePlacemts,Physical/ Sensory Support,4350,Residential Homes External,Adult Social Care,Third Party Payments,815,01-Mar-17,R,CARTER HOUSE
12,221001,Older People Placements - East,OP 65&Over NursingCarePlacemts,Physical/ Sensory Support,4350,Residential Homes External,Adult Social Care,Third Party Payments,815,01-Mar-17,R,CARTER HOUSE
12,221001,Older People Placements - East,OP 65&Over NursingCarePlacemts,Physical/ Sensory Support,4350,Residential Homes External,Adult Social Care,Third Party Payments,815,01-Mar-17,R,WOODLANDS
12,221001,Older People Placements - East,OP 65&Over NursingCarePlacemts,Physical/ Sensory Support,4350,Residential Homes External,Adult Social Care,Third Party Payments,815,01-Mar-17,R,WOODLANDS
12,221001,Older People Placements - East,OP 65&Over NursingCarePlacemts,Physical/ Sensory Support,4350,Residential Homes External,Adult Social Care,Third Party Payments,815,01-Mar-17,R,WOODLANDS
12,221001,Older People Placements - East,OP 65&Over NursingCarePlacemts,Physical/ Sensory Support,4350,Residential Homes External,Adult Social Care,Third Party Payments,815,01-Mar-17,R,WOODLANDS
12,221001,Older People Placements - East,OP 65&Over NursingCarePlacemts,Physical/ Sensory Support,4350,Residential Homes External,Adult Social Care,Third Party Payments,815,01-Mar-17,R,WOODLANDS
12,221001,Older People Placements - East,OP 65&Over NursingCarePlacemts,Physical/ Sensory Support,4350,Residential Homes External,Adult Social Care,Third Party Payments,815,01-Mar-17,R,WOODLANDS
12,221001,Older People Placements - East,OP 65&Over NursingCarePlacemts,Physical/ Sensory Support,4350,Residential Homes External,Adult Social Care,Third Party Payments,815,01-Mar-17,R,WOODLANDS
12,221001,Older People Placements - East,OP 65&Over NursingCarePlacemts,Physical/ Sensory Support,4350,Residential Homes External,Adult Social Care,Third Party Payments,815,01-Mar-17,R,WOODLANDS
12,221001,Older People Placements - East,OP 65&Over NursingCarePlacemts,Physical/ Sensory Support,4350,Residential Homes External,Adult Social Care,Third Party Payments,815,01-Mar-17,R,WOODLANDS
12,221001,Older People Placements - East,OP 65&Over NursingCarePlacemts,Physical/ Sensory Support,4350,Residential Homes External,Adult Social Care,Third Party Payments,815,01-Mar-17,R,WOODLANDS
12,221001,Older People Placements - East,OP 65&Over NursingCarePlacemts,Physical/ Sensory Support,4350,Residential Homes External,Adult Social Care,Third Party Payments,815,01-Mar-17,R,WOODLANDS
12,221001,Older People Placements - East,OP 65&Over NursingCarePlacemts,Physical/ Sensory Support,4350,Residential Homes External,Adult Social Care,Third Party Payments,815,01-Mar-17,R,WOODLANDS
12,221001,Older People Placements - East,OP 65&Over NursingCarePlacemts,Physical/ Sensory Support,4350,Residential Homes External,Adult Social Care,Third Party Payments,815,01-Mar-17,R,WOODLANDS
12,221001,Older People Placements - East,OP 65&Over NursingCarePlacemts,Physical/ Sensory Support,4350,Residential Homes External,Adult Social Care,Third Party Payments,815,01-Mar-17,R,WOODLANDS
12,221001,Older People Placements - East,OP 65&Over NursingCarePlacemts,Physical/ Sensory Support,4350,Residential Homes External,Adult Social Care,Third Party Payments,815,01-Mar-17,R,WOODLANDS
12,221001,Older People Placements - East,OP 65&Over NursingCarePlacemts,Physical/ Sensory Support,4350,Residential Homes External,Adult Social Care,Third Party Payments,815,01-Mar-17,R,WOODLANDS
12,221001,Older People Placements - East,OP 65&Over NursingCarePlacemts,Physical/ Sensory Support,4350,Residential Homes External,Adult Social Care,Third Party Payments,815,01-Mar-17,R,WOODLANDS
12,221001,Older People Placements - East,OP 65&Over NursingCarePlacemts,Physical/ Sensory Support,4350,Residential Homes External,Adult Social Care,Third Party Payments,815,01-Mar-17,R,WOODLANDS
12,221001,Older People Placements - East,OP 65&Over NursingCarePlacemts,Physical/ Sensory Support,4350,Residential Homes External,Adult Social Care,Third Party Payments,815,01-Mar-17,R,WOODLANDS
12,221001,Older People Placements - East,OP 65&Over NursingCarePlacemts,Physical/ Sensory Support,4350,Residential Homes External,Adult Social Care,Third Party Payments,815,01-Mar-17,R,WOODLANDS
12,221001,Older People Placements - East,OP 65&Over NursingCarePlacemts,Physical/ Sensory Support,4350,Residential Homes External,Adult Social Care,Third Party Payments,815,01-Mar-17,R,WOODLANDS
12,221001,Older People Placements - East,OP 65&Over NursingCarePlacemts,Physical/ Sensory Support,4350,Residential Homes External,Adult Social Care,Third Party Payments,815,01-Mar-17,R,WOODLANDS
12,221001,Older People Placements - East,OP 65&Over NursingCarePlacemts,Physical/ Sensory Support,4350,Residential Homes External,Adult Social Care,Third Party Payments,815,01-Mar-17,R,WOODLANDS
12,221001,Older People Placements - East,OP 65&Over NursingCarePlacemts,Physical/ Sensory Support,4350,Residential Homes External,Adult Social Care,Third Party Payments,815,01-Mar-17,R,WOODLANDS
12,221001,Older People Placements - East,OP 65&Over NursingCarePlacemts,Physical/ Sensory Support,4350,Residential Homes External,Adult Social Care,Third Party Payments,815,01-Mar-17,R,WOODLANDS
12,221001,Older People Placements - East,OP 65&Over NursingCarePlacemts,Physical/ Sensory Support,4350,Residential Homes External,Adult Social Care,Third Party Payments,815,01-Mar-17,R,WOODLANDS
12,221001,Older People Placements - East,OP 65&Over NursingCarePlacemts,Physical/ Sensory Support,4350,Residential Homes External,Adult Social Care,Third Party Payments,815,01-Mar-17,R,WOODLANDS
12,221001,Older People Placements - East,OP 65&Over NursingCarePlacemts,Physical/ Sensory Support,4350,Residential Homes External,Adult Social Care,Third Party Payments,815,01-Mar-17,R,WOODLANDS
12,221001,Older People Placements - East,OP 65&Over NursingCarePlacemts,Physical/ Sensory Support,4350,Residential Homes External,Adult Social Care,Third Party Payments,815,01-Mar-17,R,WOODLANDS
12,221001,Older People Placements - East,OP 65&Over NursingCarePlacemts,Physical/ Sensory Support,4350,Residential Homes External,Adult Social Care,Third Party Payments,815,01-Mar-17,R,WOODLANDS
12,221001,Older People Placements - East,OP 65&Over NursingCarePlacemts,Physical/ Sensory Support,4350,Residential Homes External,Adult Social Care,Third Party Payments,815,01-Mar-17,R,WOODLANDS
12,221001,Older People Placements - East,OP 65&Over NursingCarePlacemts,Physical/ Sensory Support,4350,Residential Homes External,Adult Social Care,Third Party Payments,815,01-Mar-17,R,WOODLANDS
12,221001,Older People Placements - East,OP 65&Over NursingCarePlacemts,Physical/ Sensory Support,4350,Residential Homes External,Adult Social Care,Third Party Payments,815,01-Mar-17,R,LINK HOUSE
12,221001,Older People Placements - East,OP 65&Over NursingCarePlacemts,Physical/ Sensory Support,4350,Residential Homes External,Adult Social Care,Third Party Payments,815,01-Mar-17,R,LINK HOUSE
12,221001,Older People Placements - East,OP 65&Over NursingCarePlacemts,Physical/ Sensory Support,4350,Residential Homes External,Adult Social Care,Third Party Payments,815,01-Mar-17,R,LINK HOUSE
12,221001,Older People Placements - East,OP 65&Over NursingCarePlacemts,Physical/ Sensory Support,4350,Residential Homes External,Adult Social Care,Third Party Payments,815,01-Mar-17,R,LINK HOUSE
12,221001,Older People Placements - East,OP 65&Over NursingCarePlacemts,Physical/ Sensory Support,4350,Residential Homes External,Adult Social Care,Third Party Payments,815,01-Mar-17,R,LINK HOUSE
12,221001,Older People Placements - East,OP 65&Over NursingCarePlacemts,Physical/ Sensory Support,4350,Residential Homes External,Adult Social Care,Third Party Payments,815,01-Mar-17,R,LINK HOUSE
12,221001,Older People Placements - East,OP 65&Over NursingCarePlacemts,Physical/ Sensory Support,4350,Residential Homes External,Adult Social Care,Third Party Payments,815,01-Mar-17,R,LINK HOUSE
12,221001,Older People Placements - East,OP 65&Over NursingCarePlacemts,Physical/ Sensory Support,4350,Residential Homes External,Adult Social Care,Third Party Payments,815,01-Mar-17,R,WOODLANDS
12,221001,Older People Placements - East,OP 65&Over NursingCarePlacemts,Physical/ Sensory Support,4350,Residential Homes External,Adult Social Care,Third Party Payments,815,01-Mar-17,R,WOODLANDS
12,221001,Older People Placements - East,OP 65&Over NursingCarePlacemts,Physical/ Sensory Support,4350,Residential Homes External,Adult Social Care,Third Party Payments,815,01-Mar-17,R,WOODLANDS
12,221001,Older People Placements - East,OP 65&Over NursingCarePlacemts,Physical/ Sensory Support,4350,Residential Homes External,Adult Social Care,Third Party Payments,815,01-Mar-17,R,WOODLANDS
12,221001,Older People Placements - East,OP 65&Over NursingCarePlacemts,Physical/ Sensory Support,4350,Residential Homes External,Adult Social Care,Third Party Payments,815,01-Mar-17,R,WOODLANDS
12,221001,Older People Placements - East,OP 65&Over NursingCarePlacemts,Physical/ Sensory Support,4350,Residential Homes External,Adult Social Care,Third Party Payments,815,01-Mar-17,R,CARTER HOUSE
12,221001,Older People Placements - East,OP 65&Over NursingCarePlacemts,Physical/ Sensory Support,4350,Residential Homes External,Adult Social Care,Third Party Payments,815,01-Mar-17,R,CARTER HOUSE
12,221001,Older People Placements - East,OP 65&Over NursingCarePlacemts,Physical/ Sensory Support,4350,Residential Homes External,Adult Social Care,Third Party Payments,815,01-Mar-17,R,CARTER HOUSE
12,221001,Older People Placements - East,OP 65&Over NursingCarePlacemts,Physical/ Sensory Support,4350,Residential Homes External,Adult Social Care,Third Party Payments,"2,311.99",14-Mar-17,R,LIFESTYLE CARE MANAGEMENT LTD
12,221001,Older People Placements - East,OP 65&Over NursingCarePlacemts,Physical/ Sensory Support,4350,Residential Homes External,Adult Social Care,Third Party Payments,"3,963.41",14-Mar-17,R,LIFESTYLE CARE MANAGEMENT LTD
12,221001,Older People Placements - East,OP 65&Over NursingCarePlacemts,Physical/ Sensory Support,4350,Residential Homes External,Adult Social Care,Third Party Payments,"5,886.95",20-Mar-17,R,LIFESTYLE CARE MANAGEMENT LTD
12,221001,Older People Placements - East,OP 65&Over NursingCarePlacemts,Physical/ Sensory Support,4350,Residential Homes External,Adult Social Care,Third Party Payments,"6,440.56",16-Mar-17,R,LIFESTYLE CARE MANAGEMENT LTD
12,221001,Older People Placements - East,OP 65&Over NursingCarePlacemts,Physical/ Sensory Support,4350,Residential Homes External,Adult Social Care,Third Party Payments,"7,348.85",17-Mar-17,R,LIFESTYLE CARE MANAGEMENT LTD
12,221001,Older People Placements - East,OP 65&Over NursingCarePlacemts,Physical/ Sensory Support,4350,Residential Homes External,Adult Social Care,Third Party Payments,"13,610.74",15-Mar-17,R,LIFESTYLE CARE MANAGEMENT LTD
12,221001,Older People Placements - East,OP 65&Over NursingCarePlacemts,Physical/ Sensory Support,4350,Residential Homes External,Adult Social Care,Third Party Payments,"13,700.56",15-Mar-17,R,LIFESTYLE CARE MANAGEMENT LTD
12,221001,Older People Placements - East,OP 65&Over NursingCarePlacemts,Physical/ Sensory Support,4350,Residential Homes External,Adult Social Care,Third Party Payments,"18,731.24",20-Mar-17,R,LIFESTYLE CARE MANAGEMENT LTD
12,221001,Older People Placements - East,OP 65&Over NursingCarePlacemts,Physical/ Sensory Support,4350,Residential Homes External,Adult Social Care,Third Party Payments,"29,327.78",17-Mar-17,R,LIFESTYLE CARE MANAGEMENT LTD
12,221001,Older People Placements - East,OP 65&Over NursingCarePlacemts,Physical/ Sensory Support,4350,Residential Homes External,Adult Social Care,Third Party Payments,"32,966.99",16-Mar-17,R,LIFESTYLE CARE MANAGEMENT LTD
12,221001,Older People Placements - East,OP 65&Over NursingCarePlacemts,Physical/ Sensory Support,4360,Nursing Homes External,Adult Social Care,Third Party Payments,535.18,01-Mar-17,R,LIFESTYLE CARE MANAGEMENT LTD
12,221001,Older People Placements - East,OP 65&Over NursingCarePlacemts,Physical/ Sensory Support,4360,Nursing Homes External,Adult Social Care,Third Party Payments,623,06-Mar-17,R,CORKHILL CARE CENTRE
12,221001,Older People Placements - East,OP 65&Over NursingCarePlacemts,Physical/ Sensory Support,4360,Nursing Homes External,Adult Social Care,Third Party Payments,623,06-Mar-17,R,CORKHILL CARE CENTRE
12,221001,Older People Placements - East,OP 65&Over NursingCarePlacemts,Physical/ Sensory Support,4360,Nursing Homes External,Adult Social Care,Third Party Payments,623,06-Mar-17,R,CORKHILL CARE CENTRE
12,221001,Older People Placements - East,OP 65&Over NursingCarePlacemts,Physical/ Sensory Support,4360,Nursing Homes External,Adult Social Care,Third Party Payments,623,06-Mar-17,R,CORKHILL CARE CENTRE
12,221001,Older People Placements - East,OP 65&Over NursingCarePlacemts,Physical/ Sensory Support,4360,Nursing Homes External,Adult Social Care,Third Party Payments,629.71,01-Mar-17,R,REDACTED
12,221001,Older People Placements - East,OP 65&Over NursingCarePlacemts,Physical/ Sensory Support,4360,Nursing Homes External,Adult Social Care,Third Party Payments,629.71,01-Mar-17,R,REDACTED
12,221001,Older People Placements - East,OP 65&Over NursingCarePlacemts,Physical/ Sensory Support,4360,Nursing Homes External,Adult Social Care,Third Party Payments,629.71,01-Mar-17,R,REDACTED
12,221001,Older People Placements - East,OP 65&Over NursingCarePlacemts,Physical/ Sensory Support,4360,Nursing Homes External,Adult Social Care,Third Party Payments,629.71,01-Mar-17,R,REDACTED
12,221001,Older People Placements - East,OP 65&Over NursingCarePlacemts,Physical/ Sensory Support,4360,Nursing Homes External,Adult Social Care,Third Party Payments,631.86,19-Mar-17,R,LIFESTYLE CARE MANAGEMENT LTD
12,221001,Older People Placements - East,OP 65&Over NursingCarePlacemts,Physical/ Sensory Support,4360,Nursing Homes External,Adult Social Care,Third Party Payments,631.86,19-Mar-17,R,LIFESTYLE CARE MANAGEMENT LTD
12,221001,Older People Placements - East,OP 65&Over NursingCarePlacemts,Physical/ Sensory Support,4360,Nursing Homes External,Adult Social Care,Third Party Payments,631.86,19-Mar-17,R,LIFESTYLE CARE MANAGEMENT LTD
12,221001,Older People Placements - East,OP 65&Over NursingCarePlacemts,Physical/ Sensory Support,4360,Nursing Homes External,Adult Social Care,Third Party Payments,631.86,19-Mar-17,R,LIFESTYLE CARE MANAGEMENT LTD
12,221001,Older People Placements - East,OP 65&Over NursingCarePlacemts,Physical/ Sensory Support,4360,Nursing Homes External,Adult Social Care,Third Party Payments,631.86,01-Mar-17,R,LIFESTYLE CARE MANAGEMENT LTD
12,221001,Older People Placements - East,OP 65&Over NursingCarePlacemts,Physical/ Sensory Support,4360,Nursing Homes External,Adult Social Care,Third Party Payments,631.86,01-Mar-17,R,LIFESTYLE CARE MANAGEMENT LTD
12,221001,Older People Placements - East,OP 65&Over NursingCarePlacemts,Physical/ Sensory Support,4360,Nursing Homes External,Adult Social Care,Third Party Payments,631.86,01-Mar-17,R,LIFESTYLE CARE MANAGEMENT LTD
12,221001,Older People Placements - East,OP 65&Over NursingCarePlacemts,Physical/ Sensory Support,4360,Nursing Homes External,Adult Social Care,Third Party Payments,631.86,01-Mar-17,R,LIFESTYLE CARE MANAGEMENT LTD
12,221001,Older People Placements - East,OP 65&Over NursingCarePlacemts,Physical/ Sensory Support,4360,Nursing Homes External,Adult Social Care,Third Party Payments,633,26-Mar-17,R,SUTTON NURSING HOMES LTD
12,221001,Older People Placements - East,OP 65&Over NursingCarePlacemts,Physical/ Sensory Support,4360,Nursing Homes External,Adult Social Care,Third Party Payments,633,26-Mar-17,R,SUTTON NURSING HOMES LTD
12,221001,Older People Placements - East,OP 65&Over NursingCarePlacemts,Physical/ Sensory Support,4360,Nursing Homes External,Adult Social Care,Third Party Payments,633,26-Mar-17,R,SUTTON NURSING HOMES LTD
12,221001,Older People Placements - East,OP 65&Over NursingCarePlacemts,Physical/ Sensory Support,4360,Nursing Homes External,Adult Social Care,Third Party Payments,633,26-Mar-17,R,SUTTON NURSING HOMES LTD
12,221001,Older People Placements - East,OP 65&Over NursingCarePlacemts,Physical/ Sensory Support,4360,Nursing Homes External,Adult Social Care,Third Party Payments,633,01-Mar-17,R,SUTTON NURSING HOMES LTD
12,221001,Older People Placements - East,OP 65&Over NursingCarePlacemts,Physical/ Sensory Support,4360,Nursing Homes External,Adult Social Care,Third Party Payments,633,01-Mar-17,R,SUTTON NURSING HOMES LTD
12,221001,Older People Placements - East,OP 65&Over NursingCarePlacemts,Physical/ Sensory Support,4360,Nursing Homes External,Adult Social Care,Third Party Payments,633,01-Mar-17,R,SUTTON NURSING HOMES LTD
12,221001,Older People Placements - East,OP 65&Over NursingCarePlacemts,Physical/ Sensory Support,4360,Nursing Homes External,Adult Social Care,Third Party Payments,633,01-Mar-17,R,SUTTON NURSING HOMES LTD
12,221001,Older People Placements - East,OP 65&Over NursingCarePlacemts,Physical/ Sensory Support,4360,Nursing Homes External,Adult Social Care,Third Party Payments,633,01-Mar-17,R,SUTTON NURSING HOMES LTD
12,221001,Older People Placements - East,OP 65&Over NursingCarePlacemts,Physical/ Sensory Support,4360,Nursing Homes External,Adult Social Care,Third Party Payments,633,01-Mar-17,R,SUTTON NURSING HOMES LTD
12,221001,Older People Placements - East,OP 65&Over NursingCarePlacemts,Physical/ Sensory Support,4360,Nursing Homes External,Adult Social Care,Third Party Payments,633,01-Mar-17,R,SUTTON NURSING HOMES LTD
12,221001,Older People Placements - East,OP 65&Over NursingCarePlacemts,Physical/ Sensory Support,4360,Nursing Homes External,Adult Social Care,Third Party Payments,633,01-Mar-17,R,SUTTON NURSING HOMES LTD
12,221001,Older People Placements - East,OP 65&Over NursingCarePlacemts,Physical/ Sensory Support,4360,Nursing Homes External,Adult Social Care,Third Party Payments,633.43,01-Mar-17,R,CARE UK
12,221001,Older People Placements - East,OP 65&Over NursingCarePlacemts,Physical/ Sensory Support,4360,Nursing Homes External,Adult Social Care,Third Party Payments,633.43,01-Mar-17,R,CARE UK
12,221001,Older People Placements - East,OP 65&Over NursingCarePlacemts,Physical/ Sensory Support,4360,Nursing Homes External,Adult Social Care,Third Party Payments,633.43,01-Mar-17,R,CARE UK
12,221001,Older People Placements - East,OP 65&Over NursingCarePlacemts,Physical/ Sensory Support,4360,Nursing Homes External,Adult Social Care,Third Party Payments,633.43,01-Mar-17,R,CARE UK
12,221001,Older People Placements - East,OP 65&Over NursingCarePlacemts,Physical/ Sensory Support,4360,Nursing Homes External,Adult Social Care,Third Party Payments,642.21,01-Mar-17,R,LIFESTYLE CARE MANAGEMENT LTD
12,221001,Older People Placements - East,OP 65&Over NursingCarePlacemts,Physical/ Sensory Support,4360,Nursing Homes External,Adult Social Care,Third Party Payments,642.21,01-Mar-17,R,LIFESTYLE CARE MANAGEMENT LTD
12,221001,Older People Placements - East,OP 65&Over NursingCarePlacemts,Physical/ Sensory Support,4360,Nursing Homes External,Adult Social Care,Third Party Payments,642.21,01-Mar-17,R,LIFESTYLE CARE MANAGEMENT LTD
12,221001,Older People Placements - East,OP 65&Over NursingCarePlacemts,Physical/ Sensory Support,4360,Nursing Homes External,Adult Social Care,Third Party Payments,642.21,01-Mar-17,R,LIFESTYLE CARE MANAGEMENT LTD
12,221001,Older People Placements - East,OP 65&Over NursingCarePlacemts,Physical/ Sensory Support,4360,Nursing Homes External,Adult Social Care,Third Party Payments,694.25,01-Mar-17,R,SUTTON COURT CARE CENTRE
12,221001,Older People Placements - East,OP 65&Over NursingCarePlacemts,Physical/ Sensory Support,4360,Nursing Homes External,Adult Social Care,Third Party Payments,694.25,01-Mar-17,R,SUTTON COURT CARE CENTRE
12,221001,Older People Placements - East,OP 65&Over NursingCarePlacemts,Physical/ Sensory Support,4360,Nursing Homes External,Adult Social Care,Third Party Payments,694.25,01-Mar-17,R,SUTTON COURT CARE CENTRE
12,221001,Older People Placements - East,OP 65&Over NursingCarePlacemts,Physical/ Sensory Support,4360,Nursing Homes External,Adult Social Care,Third Party Payments,694.25,01-Mar-17,R,SUTTON COURT CARE CENTRE
12,221001,Older People Placements - East,OP 65&Over NursingCarePlacemts,Physical/ Sensory Support,4360,Nursing Homes External,Adult Social Care,Third Party Payments,695,01-Mar-17,R,KELSTONE COURT NURSING HOME
12,221001,Older People Placements - East,OP 65&Over NursingCarePlacemts,Physical/ Sensory Support,4360,Nursing Homes External,Adult Social Care,Third Party Payments,695,01-Mar-17,R,KELSTONE COURT NURSING HOME
12,221001,Older People Placements - East,OP 65&Over NursingCarePlacemts,Physical/ Sensory Support,4360,Nursing Homes External,Adult Social Care,Third Party Payments,695,01-Mar-17,R,KELSTONE COURT NURSING HOME
12,221001,Older People Placements - East,OP 65&Over NursingCarePlacemts,Physical/ Sensory Support,4360,Nursing Homes External,Adult Social Care,Third Party Payments,695,01-Mar-17,R,KELSTONE COURT NURSING HOME
12,221001,Older People Placements - East,OP 65&Over NursingCarePlacemts,Physical/ Sensory Support,4360,Nursing Homes External,Adult Social Care,Third Party Payments,700,01-Mar-17,R,ELMWOOD
12,221001,Older People Placements - East,OP 65&Over NursingCarePlacemts,Physical/ Sensory Support,4360,Nursing Homes External,Adult Social Care,Third Party Payments,700,01-Mar-17,R,ELMWOOD
12,221001,Older People Placements - East,OP 65&Over NursingCarePlacemts,Physical/ Sensory Support,4360,Nursing Homes External,Adult Social Care,Third Party Payments,700,01-Mar-17,R,ELMWOOD
12,221001,Older People Placements - East,OP 65&Over NursingCarePlacemts,Physical/ Sensory Support,4360,Nursing Homes External,Adult Social Care,Third Party Payments,700,01-Mar-17,R,ELMWOOD
12,221001,Older People Placements - East,OP 65&Over NursingCarePlacemts,Physical/ Sensory Support,4360,Nursing Homes External,Adult Social Care,Third Party Payments,714.25,14-Mar-17,R,TRINITY COURT NURSING HOME
12,221001,Older People Placements - East,OP 65&Over NursingCarePlacemts,Physical/ Sensory Support,4360,Nursing Homes External,Adult Social Care,Third Party Payments,714.25,14-Mar-17,R,TRINITY COURT NURSING HOME
12,221001,Older People Placements - East,OP 65&Over NursingCarePlacemts,Physical/ Sensory Support,4360,Nursing Homes External,Adult Social Care,Third Party Payments,730,01-Mar-17,R,MILSOM HOUSE NURSING HOME
12,221001,Older People Placements - East,OP 65&Over NursingCarePlacemts,Physical/ Sensory Support,4360,Nursing Homes External,Adult Social Care,Third Party Payments,730,01-Mar-17,R,MILSOM HOUSE NURSING HOME
12,221001,Older People Placements - East,OP 65&Over NursingCarePlacemts,Physical/ Sensory Support,4360,Nursing Homes External,Adult Social Care,Third Party Payments,730,01-Mar-17,R,MILSOM HOUSE NURSING HOME
12,221001,Older People Placements - East,OP 65&Over NursingCarePlacemts,Physical/ Sensory Support,4360,Nursing Homes External,Adult Social Care,Third Party Payments,730,01-Mar-17,R,MILSOM HOUSE NURSING HOME
12,221001,Older People Placements - East,OP 65&Over NursingCarePlacemts,Physical/ Sensory Support,4360,Nursing Homes External,Adult Social Care,Third Party Payments,738.19,01-Mar-17,R,BRITISH HOME
12,221001,Older People Placements - East,OP 65&Over NursingCarePlacemts,Physical/ Sensory Support,4360,Nursing Homes External,Adult Social Care,Third Party Payments,738.19,01-Mar-17,R,BRITISH HOME
12,221001,Older People Placements - East,OP 65&Over NursingCarePlacemts,Physical/ Sensory Support,4360,Nursing Homes External,Adult Social Care,Third Party Payments,738.19,01-Mar-17,R,BRITISH HOME
12,221001,Older People Placements - East,OP 65&Over NursingCarePlacemts,Physical/ Sensory Support,4360,Nursing Homes External,Adult Social Care,Third Party Payments,738.19,01-Mar-17,R,BRITISH HOME
12,221001,Older People Placements - East,OP 65&Over NursingCarePlacemts,Physical/ Sensory Support,4360,Nursing Homes External,Adult Social Care,Third Party Payments,739.25,01-Mar-17,R,KELSTONE COURT NURSING HOME
12,221001,Older People Placements - East,OP 65&Over NursingCarePlacemts,Physical/ Sensory Support,4360,Nursing Homes External,Adult Social Care,Third Party Payments,739.25,01-Mar-17,R,KELSTONE COURT NURSING HOME
12,221001,Older People Placements - East,OP 65&Over NursingCarePlacemts,Physical/ Sensory Support,4360,Nursing Homes External,Adult Social Care,Third Party Payments,739.25,01-Mar-17,R,KELSTONE COURT NURSING HOME
12,221001,Older People Placements - East,OP 65&Over NursingCarePlacemts,Physical/ Sensory Support,4360,Nursing Homes External,Adult Social Care,Third Party Payments,739.25,01-Mar-17,R,KELSTONE COURT NURSING HOME
12,221001,Older People Placements - East,OP 65&Over NursingCarePlacemts,Physical/ Sensory Support,4360,Nursing Homes External,Adult Social Care,Third Party Payments,739.25,01-Mar-17,R,KELSTONE COURT NURSING HOME
12,221001,Older People Placements - East,OP 65&Over NursingCarePlacemts,Physical/ Sensory Support,4360,Nursing Homes External,Adult Social Care,Third Party Payments,739.25,01-Mar-17,R,KELSTONE COURT NURSING HOME
12,221001,Older People Placements - East,OP 65&Over NursingCarePlacemts,Physical/ Sensory Support,4360,Nursing Homes External,Adult Social Care,Third Party Payments,739.25,01-Mar-17,R,KELSTONE COURT NURSING HOME
12,221001,Older People Placements - East,OP 65&Over NursingCarePlacemts,Physical/ Sensory Support,4360,Nursing Homes External,Adult Social Care,Third Party Payments,739.25,01-Mar-17,R,KELSTONE COURT NURSING HOME
12,221001,Older People Placements - East,OP 65&Over NursingCarePlacemts,Physical/ Sensory Support,4360,Nursing Homes External,Adult Social Care,Third Party Payments,739.25,01-Mar-17,R,KELSTONE COURT NURSING HOME
12,221001,Older People Placements - East,OP 65&Over NursingCarePlacemts,Physical/ Sensory Support,4360,Nursing Homes External,Adult Social Care,Third Party Payments,739.25,01-Mar-17,R,KELSTONE COURT NURSING HOME
12,221001,Older People Placements - East,OP 65&Over NursingCarePlacemts,Physical/ Sensory Support,4360,Nursing Homes External,Adult Social Care,Third Party Payments,739.25,01-Mar-17,R,KELSTONE COURT NURSING HOME
12,221001,Older People Placements - East,OP 65&Over NursingCarePlacemts,Physical/ Sensory Support,4360,Nursing Homes External,Adult Social Care,Third Party Payments,739.25,01-Mar-17,R,KELSTONE COURT NURSING HOME
12,221001,Older People Placements - East,OP 65&Over NursingCarePlacemts,Physical/ Sensory Support,4360,Nursing Homes External,Adult Social Care,Third Party Payments,749.25,01-Mar-17,R,LIFESTYLE CARE MANAGEMENT LTD
12,221001,Older People Placements - East,OP 65&Over NursingCarePlacemts,Physical/ Sensory Support,4360,Nursing Homes External,Adult Social Care,Third Party Payments,749.25,01-Mar-17,R,LIFESTYLE CARE MANAGEMENT LTD
12,221001,Older People Placements - East,OP 65&Over NursingCarePlacemts,Physical/ Sensory Support,4360,Nursing Homes External,Adult Social Care,Third Party Payments,749.25,01-Mar-17,R,LIFESTYLE CARE MANAGEMENT LTD
12,221001,Older People Placements - East,OP 65&Over NursingCarePlacemts,Physical/ Sensory Support,4360,Nursing Homes External,Adult Social Care,Third Party Payments,749.25,01-Mar-17,R,LIFESTYLE CARE MANAGEMENT LTD
12,221001,Older People Placements - East,OP 65&Over NursingCarePlacemts,Physical/ Sensory Support,4360,Nursing Homes External,Adult Social Care,Third Party Payments,749.25,01-Mar-17,R,LIFESTYLE CARE MANAGEMENT LTD
12,221001,Older People Placements - East,OP 65&Over NursingCarePlacemts,Physical/ Sensory Support,4360,Nursing Homes External,Adult Social Care,Third Party Payments,749.25,01-Mar-17,R,LIFESTYLE CARE MANAGEMENT LTD
12,221001,Older People Placements - East,OP 65&Over NursingCarePlacemts,Physical/ Sensory Support,4360,Nursing Homes External,Adult Social Care,Third Party Payments,749.25,01-Mar-17,R,LIFESTYLE CARE MANAGEMENT LTD
12,221001,Older People Placements - East,OP 65&Over NursingCarePlacemts,Physical/ Sensory Support,4360,Nursing Homes External,Adult Social Care,Third Party Payments,749.25,01-Mar-17,R,LIFESTYLE CARE MANAGEMENT LTD
12,221001,Older People Placements - East,OP 65&Over NursingCarePlacemts,Physical/ Sensory Support,4360,Nursing Homes External,Adult Social Care,Third Party Payments,749.25,01-Mar-17,R,LIFESTYLE CARE MANAGEMENT LTD
12,221001,Older People Placements - East,OP 65&Over NursingCarePlacemts,Physical/ Sensory Support,4360,Nursing Homes External,Adult Social Care,Third Party Payments,749.25,01-Mar-17,R,LIFESTYLE CARE MANAGEMENT LTD
12,221001,Older People Placements - East,OP 65&Over NursingCarePlacemts,Physical/ Sensory Support,4360,Nursing Homes External,Adult Social Care,Third Party Payments,749.25,01-Mar-17,R,LIFESTYLE CARE MANAGEMENT LTD
12,221001,Older People Placements - East,OP 65&Over NursingCarePlacemts,Physical/ Sensory Support,4360,Nursing Homes External,Adult Social Care,Third Party Payments,749.25,01-Mar-17,R,LIFESTYLE CARE MANAGEMENT LTD
12,221001,Older People Placements - East,OP 65&Over NursingCarePlacemts,Physical/ Sensory Support,4360,Nursing Homes External,Adult Social Care,Third Party Payments,749.25,01-Mar-17,R,LIFESTYLE CARE MANAGEMENT LTD
12,221001,Older People Placements - East,OP 65&Over NursingCarePlacemts,Physical/ Sensory Support,4360,Nursing Homes External,Adult Social Care,Third Party Payments,749.25,01-Mar-17,R,LIFESTYLE CARE MANAGEMENT LTD
12,221001,Older People Placements - East,OP 65&Over NursingCarePlacemts,Physical/ Sensory Support,4360,Nursing Homes External,Adult Social Care,Third Party Payments,749.25,01-Mar-17,R,LIFESTYLE CARE MANAGEMENT LTD
12,221001,Older People Placements - East,OP 65&Over NursingCarePlacemts,Physical/ Sensory Support,4360,Nursing Homes External,Adult Social Care,Third Party Payments,749.25,01-Mar-17,R,LIFESTYLE CARE MANAGEMENT LTD
12,221001,Older People Placements - East,OP 65&Over NursingCarePlacemts,Physical/ Sensory Support,4360,Nursing Homes External,Adult Social Care,Third Party Payments,749.25,01-Mar-17,R,LIFESTYLE CARE MANAGEMENT LTD
12,221001,Older People Placements - East,OP 65&Over NursingCarePlacemts,Physical/ Sensory Support,4360,Nursing Homes External,Adult Social Care,Third Party Payments,749.25,01-Mar-17,R,LIFESTYLE CARE MANAGEMENT LTD
12,221001,Older People Placements - East,OP 65&Over NursingCarePlacemts,Physical/ Sensory Support,4360,Nursing Homes External,Adult Social Care,Third Party Payments,749.25,01-Mar-17,R,LIFESTYLE CARE MANAGEMENT LTD
12,221001,Older People Placements - East,OP 65&Over NursingCarePlacemts,Physical/ Sensory Support,4360,Nursing Homes External,Adult Social Care,Third Party Payments,749.25,01-Mar-17,R,LIFESTYLE CARE MANAGEMENT LTD
12,221001,Older People Placements - East,OP 65&Over NursingCarePlacemts,Physical/ Sensory Support,4360,Nursing Homes External,Adult Social Care,Third Party Payments,749.25,01-Mar-17,R,LIFESTYLE CARE MANAGEMENT LTD
12,221001,Older People Placements - East,OP 65&Over NursingCarePlacemts,Physical/ Sensory Support,4360,Nursing Homes External,Adult Social Care,Third Party Payments,749.25,01-Mar-17,R,LIFESTYLE CARE MANAGEMENT LTD
12,221001,Older People Placements - East,OP 65&Over NursingCarePlacemts,Physical/ Sensory Support,4360,Nursing Homes External,Adult Social Care,Third Party Payments,749.25,01-Mar-17,R,LIFESTYLE CARE MANAGEMENT LTD
12,221001,Older People Placements - East,OP 65&Over NursingCarePlacemts,Physical/ Sensory Support,4360,Nursing Homes External,Adult Social Care,Third Party Payments,749.25,01-Mar-17,R,LIFESTYLE CARE MANAGEMENT LTD
12,221001,Older People Placements - East,OP 65&Over NursingCarePlacemts,Physical/ Sensory Support,4360,Nursing Homes External,Adult Social Care,Third Party Payments,749.25,01-Mar-17,R,LIFESTYLE CARE MANAGEMENT LTD
12,221001,Older People Placements - East,OP 65&Over NursingCarePlacemts,Physical/ Sensory Support,4360,Nursing Homes External,Adult Social Care,Third Party Payments,749.25,01-Mar-17,R,LIFESTYLE CARE MANAGEMENT LTD
12,221001,Older People Placements - East,OP 65&Over NursingCarePlacemts,Physical/ Sensory Support,4360,Nursing Homes External,Adult Social Care,Third Party Payments,749.25,01-Mar-17,R,LIFESTYLE CARE MANAGEMENT LTD
12,221001,Older People Placements - East,OP 65&Over NursingCarePlacemts,Physical/ Sensory Support,4360,Nursing Homes External,Adult Social Care,Third Party Payments,749.25,01-Mar-17,R,LIFESTYLE CARE MANAGEMENT LTD
12,221001,Older People Placements - East,OP 65&Over NursingCarePlacemts,Physical/ Sensory Support,4360,Nursing Homes External,Adult Social Care,Third Party Payments,749.25,01-Mar-17,R,LIFESTYLE CARE MANAGEMENT LTD
12,221001,Older People Placements - East,OP 65&Over NursingCarePlacemts,Physical/ Sensory Support,4360,Nursing Homes External,Adult Social Care,Third Party Payments,749.25,01-Mar-17,R,LIFESTYLE CARE MANAGEMENT LTD
12,221001,Older People Placements - East,OP 65&Over NursingCarePlacemts,Physical/ Sensory Support,4360,Nursing Homes External,Adult Social Care,Third Party Payments,749.25,01-Mar-17,R,LIFESTYLE CARE MANAGEMENT LTD
12,221001,Older People Placements - East,OP 65&Over NursingCarePlacemts,Physical/ Sensory Support,4360,Nursing Homes External,Adult Social Care,Third Party Payments,749.25,01-Mar-17,R,LIFESTYLE CARE MANAGEMENT LTD
12,221001,Older People Placements - East,OP 65&Over NursingCarePlacemts,Physical/ Sensory Support,4360,Nursing Homes External,Adult Social Care,Third Party Payments,749.25,01-Mar-17,R,LIFESTYLE CARE MANAGEMENT LTD
12,221001,Older People Placements - East,OP 65&Over NursingCarePlacemts,Physical/ Sensory Support,4360,Nursing Homes External,Adult Social Care,Third Party Payments,749.25,01-Mar-17,R,LIFESTYLE CARE MANAGEMENT LTD
12,221001,Older People Placements - East,OP 65&Over NursingCarePlacemts,Physical/ Sensory Support,4360,Nursing Homes External,Adult Social Care,Third Party Payments,749.25,01-Mar-17,R,LIFESTYLE CARE MANAGEMENT LTD
12,221001,Older People Placements - East,OP 65&Over NursingCarePlacemts,Physical/ Sensory Support,4360,Nursing Homes External,Adult Social Care,Third Party Payments,749.25,01-Mar-17,R,LIFESTYLE CARE MANAGEMENT LTD
12,221001,Older People Placements - East,OP 65&Over NursingCarePlacemts,Physical/ Sensory Support,4360,Nursing Homes External,Adult Social Care,Third Party Payments,749.25,01-Mar-17,R,LIFESTYLE CARE MANAGEMENT LTD
12,221001,Older People Placements - East,OP 65&Over NursingCarePlacemts,Physical/ Sensory Support,4360,Nursing Homes External,Adult Social Care,Third Party Payments,749.25,01-Mar-17,R,LIFESTYLE CARE MANAGEMENT LTD
12,221001,Older People Placements - East,OP 65&Over NursingCarePlacemts,Physical/ Sensory Support,4360,Nursing Homes External,Adult Social Care,Third Party Payments,749.25,01-Mar-17,R,LIFESTYLE CARE MANAGEMENT LTD
12,221001,Older People Placements - East,OP 65&Over NursingCarePlacemts,Physical/ Sensory Support,4360,Nursing Homes External,Adult Social Care,Third Party Payments,749.25,01-Mar-17,R,LIFESTYLE CARE MANAGEMENT LTD
12,221001,Older People Placements - East,OP 65&Over NursingCarePlacemts,Physical/ Sensory Support,4360,Nursing Homes External,Adult Social Care,Third Party Payments,749.25,01-Mar-17,R,LIFESTYLE CARE MANAGEMENT LTD
12,221001,Older People Placements - East,OP 65&Over NursingCarePlacemts,Physical/ Sensory Support,4360,Nursing Homes External,Adult Social Care,Third Party Payments,749.25,01-Mar-17,R,LIFESTYLE CARE MANAGEMENT LTD
12,221001,Older People Placements - East,OP 65&Over NursingCarePlacemts,Physical/ Sensory Support,4360,Nursing Homes External,Adult Social Care,Third Party Payments,749.25,01-Mar-17,R,LIFESTYLE CARE MANAGEMENT LTD
12,221001,Older People Placements - East,OP 65&Over NursingCarePlacemts,Physical/ Sensory Support,4360,Nursing Homes External,Adult Social Care,Third Party Payments,749.25,01-Mar-17,R,LIFESTYLE CARE MANAGEMENT LTD
12,221001,Older People Placements - East,OP 65&Over NursingCarePlacemts,Physical/ Sensory Support,4360,Nursing Homes External,Adult Social Care,Third Party Payments,749.25,01-Mar-17,R,LIFESTYLE CARE MANAGEMENT LTD
12,221001,Older People Placements - East,OP 65&Over NursingCarePlacemts,Physical/ Sensory Support,4360,Nursing Homes External,Adult Social Care,Third Party Payments,749.25,01-Mar-17,R,LIFESTYLE CARE MANAGEMENT LTD
12,221001,Older People Placements - East,OP 65&Over NursingCarePlacemts,Physical/ Sensory Support,4360,Nursing Homes External,Adult Social Care,Third Party Payments,749.25,01-Mar-17,R,LIFESTYLE CARE MANAGEMENT LTD
12,221001,Older People Placements - East,OP 65&Over NursingCarePlacemts,Physical/ Sensory Support,4360,Nursing Homes External,Adult Social Care,Third Party Payments,749.25,01-Mar-17,R,LIFESTYLE CARE MANAGEMENT LTD
12,221001,Older People Placements - East,OP 65&Over NursingCarePlacemts,Physical/ Sensory Support,4360,Nursing Homes External,Adult Social Care,Third Party Payments,749.25,01-Mar-17,R,LIFESTYLE CARE MANAGEMENT LTD
12,221001,Older People Placements - East,OP 65&Over NursingCarePlacemts,Physical/ Sensory Support,4360,Nursing Homes External,Adult Social Care,Third Party Payments,749.25,01-Mar-17,R,LIFESTYLE CARE MANAGEMENT LTD
12,221001,Older People Placements - East,OP 65&Over NursingCarePlacemts,Physical/ Sensory Support,4360,Nursing Homes External,Adult Social Care,Third Party Payments,749.25,01-Mar-17,R,LIFESTYLE CARE MANAGEMENT LTD
12,221001,Older People Placements - East,OP 65&Over NursingCarePlacemts,Physical/ Sensory Support,4360,Nursing Homes External,Adult Social Care,Third Party Payments,749.25,01-Mar-17,R,LIFESTYLE CARE MANAGEMENT LTD
12,221001,Older People Placements - East,OP 65&Over NursingCarePlacemts,Physical/ Sensory Support,4360,Nursing Homes External,Adult Social Care,Third Party Payments,749.25,01-Mar-17,R,LIFESTYLE CARE MANAGEMENT LTD
12,221001,Older People Placements - East,OP 65&Over NursingCarePlacemts,Physical/ Sensory Support,4360,Nursing Homes External,Adult Social Care,Third Party Payments,749.25,01-Mar-17,R,LIFESTYLE CARE MANAGEMENT LTD
12,221001,Older People Placements - East,OP 65&Over NursingCarePlacemts,Physical/ Sensory Support,4360,Nursing Homes External,Adult Social Care,Third Party Payments,749.25,01-Mar-17,R,LIFESTYLE CARE MANAGEMENT LTD
12,221001,Older People Placements - East,OP 65&Over NursingCarePlacemts,Physical/ Sensory Support,4360,Nursing Homes External,Adult Social Care,Third Party Payments,749.25,01-Mar-17,R,LIFESTYLE CARE MANAGEMENT LTD
12,221001,Older People Placements - East,OP 65&Over NursingCarePlacemts,Physical/ Sensory Support,4360,Nursing Homes External,Adult Social Care,Third Party Payments,749.25,01-Mar-17,R,LIFESTYLE CARE MANAGEMENT LTD
12,221001,Older People Placements - East,OP 65&Over NursingCarePlacemts,Physical/ Sensory Support,4360,Nursing Homes External,Adult Social Care,Third Party Payments,749.25,01-Mar-17,R,LIFESTYLE CARE MANAGEMENT LTD
12,221001,Older People Placements - East,OP 65&Over NursingCarePlacemts,Physical/ Sensory Support,4360,Nursing Homes External,Adult Social Care,Third Party Payments,749.25,01-Mar-17,R,LIFESTYLE CARE MANAGEMENT LTD
12,221001,Older People Placements - East,OP 65&Over NursingCarePlacemts,Physical/ Sensory Support,4360,Nursing Homes External,Adult Social Care,Third Party Payments,749.25,01-Mar-17,R,LIFESTYLE CARE MANAGEMENT LTD
12,221001,Older People Placements - East,OP 65&Over NursingCarePlacemts,Physical/ Sensory Support,4360,Nursing Homes External,Adult Social Care,Third Party Payments,749.25,01-Mar-17,R,LIFESTYLE CARE MANAGEMENT LTD
12,221001,Older People Placements - East,OP 65&Over NursingCarePlacemts,Physical/ Sensory Support,4360,Nursing Homes External,Adult Social Care,Third Party Payments,749.25,01-Mar-17,R,LIFESTYLE CARE MANAGEMENT LTD
12,221001,Older People Placements - East,OP 65&Over NursingCarePlacemts,Physical/ Sensory Support,4360,Nursing Homes External,Adult Social Care,Third Party Payments,749.25,01-Mar-17,R,LIFESTYLE CARE MANAGEMENT LTD
12,221001,Older People Placements - East,OP 65&Over NursingCarePlacemts,Physical/ Sensory Support,4360,Nursing Homes External,Adult Social Care,Third Party Payments,749.25,01-Mar-17,R,LIFESTYLE CARE MANAGEMENT LTD
12,221001,Older People Placements - East,OP 65&Over NursingCarePlacemts,Physical/ Sensory Support,4360,Nursing Homes External,Adult Social Care,Third Party Payments,749.25,01-Mar-17,R,LIFESTYLE CARE MANAGEMENT LTD
12,221001,Older People Placements - East,OP 65&Over NursingCarePlacemts,Physical/ Sensory Support,4360,Nursing Homes External,Adult Social Care,Third Party Payments,749.25,01-Mar-17,R,LIFESTYLE CARE MANAGEMENT LTD
12,221001,Older People Placements - East,OP 65&Over NursingCarePlacemts,Physical/ Sensory Support,4360,Nursing Homes External,Adult Social Care,Third Party Payments,749.25,01-Mar-17,R,LIFESTYLE CARE MANAGEMENT LTD
12,221001,Older People Placements - East,OP 65&Over NursingCarePlacemts,Physical/ Sensory Support,4360,Nursing Homes External,Adult Social Care,Third Party Payments,749.25,01-Mar-17,R,LIFESTYLE CARE MANAGEMENT LTD
12,221001,Older People Placements - East,OP 65&Over NursingCarePlacemts,Physical/ Sensory Support,4360,Nursing Homes External,Adult Social Care,Third Party Payments,749.25,01-Mar-17,R,LIFESTYLE CARE MANAGEMENT LTD
12,221001,Older People Placements - East,OP 65&Over NursingCarePlacemts,Physical/ Sensory Support,4360,Nursing Homes External,Adult Social Care,Third Party Payments,749.25,01-Mar-17,R,LIFESTYLE CARE MANAGEMENT LTD
12,221001,Older People Placements - East,OP 65&Over NursingCarePlacemts,Physical/ Sensory Support,4360,Nursing Homes External,Adult Social Care,Third Party Payments,749.25,01-Mar-17,R,LIFESTYLE CARE MANAGEMENT LTD
12,221001,Older People Placements - East,OP 65&Over NursingCarePlacemts,Physical/ Sensory Support,4360,Nursing Homes External,Adult Social Care,Third Party Payments,749.25,01-Mar-17,R,LIFESTYLE CARE MANAGEMENT LTD
12,221001,Older People Placements - East,OP 65&Over NursingCarePlacemts,Physical/ Sensory Support,4360,Nursing Homes External,Adult Social Care,Third Party Payments,749.25,01-Mar-17,R,LIFESTYLE CARE MANAGEMENT LTD
12,221001,Older People Placements - East,OP 65&Over NursingCarePlacemts,Physical/ Sensory Support,4360,Nursing Homes External,Adult Social Care,Third Party Payments,749.25,01-Mar-17,R,LIFESTYLE CARE MANAGEMENT LTD
12,221001,Older People Placements - East,OP 65&Over NursingCarePlacemts,Physical/ Sensory Support,4360,Nursing Homes External,Adult Social Care,Third Party Payments,749.25,01-Mar-17,R,LIFESTYLE CARE MANAGEMENT LTD
12,221001,Older People Placements - East,OP 65&Over NursingCarePlacemts,Physical/ Sensory Support,4360,Nursing Homes External,Adult Social Care,Third Party Payments,749.25,01-Mar-17,R,LIFESTYLE CARE MANAGEMENT LTD
12,221001,Older People Placements - East,OP 65&Over NursingCarePlacemts,Physical/ Sensory Support,4360,Nursing Homes External,Adult Social Care,Third Party Payments,749.25,01-Mar-17,R,LIFESTYLE CARE MANAGEMENT LTD
12,221001,Older People Placements - East,OP 65&Over NursingCarePlacemts,Physical/ Sensory Support,4360,Nursing Homes External,Adult Social Care,Third Party Payments,749.25,01-Mar-17,R,LIFESTYLE CARE MANAGEMENT LTD
12,221001,Older People Placements - East,OP 65&Over NursingCarePlacemts,Physical/ Sensory Support,4360,Nursing Homes External,Adult Social Care,Third Party Payments,749.25,01-Mar-17,R,LIFESTYLE CARE MANAGEMENT LTD
12,221001,Older People Placements - East,OP 65&Over NursingCarePlacemts,Physical/ Sensory Support,4360,Nursing Homes External,Adult Social Care,Third Party Payments,749.25,01-Mar-17,R,LIFESTYLE CARE MANAGEMENT LTD
12,221001,Older People Placements - East,OP 65&Over NursingCarePlacemts,Physical/ Sensory Support,4360,Nursing Homes External,Adult Social Care,Third Party Payments,749.25,01-Mar-17,R,LIFESTYLE CARE MANAGEMENT LTD
12,221001,Older People Placements - East,OP 65&Over NursingCarePlacemts,Physical/ Sensory Support,4360,Nursing Homes External,Adult Social Care,Third Party Payments,749.25,01-Mar-17,R,LIFESTYLE CARE MANAGEMENT LTD
12,221001,Older People Placements - East,OP 65&Over NursingCarePlacemts,Physical/ Sensory Support,4360,Nursing Homes External,Adult Social Care,Third Party Payments,749.25,01-Mar-17,R,LIFESTYLE CARE MANAGEMENT LTD
12,221001,Older People Placements - East,OP 65&Over NursingCarePlacemts,Physical/ Sensory Support,4360,Nursing Homes External,Adult Social Care,Third Party Payments,749.25,01-Mar-17,R,LIFESTYLE CARE MANAGEMENT LTD
12,221001,Older People Placements - East,OP 65&Over NursingCarePlacemts,Physical/ Sensory Support,4360,Nursing Homes External,Adult Social Care,Third Party Payments,749.25,01-Mar-17,R,LIFESTYLE CARE MANAGEMENT LTD
12,221001,Older People Placements - East,OP 65&Over NursingCarePlacemts,Physical/ Sensory Support,4360,Nursing Homes External,Adult Social Care,Third Party Payments,749.25,01-Mar-17,R,LIFESTYLE CARE MANAGEMENT LTD
12,221001,Older People Placements - East,OP 65&Over NursingCarePlacemts,Physical/ Sensory Support,4360,Nursing Homes External,Adult Social Care,Third Party Payments,749.25,01-Mar-17,R,LIFESTYLE CARE MANAGEMENT LTD
12,221001,Older People Placements - East,OP 65&Over NursingCarePlacemts,Physical/ Sensory Support,4360,Nursing Homes External,Adult Social Care,Third Party Payments,749.25,01-Mar-17,R,LIFESTYLE CARE MANAGEMENT LTD
12,221001,Older People Placements - East,OP 65&Over NursingCarePlacemts,Physical/ Sensory Support,4360,Nursing Homes External,Adult Social Care,Third Party Payments,749.25,01-Mar-17,R,LIFESTYLE CARE MANAGEMENT LTD
12,221001,Older People Placements - East,OP 65&Over NursingCarePlacemts,Physical/ Sensory Support,4360,Nursing Homes External,Adult Social Care,Third Party Payments,749.25,01-Mar-17,R,LIFESTYLE CARE MANAGEMENT LTD
12,221001,Older People Placements - East,OP 65&Over NursingCarePlacemts,Physical/ Sensory Support,4360,Nursing Homes External,Adult Social Care,Third Party Payments,749.25,01-Mar-17,R,LIFESTYLE CARE MANAGEMENT LTD
12,221001,Older People Placements - East,OP 65&Over NursingCarePlacemts,Physical/ Sensory Support,4360,Nursing Homes External,Adult Social Care,Third Party Payments,749.25,01-Mar-17,R,LIFESTYLE CARE MANAGEMENT LTD
12,221001,Older People Placements - East,OP 65&Over NursingCarePlacemts,Physical/ Sensory Support,4360,Nursing Homes External,Adult Social Care,Third Party Payments,749.25,01-Mar-17,R,LIFESTYLE CARE MANAGEMENT LTD
12,221001,Older People Placements - East,OP 65&Over NursingCarePlacemts,Physical/ Sensory Support,4360,Nursing Homes External,Adult Social Care,Third Party Payments,749.25,01-Mar-17,R,LIFESTYLE CARE MANAGEMENT LTD
12,221001,Older People Placements - East,OP 65&Over NursingCarePlacemts,Physical/ Sensory Support,4360,Nursing Homes External,Adult Social Care,Third Party Payments,749.25,01-Mar-17,R,LIFESTYLE CARE MANAGEMENT LTD
12,221001,Older People Placements - East,OP 65&Over NursingCarePlacemts,Physical/ Sensory Support,4360,Nursing Homes External,Adult Social Care,Third Party Payments,749.25,01-Mar-17,R,LIFESTYLE CARE MANAGEMENT LTD
12,221001,Older People Placements - East,OP 65&Over NursingCarePlacemts,Physical/ Sensory Support,4360,Nursing Homes External,Adult Social Care,Third Party Payments,749.25,01-Mar-17,R,LIFESTYLE CARE MANAGEMENT LTD
12,221001,Older People Placements - East,OP 65&Over NursingCarePlacemts,Physical/ Sensory Support,4360,Nursing Homes External,Adult Social Care,Third Party Payments,749.25,01-Mar-17,R,LIFESTYLE CARE MANAGEMENT LTD
12,221001,Older People Placements - East,OP 65&Over NursingCarePlacemts,Physical/ Sensory Support,4360,Nursing Homes External,Adult Social Care,Third Party Payments,749.25,01-Mar-17,R,LIFESTYLE CARE MANAGEMENT LTD
12,221001,Older People Placements - East,OP 65&Over NursingCarePlacemts,Physical/ Sensory Support,4360,Nursing Homes External,Adult Social Care,Third Party Payments,749.25,01-Mar-17,R,LIFESTYLE CARE MANAGEMENT LTD
12,221001,Older People Placements - East,OP 65&Over NursingCarePlacemts,Physical/ Sensory Support,4360,Nursing Homes External,Adult Social Care,Third Party Payments,749.25,01-Mar-17,R,LIFESTYLE CARE MANAGEMENT LTD
12,221001,Older People Placements - East,OP 65&Over NursingCarePlacemts,Physical/ Sensory Support,4360,Nursing Homes External,Adult Social Care,Third Party Payments,749.25,01-Mar-17,R,LIFESTYLE CARE MANAGEMENT LTD
12,221001,Older People Placements - East,OP 65&Over NursingCarePlacemts,Physical/ Sensory Support,4360,Nursing Homes External,Adult Social Care,Third Party Payments,749.25,01-Mar-17,R,LIFESTYLE CARE MANAGEMENT LTD
12,221001,Older People Placements - East,OP 65&Over NursingCarePlacemts,Physical/ Sensory Support,4360,Nursing Homes External,Adult Social Care,Third Party Payments,749.25,01-Mar-17,R,LIFESTYLE CARE MANAGEMENT LTD
12,221001,Older People Placements - East,OP 65&Over NursingCarePlacemts,Physical/ Sensory Support,4360,Nursing Homes External,Adult Social Care,Third Party Payments,749.25,01-Mar-17,R,LIFESTYLE CARE MANAGEMENT LTD
12,221001,Older People Placements - East,OP 65&Over NursingCarePlacemts,Physical/ Sensory Support,4360,Nursing Homes External,Adult Social Care,Third Party Payments,749.25,01-Mar-17,R,LIFESTYLE CARE MANAGEMENT LTD
12,221001,Older People Placements - East,OP 65&Over NursingCarePlacemts,Physical/ Sensory Support,4360,Nursing Homes External,Adult Social Care,Third Party Payments,749.25,01-Mar-17,R,LIFESTYLE CARE MANAGEMENT LTD
12,221001,Older People Placements - East,OP 65&Over NursingCarePlacemts,Physical/ Sensory Support,4360,Nursing Homes External,Adult Social Care,Third Party Payments,749.25,01-Mar-17,R,LIFESTYLE CARE MANAGEMENT LTD
12,221001,Older People Placements - East,OP 65&Over NursingCarePlacemts,Physical/ Sensory Support,4360,Nursing Homes External,Adult Social Care,Third Party Payments,749.25,01-Mar-17,R,LIFESTYLE CARE MANAGEMENT LTD
12,221001,Older People Placements - East,OP 65&Over NursingCarePlacemts,Physical/ Sensory Support,4360,Nursing Homes External,Adult Social Care,Third Party Payments,749.25,01-Mar-17,R,LIFESTYLE CARE MANAGEMENT LTD
12,221001,Older People Placements - East,OP 65&Over NursingCarePlacemts,Physical/ Sensory Support,4360,Nursing Homes External,Adult Social Care,Third Party Payments,749.25,01-Mar-17,R,LIFESTYLE CARE MANAGEMENT LTD
12,221001,Older People Placements - East,OP 65&Over NursingCarePlacemts,Physical/ Sensory Support,4360,Nursing Homes External,Adult Social Care,Third Party Payments,749.25,01-Mar-17,R,LIFESTYLE CARE MANAGEMENT LTD
12,221001,Older People Placements - East,OP 65&Over NursingCarePlacemts,Physical/ Sensory Support,4360,Nursing Homes External,Adult Social Care,Third Party Payments,749.25,01-Mar-17,R,LIFESTYLE CARE MANAGEMENT LTD
12,221001,Older People Placements - East,OP 65&Over NursingCarePlacemts,Physical/ Sensory Support,4360,Nursing Homes External,Adult Social Care,Third Party Payments,749.25,01-Mar-17,R,LIFESTYLE CARE MANAGEMENT LTD
12,221001,Older People Placements - East,OP 65&Over NursingCarePlacemts,Physical/ Sensory Support,4360,Nursing Homes External,Adult Social Care,Third Party Payments,749.25,01-Mar-17,R,LIFESTYLE CARE MANAGEMENT LTD
12,221001,Older People Placements - East,OP 65&Over NursingCarePlacemts,Physical/ Sensory Support,4360,Nursing Homes External,Adult Social Care,Third Party Payments,749.25,01-Mar-17,R,LIFESTYLE CARE MANAGEMENT LTD
12,221001,Older People Placements - East,OP 65&Over NursingCarePlacemts,Physical/ Sensory Support,4360,Nursing Homes External,Adult Social Care,Third Party Payments,749.25,01-Mar-17,R,LIFESTYLE CARE MANAGEMENT LTD
12,221001,Older People Placements - East,OP 65&Over NursingCarePlacemts,Physical/ Sensory Support,4360,Nursing Homes External,Adult Social Care,Third Party Payments,749.25,01-Mar-17,R,LIFESTYLE CARE MANAGEMENT LTD
12,221001,Older People Placements - East,OP 65&Over NursingCarePlacemts,Physical/ Sensory Support,4360,Nursing Homes External,Adult Social Care,Third Party Payments,749.25,01-Mar-17,R,LIFESTYLE CARE MANAGEMENT LTD
12,221001,Older People Placements - East,OP 65&Over NursingCarePlacemts,Physical/ Sensory Support,4360,Nursing Homes External,Adult Social Care,Third Party Payments,749.25,01-Mar-17,R,LIFESTYLE CARE MANAGEMENT LTD
12,221001,Older People Placements - East,OP 65&Over NursingCarePlacemts,Physical/ Sensory Support,4360,Nursing Homes External,Adult Social Care,Third Party Payments,749.25,01-Mar-17,R,LIFESTYLE CARE MANAGEMENT LTD
12,221001,Older People Placements - East,OP 65&Over NursingCarePlacemts,Physical/ Sensory Support,4360,Nursing Homes External,Adult Social Care,Third Party Payments,749.25,01-Mar-17,R,LIFESTYLE CARE MANAGEMENT LTD
12,221001,Older People Placements - East,OP 65&Over NursingCarePlacemts,Physical/ Sensory Support,4360,Nursing Homes External,Adult Social Care,Third Party Payments,749.25,01-Mar-17,R,LIFESTYLE CARE MANAGEMENT LTD
12,221001,Older People Placements - East,OP 65&Over NursingCarePlacemts,Physical/ Sensory Support,4360,Nursing Homes External,Adult Social Care,Third Party Payments,749.25,01-Mar-17,R,LIFESTYLE CARE MANAGEMENT LTD
12,221001,Older People Placements - East,OP 65&Over NursingCarePlacemts,Physical/ Sensory Support,4360,Nursing Homes External,Adult Social Care,Third Party Payments,749.25,01-Mar-17,R,LIFESTYLE CARE MANAGEMENT LTD
12,221001,Older People Placements - East,OP 65&Over NursingCarePlacemts,Physical/ Sensory Support,4360,Nursing Homes External,Adult Social Care,Third Party Payments,749.25,01-Mar-17,R,LIFESTYLE CARE MANAGEMENT LTD
12,221001,Older People Placements - East,OP 65&Over NursingCarePlacemts,Physical/ Sensory Support,4360,Nursing Homes External,Adult Social Care,Third Party Payments,749.25,01-Mar-17,R,LIFESTYLE CARE MANAGEMENT LTD
12,221001,Older People Placements - East,OP 65&Over NursingCarePlacemts,Physical/ Sensory Support,4360,Nursing Homes External,Adult Social Care,Third Party Payments,749.25,01-Mar-17,R,LIFESTYLE CARE MANAGEMENT LTD
12,221001,Older People Placements - East,OP 65&Over NursingCarePlacemts,Physical/ Sensory Support,4360,Nursing Homes External,Adult Social Care,Third Party Payments,749.25,01-Mar-17,R,LIFESTYLE CARE MANAGEMENT LTD
12,221001,Older People Placements - East,OP 65&Over NursingCarePlacemts,Physical/ Sensory Support,4360,Nursing Homes External,Adult Social Care,Third Party Payments,749.25,01-Mar-17,R,LIFESTYLE CARE MANAGEMENT LTD
12,221001,Older People Placements - East,OP 65&Over NursingCarePlacemts,Physical/ Sensory Support,4360,Nursing Homes External,Adult Social Care,Third Party Payments,749.25,01-Mar-17,R,LIFESTYLE CARE MANAGEMENT LTD
12,221001,Older People Placements - East,OP 65&Over NursingCarePlacemts,Physical/ Sensory Support,4360,Nursing Homes External,Adult Social Care,Third Party Payments,749.25,01-Mar-17,R,LIFESTYLE CARE MANAGEMENT LTD
12,221001,Older People Placements - East,OP 65&Over NursingCarePlacemts,Physical/ Sensory Support,4360,Nursing Homes External,Adult Social Care,Third Party Payments,749.25,01-Mar-17,R,LIFESTYLE CARE MANAGEMENT LTD
12,221001,Older People Placements - East,OP 65&Over NursingCarePlacemts,Physical/ Sensory Support,4360,Nursing Homes External,Adult Social Care,Third Party Payments,749.25,01-Mar-17,R,LIFESTYLE CARE MANAGEMENT LTD
12,221001,Older People Placements - East,OP 65&Over NursingCarePlacemts,Physical/ Sensory Support,4360,Nursing Homes External,Adult Social Care,Third Party Payments,749.25,01-Mar-17,R,LIFESTYLE CARE MANAGEMENT LTD
12,221001,Older People Placements - East,OP 65&Over NursingCarePlacemts,Physical/ Sensory Support,4360,Nursing Homes External,Adult Social Care,Third Party Payments,749.25,01-Mar-17,R,LIFESTYLE CARE MANAGEMENT LTD
12,221001,Older People Placements - East,OP 65&Over NursingCarePlacemts,Physical/ Sensory Support,4360,Nursing Homes External,Adult Social Care,Third Party Payments,749.25,01-Mar-17,R,LIFESTYLE CARE MANAGEMENT LTD
12,221001,Older People Placements - East,OP 65&Over NursingCarePlacemts,Physical/ Sensory Support,4360,Nursing Homes External,Adult Social Care,Third Party Payments,749.25,01-Mar-17,R,LIFESTYLE CARE MANAGEMENT LTD
12,221001,Older People Placements - East,OP 65&Over NursingCarePlacemts,Physical/ Sensory Support,4360,Nursing Homes External,Adult Social Care,Third Party Payments,749.25,01-Mar-17,R,LIFESTYLE CARE MANAGEMENT LTD
12,221001,Older People Placements - East,OP 65&Over NursingCarePlacemts,Physical/ Sensory Support,4360,Nursing Homes External,Adult Social Care,Third Party Payments,749.25,01-Mar-17,R,LIFESTYLE CARE MANAGEMENT LTD
12,221001,Older People Placements - East,OP 65&Over NursingCarePlacemts,Physical/ Sensory Support,4360,Nursing Homes External,Adult Social Care,Third Party Payments,749.25,01-Mar-17,R,LIFESTYLE CARE MANAGEMENT LTD
12,221001,Older People Placements - East,OP 65&Over NursingCarePlacemts,Physical/ Sensory Support,4360,Nursing Homes External,Adult Social Care,Third Party Payments,749.25,01-Mar-17,R,LIFESTYLE CARE MANAGEMENT LTD
12,221001,Older People Placements - East,OP 65&Over NursingCarePlacemts,Physical/ Sensory Support,4360,Nursing Homes External,Adult Social Care,Third Party Payments,749.25,01-Mar-17,R,LIFESTYLE CARE MANAGEMENT LTD
12,221001,Older People Placements - East,OP 65&Over NursingCarePlacemts,Physical/ Sensory Support,4360,Nursing Homes External,Adult Social Care,Third Party Payments,749.25,01-Mar-17,R,LIFESTYLE CARE MANAGEMENT LTD
12,221001,Older People Placements - East,OP 65&Over NursingCarePlacemts,Physical/ Sensory Support,4360,Nursing Homes External,Adult Social Care,Third Party Payments,749.25,01-Mar-17,R,LIFESTYLE CARE MANAGEMENT LTD
12,221001,Older People Placements - East,OP 65&Over NursingCarePlacemts,Physical/ Sensory Support,4360,Nursing Homes External,Adult Social Care,Third Party Payments,749.25,01-Mar-17,R,LIFESTYLE CARE MANAGEMENT LTD
12,221001,Older People Placements - East,OP 65&Over NursingCarePlacemts,Physical/ Sensory Support,4360,Nursing Homes External,Adult Social Care,Third Party Payments,749.25,01-Mar-17,R,LIFESTYLE CARE MANAGEMENT LTD
12,221001,Older People Placements - East,OP 65&Over NursingCarePlacemts,Physical/ Sensory Support,4360,Nursing Homes External,Adult Social Care,Third Party Payments,749.25,01-Mar-17,R,LIFESTYLE CARE MANAGEMENT LTD
12,221001,Older People Placements - East,OP 65&Over NursingCarePlacemts,Physical/ Sensory Support,4360,Nursing Homes External,Adult Social Care,Third Party Payments,749.25,01-Mar-17,R,LIFESTYLE CARE MANAGEMENT LTD
12,221001,Older People Placements - East,OP 65&Over NursingCarePlacemts,Physical/ Sensory Support,4360,Nursing Homes External,Adult Social Care,Third Party Payments,749.25,01-Mar-17,R,LIFESTYLE CARE MANAGEMENT LTD
12,221001,Older People Placements - East,OP 65&Over NursingCarePlacemts,Physical/ Sensory Support,4360,Nursing Homes External,Adult Social Care,Third Party Payments,749.25,01-Mar-17,R,LIFESTYLE CARE MANAGEMENT LTD
12,221001,Older People Placements - East,OP 65&Over NursingCarePlacemts,Physical/ Sensory Support,4360,Nursing Homes External,Adult Social Care,Third Party Payments,749.25,01-Mar-17,R,LIFESTYLE CARE MANAGEMENT LTD
12,221001,Older People Placements - East,OP 65&Over NursingCarePlacemts,Physical/ Sensory Support,4360,Nursing Homes External,Adult Social Care,Third Party Payments,749.25,01-Mar-17,R,LIFESTYLE CARE MANAGEMENT LTD
12,221001,Older People Placements - East,OP 65&Over NursingCarePlacemts,Physical/ Sensory Support,4360,Nursing Homes External,Adult Social Care,Third Party Payments,749.25,01-Mar-17,R,LIFESTYLE CARE MANAGEMENT LTD
12,221001,Older People Placements - East,OP 65&Over NursingCarePlacemts,Physical/ Sensory Support,4360,Nursing Homes External,Adult Social Care,Third Party Payments,749.25,01-Mar-17,R,LIFESTYLE CARE MANAGEMENT LTD
12,221001,Older People Placements - East,OP 65&Over NursingCarePlacemts,Physical/ Sensory Support,4360,Nursing Homes External,Adult Social Care,Third Party Payments,749.25,01-Mar-17,R,LIFESTYLE CARE MANAGEMENT LTD
12,221001,Older People Placements - East,OP 65&Over NursingCarePlacemts,Physical/ Sensory Support,4360,Nursing Homes External,Adult Social Care,Third Party Payments,749.25,01-Mar-17,R,LIFESTYLE CARE MANAGEMENT LTD
12,221001,Older People Placements - East,OP 65&Over NursingCarePlacemts,Physical/ Sensory Support,4360,Nursing Homes External,Adult Social Care,Third Party Payments,749.25,01-Mar-17,R,LIFESTYLE CARE MANAGEMENT LTD
12,221001,Older People Placements - East,OP 65&Over NursingCarePlacemts,Physical/ Sensory Support,4360,Nursing Homes External,Adult Social Care,Third Party Payments,749.25,01-Mar-17,R,LIFESTYLE CARE MANAGEMENT LTD
12,221001,Older People Placements - East,OP 65&Over NursingCarePlacemts,Physical/ Sensory Support,4360,Nursing Homes External,Adult Social Care,Third Party Payments,749.25,01-Mar-17,R,LIFESTYLE CARE MANAGEMENT LTD
12,221001,Older People Placements - East,OP 65&Over NursingCarePlacemts,Physical/ Sensory Support,4360,Nursing Homes External,Adult Social Care,Third Party Payments,749.25,01-Mar-17,R,LIFESTYLE CARE MANAGEMENT LTD
12,221001,Older People Placements - East,OP 65&Over NursingCarePlacemts,Physical/ Sensory Support,4360,Nursing Homes External,Adult Social Care,Third Party Payments,749.25,01-Mar-17,R,LIFESTYLE CARE MANAGEMENT LTD
12,221001,Older People Placements - East,OP 65&Over NursingCarePlacemts,Physical/ Sensory Support,4360,Nursing Homes External,Adult Social Care,Third Party Payments,749.25,01-Mar-17,R,LIFESTYLE CARE MANAGEMENT LTD
12,221001,Older People Placements - East,OP 65&Over NursingCarePlacemts,Physical/ Sensory Support,4360,Nursing Homes External,Adult Social Care,Third Party Payments,749.25,01-Mar-17,R,LIFESTYLE CARE MANAGEMENT LTD
12,221001,Older People Placements - East,OP 65&Over NursingCarePlacemts,Physical/ Sensory Support,4360,Nursing Homes External,Adult Social Care,Third Party Payments,749.25,01-Mar-17,R,LIFESTYLE CARE MANAGEMENT LTD
12,221001,Older People Placements - East,OP 65&Over NursingCarePlacemts,Physical/ Sensory Support,4360,Nursing Homes External,Adult Social Care,Third Party Payments,749.25,01-Mar-17,R,LIFESTYLE CARE MANAGEMENT LTD
12,221001,Older People Placements - East,OP 65&Over NursingCarePlacemts,Physical/ Sensory Support,4360,Nursing Homes External,Adult Social Care,Third Party Payments,749.25,01-Mar-17,R,LIFESTYLE CARE MANAGEMENT LTD
12,221001,Older People Placements - East,OP 65&Over NursingCarePlacemts,Physical/ Sensory Support,4360,Nursing Homes External,Adult Social Care,Third Party Payments,749.25,01-Mar-17,R,LIFESTYLE CARE MANAGEMENT LTD
12,221001,Older People Placements - East,OP 65&Over NursingCarePlacemts,Physical/ Sensory Support,4360,Nursing Homes External,Adult Social Care,Third Party Payments,749.25,01-Mar-17,R,LIFESTYLE CARE MANAGEMENT LTD
12,221001,Older People Placements - East,OP 65&Over NursingCarePlacemts,Physical/ Sensory Support,4360,Nursing Homes External,Adult Social Care,Third Party Payments,749.25,01-Mar-17,R,LIFESTYLE CARE MANAGEMENT LTD
12,221001,Older People Placements - East,OP 65&Over NursingCarePlacemts,Physical/ Sensory Support,4360,Nursing Homes External,Adult Social Care,Third Party Payments,749.25,01-Mar-17,R,LIFESTYLE CARE MANAGEMENT LTD
12,221001,Older People Placements - East,OP 65&Over NursingCarePlacemts,Physical/ Sensory Support,4360,Nursing Homes External,Adult Social Care,Third Party Payments,749.25,01-Mar-17,R,LIFESTYLE CARE MANAGEMENT LTD
12,221001,Older People Placements - East,OP 65&Over NursingCarePlacemts,Physical/ Sensory Support,4360,Nursing Homes External,Adult Social Care,Third Party Payments,749.25,01-Mar-17,R,LIFESTYLE CARE MANAGEMENT LTD
12,221001,Older People Placements - East,OP 65&Over NursingCarePlacemts,Physical/ Sensory Support,4360,Nursing Homes External,Adult Social Care,Third Party Payments,749.25,01-Mar-17,R,LIFESTYLE CARE MANAGEMENT LTD
12,221001,Older People Placements - East,OP 65&Over NursingCarePlacemts,Physical/ Sensory Support,4360,Nursing Homes External,Adult Social Care,Third Party Payments,749.25,01-Mar-17,R,LIFESTYLE CARE MANAGEMENT LTD
12,221001,Older People Placements - East,OP 65&Over NursingCarePlacemts,Physical/ Sensory Support,4360,Nursing Homes External,Adult Social Care,Third Party Payments,749.25,01-Mar-17,R,LIFESTYLE CARE MANAGEMENT LTD
12,221001,Older People Placements - East,OP 65&Over NursingCarePlacemts,Physical/ Sensory Support,4360,Nursing Homes External,Adult Social Care,Third Party Payments,749.25,01-Mar-17,R,LIFESTYLE CARE MANAGEMENT LTD
12,221001,Older People Placements - East,OP 65&Over NursingCarePlacemts,Physical/ Sensory Support,4360,Nursing Homes External,Adult Social Care,Third Party Payments,749.25,01-Mar-17,R,LIFESTYLE CARE MANAGEMENT LTD
12,221001,Older People Placements - East,OP 65&Over NursingCarePlacemts,Physical/ Sensory Support,4360,Nursing Homes External,Adult Social Care,Third Party Payments,749.25,01-Mar-17,R,LIFESTYLE CARE MANAGEMENT LTD
12,221001,Older People Placements - East,OP 65&Over NursingCarePlacemts,Physical/ Sensory Support,4360,Nursing Homes External,Adult Social Care,Third Party Payments,749.25,01-Mar-17,R,LIFESTYLE CARE MANAGEMENT LTD
12,221001,Older People Placements - East,OP 65&Over NursingCarePlacemts,Physical/ Sensory Support,4360,Nursing Homes External,Adult Social Care,Third Party Payments,749.25,01-Mar-17,R,LIFESTYLE CARE MANAGEMENT LTD
12,221001,Older People Placements - East,OP 65&Over NursingCarePlacemts,Physical/ Sensory Support,4360,Nursing Homes External,Adult Social Care,Third Party Payments,749.25,01-Mar-17,R,LIFESTYLE CARE MANAGEMENT LTD
12,221001,Older People Placements - East,OP 65&Over NursingCarePlacemts,Physical/ Sensory Support,4360,Nursing Homes External,Adult Social Care,Third Party Payments,749.25,01-Mar-17,R,LIFESTYLE CARE MANAGEMENT LTD
12,221001,Older People Placements - East,OP 65&Over NursingCarePlacemts,Physical/ Sensory Support,4360,Nursing Homes External,Adult Social Care,Third Party Payments,749.25,01-Mar-17,R,LIFESTYLE CARE MANAGEMENT LTD
12,221001,Older People Placements - East,OP 65&Over NursingCarePlacemts,Physical/ Sensory Support,4360,Nursing Homes External,Adult Social Care,Third Party Payments,749.25,01-Mar-17,R,LIFESTYLE CARE MANAGEMENT LTD
12,221001,Older People Placements - East,OP 65&Over NursingCarePlacemts,Physical/ Sensory Support,4360,Nursing Homes External,Adult Social Care,Third Party Payments,749.25,01-Mar-17,R,LIFESTYLE CARE MANAGEMENT LTD
12,221001,Older People Placements - East,OP 65&Over NursingCarePlacemts,Physical/ Sensory Support,4360,Nursing Homes External,Adult Social Care,Third Party Payments,749.25,01-Mar-17,R,LIFESTYLE CARE MANAGEMENT LTD
12,221001,Older People Placements - East,OP 65&Over NursingCarePlacemts,Physical/ Sensory Support,4360,Nursing Homes External,Adult Social Care,Third Party Payments,749.25,01-Mar-17,R,LIFESTYLE CARE MANAGEMENT LTD
12,221001,Older People Placements - East,OP 65&Over NursingCarePlacemts,Physical/ Sensory Support,4360,Nursing Homes External,Adult Social Care,Third Party Payments,749.25,01-Mar-17,R,LIFESTYLE CARE MANAGEMENT LTD
12,221001,Older People Placements - East,OP 65&Over NursingCarePlacemts,Physical/ Sensory Support,4360,Nursing Homes External,Adult Social Care,Third Party Payments,749.25,01-Mar-17,R,LIFESTYLE CARE MANAGEMENT LTD
12,221001,Older People Placements - East,OP 65&Over NursingCarePlacemts,Physical/ Sensory Support,4360,Nursing Homes External,Adult Social Care,Third Party Payments,749.25,01-Mar-17,R,LIFESTYLE CARE MANAGEMENT LTD
12,221001,Older People Placements - East,OP 65&Over NursingCarePlacemts,Physical/ Sensory Support,4360,Nursing Homes External,Adult Social Care,Third Party Payments,749.25,01-Mar-17,R,LIFESTYLE CARE MANAGEMENT LTD
12,221001,Older People Placements - East,OP 65&Over NursingCarePlacemts,Physical/ Sensory Support,4360,Nursing Homes External,Adult Social Care,Third Party Payments,749.25,01-Mar-17,R,LIFESTYLE CARE MANAGEMENT LTD
12,221001,Older People Placements - East,OP 65&Over NursingCarePlacemts,Physical/ Sensory Support,4360,Nursing Homes External,Adult Social Care,Third Party Payments,749.25,01-Mar-17,R,LIFESTYLE CARE MANAGEMENT LTD
12,221001,Older People Placements - East,OP 65&Over NursingCarePlacemts,Physical/ Sensory Support,4360,Nursing Homes External,Adult Social Care,Third Party Payments,749.25,01-Mar-17,R,LIFESTYLE CARE MANAGEMENT LTD
12,221001,Older People Placements - East,OP 65&Over NursingCarePlacemts,Physical/ Sensory Support,4360,Nursing Homes External,Adult Social Care,Third Party Payments,749.25,01-Mar-17,R,LIFESTYLE CARE MANAGEMENT LTD
12,221001,Older People Placements - East,OP 65&Over NursingCarePlacemts,Physical/ Sensory Support,4360,Nursing Homes External,Adult Social Care,Third Party Payments,749.25,01-Mar-17,R,LIFESTYLE CARE MANAGEMENT LTD
12,221001,Older People Placements - East,OP 65&Over NursingCarePlacemts,Physical/ Sensory Support,4360,Nursing Homes External,Adult Social Care,Third Party Payments,749.25,01-Mar-17,R,LIFESTYLE CARE MANAGEMENT LTD
12,221001,Older People Placements - East,OP 65&Over NursingCarePlacemts,Physical/ Sensory Support,4360,Nursing Homes External,Adult Social Care,Third Party Payments,749.25,01-Mar-17,R,LIFESTYLE CARE MANAGEMENT LTD
12,221001,Older People Placements - East,OP 65&Over NursingCarePlacemts,Physical/ Sensory Support,4360,Nursing Homes External,Adult Social Care,Third Party Payments,749.25,01-Mar-17,R,LIFESTYLE CARE MANAGEMENT LTD
12,221001,Older People Placements - East,OP 65&Over NursingCarePlacemts,Physical/ Sensory Support,4360,Nursing Homes External,Adult Social Care,Third Party Payments,749.25,01-Mar-17,R,LIFESTYLE CARE MANAGEMENT LTD
12,221001,Older People Placements - East,OP 65&Over NursingCarePlacemts,Physical/ Sensory Support,4360,Nursing Homes External,Adult Social Care,Third Party Payments,749.25,01-Mar-17,R,LIFESTYLE CARE MANAGEMENT LTD
12,221001,Older People Placements - East,OP 65&Over NursingCarePlacemts,Physical/ Sensory Support,4360,Nursing Homes External,Adult Social Care,Third Party Payments,749.25,01-Mar-17,R,LIFESTYLE CARE MANAGEMENT LTD
12,221001,Older People Placements - East,OP 65&Over NursingCarePlacemts,Physical/ Sensory Support,4360,Nursing Homes External,Adult Social Care,Third Party Payments,749.25,01-Mar-17,R,LIFESTYLE CARE MANAGEMENT LTD
12,221001,Older People Placements - East,OP 65&Over NursingCarePlacemts,Physical/ Sensory Support,4360,Nursing Homes External,Adult Social Care,Third Party Payments,749.25,01-Mar-17,R,LIFESTYLE CARE MANAGEMENT LTD
12,221001,Older People Placements - East,OP 65&Over NursingCarePlacemts,Physical/ Sensory Support,4360,Nursing Homes External,Adult Social Care,Third Party Payments,749.25,01-Mar-17,R,LIFESTYLE CARE MANAGEMENT LTD
12,221001,Older People Placements - East,OP 65&Over NursingCarePlacemts,Physical/ Sensory Support,4360,Nursing Homes External,Adult Social Care,Third Party Payments,749.25,01-Mar-17,R,LIFESTYLE CARE MANAGEMENT LTD
12,221001,Older People Placements - East,OP 65&Over NursingCarePlacemts,Physical/ Sensory Support,4360,Nursing Homes External,Adult Social Care,Third Party Payments,749.25,01-Mar-17,R,LIFESTYLE CARE MANAGEMENT LTD
12,221001,Older People Placements - East,OP 65&Over NursingCarePlacemts,Physical/ Sensory Support,4360,Nursing Homes External,Adult Social Care,Third Party Payments,749.25,01-Mar-17,R,LIFESTYLE CARE MANAGEMENT LTD
12,221001,Older People Placements - East,OP 65&Over NursingCarePlacemts,Physical/ Sensory Support,4360,Nursing Homes External,Adult Social Care,Third Party Payments,749.25,01-Mar-17,R,LIFESTYLE CARE MANAGEMENT LTD
